Workbook

Sheet Etat commande (hidden)
A1: bonjour !
B2: Etat des commandes
B4: Colonne1 | C4: Fournisseurs | D4: Emplacement | E4: N° Série | F4: Désignation | G4: Référence | H4: Taille | I4: Achat | J4: Valeur en Stock | K4: Modif inventaire | L4: Stock Actuel | M4: Stock Limite | N4: Etat | O4: Commantaires | P4: Stock Réel | Q4: Correction stock | R4: Notre Référence | S4: Quantité
E5: 72887 | F5: =VLOOKUP(T_stock[[#This Row],[N° Série]],N°série[#All],7,FALSE) -> CVE ASS 15/313 RL18R-410 TERM | G5: =VLOOKUP(T_stock[[#This Row],[N° Série]],N°série[#All],2,FALSE) -> 0 | I5: 0 | J5: =IF(L5<=0,"",L5*I5) -> 0 | K5: =VLOOKUP(T_stock[[#This Row],[N° Série]],N°série[#All],8,FALSE) -> 904 | L5: =IF($E5<>0,K5+SUMPRODUCT((T_entrée[N° Article Client]=$E5)*T_entrée[Quantité])-SUMPRODUCT((T_sortie[Référence]=T_stock[[#This Row],[N° Série]])*T_sortie[Quantité]),0) -> 904 | M5: 0 | N5: =IF(L5<M5,"ALERTE","Correct") -> Correct | P5: =T_stock[[#This Row],[Quantité]] -> 0 | Q5: =IF(T_stock[[#This Row],[Stock Réel]]=0,"",T_stock[[#This Row],[Stock Réel]]-T_stock[[#This Row],[Stock Actuel]]+T_stock[[#This Row],[Modif inventaire]]) ->  | R5: =B5 -> 0 | S5: =IFERROR(VLOOKUP(T_stock[[#This Row],[ Notre Référence]],[2]!T_Inventaire[#Data],MATCH(T_stock[[#Headers],[Quantité]],[2]!T_Inventaire[#Headers],0),FALSE),0) -> 0
E6: 72886 | F6: =VLOOKUP(T_stock[[#This Row],[N° Série]],N°série[#All],7,FALSE) -> CVE ASS 15/313 RL18J TERM | G6: =VLOOKUP(T_stock[[#This Row],[N° Série]],N°série[#All],2,FALSE) -> 0 | I6: 0 | J6: =IF(L6<=0,"",L6*I6) -> 0 | K6: =VLOOKUP(T_stock[[#This Row],[N° Série]],N°série[#All],8,FALSE) -> 500 | L6: =IF($E6<>0,K6+SUMPRODUCT((T_entrée[N° Article Client]=$E6)*T_entrée[Quantité])-SUMPRODUCT((T_sortie[Référence]=T_stock[[#This Row],[N° Série]])*T_sortie[Quantité]),0) -> 500 | N6: =IF(L6<M6,"ALERTE","Correct") -> Correct | P6: =T_stock[[#This Row],[Quantité]] -> 0 | Q6: =IF(T_stock[[#This Row],[Stock Réel]]=0,"",T_stock[[#This Row],[Stock Réel]]-T_stock[[#This Row],[Stock Actuel]]+T_stock[[#This Row],[Modif inventaire]]) ->  | R6: =B6 -> 0
E7: 72896 | F7: =VLOOKUP(T_stock[[#This Row],[N° Série]],N°série[#All],7,FALSE) -> SEC 15/313 AC904L TERM SPLE | G7: =VLOOKUP(T_stock[[#This Row],[N° Série]],N°série[#All],2,FALSE) -> 0 | I7: 0 | J7: 0 | K7: =VLOOKUP(T_stock[[#This Row],[N° Série]],N°série[#All],8,FALSE) -> 950 | L7: =IF($E7<>0,K7+SUMPRODUCT((T_entrée[N° Article Client]=$E7)*T_entrée[Quantité])-SUMPRODUCT((T_sortie[Référence]=T_stock[[#This Row],[N° Série]])*T_sortie[Quantité]),0) -> 950 | N7: Correct | P7: =T_stock[[#This Row],[Quantité]] -> 0 | Q7: =IF(T_stock[[#This Row],[Stock Réel]]=0,"",T_stock[[#This Row],[Stock Réel]]-T_stock[[#This Row],[Stock Actuel]]+T_stock[[#This Row],[Modif inventaire]]) ->  | R7: 0 | S7: =IFERROR(VLOOKUP(T_stock[[#This Row],[ Notre Référence]],[2]!T_Inventaire[#Data],MATCH(T_stock[[#Headers],[Quantité]],[2]!T_Inventaire[#Headers],0),FALSE),0) -> 0
E8: 72894 | F8: =VLOOKUP(T_stock[[#This Row],[N° Série]],N°série[#All],7,FALSE) -> SEC ASS 15/313 RL18R-410 TERM | G8: =VLOOKUP(T_stock[[#This Row],[N° Série]],N°série[#All],2,FALSE) -> 0 | I8: 0 | J8: 0 | K8: =VLOOKUP(T_stock[[#This Row],[N° Série]],N°série[#All],8,FALSE) -> 500 | L8: =IF($E8<>0,K8+SUMPRODUCT((T_entrée[N° Article Client]=$E8)*T_entrée[Quantité])-SUMPRODUCT((T_sortie[Référence]=T_stock[[#This Row],[N° Série]])*T_sortie[Quantité]),0) -> 500 | N8: Correct | P8: =T_stock[[#This Row],[Quantité]] -> 0 | Q8: =IF(T_stock[[#This Row],[Stock Réel]]=0,"",T_stock[[#This Row],[Stock Réel]]-T_stock[[#This Row],[Stock Actuel]]+T_stock[[#This Row],[Modif inventaire]]) ->  | R8: 0 | S8: =IFERROR(VLOOKUP(T_stock[[#This Row],[ Notre Référence]],[2]!T_Inventaire[#Data],MATCH(T_stock[[#Headers],[Quantité]],[2]!T_Inventaire[#Headers],0),FALSE),0) -> 0
E9: 72899 | F9: =VLOOKUP(T_stock[[#This Row],[N° Série]],N°série[#All],7,FALSE) -> SEC ASS 15/400 AC SAT | G9: =VLOOKUP(T_stock[[#This Row],[N° Série]],N°série[#All],2,FALSE) -> 0 | I9: 0 | J9: 0 | K9: =VLOOKUP(T_stock[[#This Row],[N° Série]],N°série[#All],8,FALSE) -> 1260 | L9: =IF($E9<>0,K9+SUMPRODUCT((T_entrée[N° Article Client]=$E9)*T_entrée[Quantité])-SUMPRODUCT((T_sortie[Référence]=T_stock[[#This Row],[N° Série]])*T_sortie[Quantité]),0) -> 1260 | N9: Correct | P9: =T_stock[[#This Row],[Quantité]] -> 0 | Q9: =IF(T_stock[[#This Row],[Stock Réel]]=0,"",T_stock[[#This Row],[Stock Réel]]-T_stock[[#This Row],[Stock Actuel]]+T_stock[[#This Row],[Modif inventaire]]) ->  | R9: 0 | S9: =IFERROR(VLOOKUP(T_stock[[#This Row],[ Notre Référence]],[2]!T_Inventaire[#Data],MATCH(T_stock[[#Headers],[Quantité]],[2]!T_Inventaire[#Headers],0),FALSE),0) -> 0
E10: 72901 | F10: =VLOOKUP(T_stock[[#This Row],[N° Série]],N°série[#All],7,FALSE) -> CVE 17/443 AC904L SAT | G10: =VLOOKUP(T_stock[[#This Row],[N° Série]],N°série[#All],2,FALSE) -> 0 | J10: =IF(L10<=0,"",L10*I10) -> 0 | K10: =VLOOKUP(T_stock[[#This Row],[N° Série]],N°série[#All],8,FALSE) -> 696 | L10: =IF($E10<>0,K10+SUMPRODUCT((T_entrée[N° Article Client]=$E10)*T_entrée[Quantité])-SUMPRODUCT((T_sortie[Référence]=T_stock[[#This Row],[N° Série]])*T_sortie[Quantité]),0) -> 696 | N10: =IF(L10<M10,"ALERTE","Correct") -> Correct | P10: =T_stock[[#This Row],[Quantité]] -> 0 | Q10: =IF(T_stock[[#This Row],[Stock Réel]]=0,"",T_stock[[#This Row],[Stock Réel]]-T_stock[[#This Row],[Stock Actuel]]+T_stock[[#This Row],[Modif inventaire]]) ->  | R10: =B10 -> 0 | S10: =IFERROR(VLOOKUP(T_stock[[#This Row],[ Notre Référence]],[2]!T_Inventaire[#Data],MATCH(T_stock[[#Headers],[Quantité]],[2]!T_Inventaire[#Headers],0),FALSE),0) -> 0
E11: 72902 | F11: =VLOOKUP(T_stock[[#This Row],[N° Série]],N°série[#All],7,FALSE) -> CVE ASS PLQ 15/443 RL18J TERM | G11: =VLOOKUP(T_stock[[#This Row],[N° Série]],N°série[#All],2,FALSE) -> 0 | J11: 0 | K11: =VLOOKUP(T_stock[[#This Row],[N° Série]],N°série[#All],8,FALSE) -> 397 | L11: =IF($E11<>0,K11+SUMPRODUCT((T_entrée[N° Article Client]=$E11)*T_entrée[Quantité])-SUMPRODUCT((T_sortie[Référence]=T_stock[[#This Row],[N° Série]])*T_sortie[Quantité]),0) -> 397 | N11: Correct | P11: =T_stock[[#This Row],[Quantité]] -> 0 | Q11: =IF(T_stock[[#This Row],[Stock Réel]]=0,"",T_stock[[#This Row],[Stock Réel]]-T_stock[[#This Row],[Stock Actuel]]+T_stock[[#This Row],[Modif inventaire]]) ->  | R11: 0 | S11: =IFERROR(VLOOKUP(T_stock[[#This Row],[ Notre Référence]],[2]!T_Inventaire[#Data],MATCH(T_stock[[#Headers],[Quantité]],[2]!T_Inventaire[#Headers],0),FALSE),0) -> 0
E12: 72900 | F12: =VLOOKUP(T_stock[[#This Row],[N° Série]],N°série[#All],7,FALSE) -> CVE ASS PLQ 15/443 RL18J TERM | G12: =VLOOKUP(T_stock[[#This Row],[N° Série]],N°série[#All],2,FALSE) -> 0 | J12: 0 | K12: =VLOOKUP(T_stock[[#This Row],[N° Série]],N°série[#All],8,FALSE) -> 604 | L12: =IF($E12<>0,K12+SUMPRODUCT((T_entrée[N° Article Client]=$E12)*T_entrée[Quantité])-SUMPRODUCT((T_sortie[Référence]=T_stock[[#This Row],[N° Série]])*T_sortie[Quantité]),0) -> 604 | N12: Correct | P12: =T_stock[[#This Row],[Quantité]] -> 0 | Q12: =IF(T_stock[[#This Row],[Stock Réel]]=0,"",T_stock[[#This Row],[Stock Réel]]-T_stock[[#This Row],[Stock Actuel]]+T_stock[[#This Row],[Modif inventaire]]) ->  | R12: 0 | S12: =IFERROR(VLOOKUP(T_stock[[#This Row],[ Notre Référence]],[2]!T_Inventaire[#Data],MATCH(T_stock[[#Headers],[Quantité]],[2]!T_Inventaire[#Headers],0),FALSE),0) -> 0
E13: 72895 | F13: =VLOOKUP(T_stock[[#This Row],[N° Série]],N°série[#All],7,FALSE) -> CVE ASS EBL 15/313 AC TERM | G13: =VLOOKUP(T_stock[[#This Row],[N° Série]],N°série[#All],2,FALSE) -> 0 | J13: 0 | K13: =VLOOKUP(T_stock[[#This Row],[N° Série]],N°série[#All],8,FALSE) -> 1117 | L13: =IF($E13<>0,K13+SUMPRODUCT((T_entrée[N° Article Client]=$E13)*T_entrée[Quantité])-SUMPRODUCT((T_sortie[Référence]=T_stock[[#This Row],[N° Série]])*T_sortie[Quantité]),0) -> 1117 | N13: Correct | P13: =T_stock[[#This Row],[Quantité]] -> 0 | Q13: =IF(T_stock[[#This Row],[Stock Réel]]=0,"",T_stock[[#This Row],[Stock Réel]]-T_stock[[#This Row],[Stock Actuel]]+T_stock[[#This Row],[Modif inventaire]]) ->  | R13: 0 | S13: =IFERROR(VLOOKUP(T_stock[[#This Row],[ Notre Référence]],[2]!T_Inventaire[#Data],MATCH(T_stock[[#Headers],[Quantité]],[2]!T_Inventaire[#Headers],0),FALSE),0) -> 0
E14: 72897 | F14: =VLOOKUP(T_stock[[#This Row],[N° Série]],N°série[#All],7,FALSE) -> CVE 15/313 AC904L SAT | G14: =VLOOKUP(T_stock[[#This Row],[N° Série]],N°série[#All],2,FALSE) -> 0 | J14: 0 | K14: =VLOOKUP(T_stock[[#This Row],[N° Série]],N°série[#All],8,FALSE) -> 988 | L14: =IF($E14<>0,K14+SUMPRODUCT((T_entrée[N° Article Client]=$E14)*T_entrée[Quantité])-SUMPRODUCT((T_sortie[Référence]=T_stock[[#This Row],[N° Série]])*T_sortie[Quantité]),0) -> 988 | N14: Correct | P14: =T_stock[[#This Row],[Quantité]] -> 0 | Q14: =IF(T_stock[[#This Row],[Stock Réel]]=0,"",T_stock[[#This Row],[Stock Réel]]-T_stock[[#This Row],[Stock Actuel]]+T_stock[[#This Row],[Modif inventaire]]) ->  | R14: 0 | S14: =IFERROR(VLOOKUP(T_stock[[#This Row],[ Notre Référence]],[2]!T_Inventaire[#Data],MATCH(T_stock[[#Headers],[Quantité]],[2]!T_Inventaire[#Headers],0),FALSE),0) -> 0
E15: 72914 | F15: =VLOOKUP(T_stock[[#This Row],[N° Série]],N°série[#All],7,FALSE) -> SEC ASS 15/423 AC TERM | G15: =VLOOKUP(T_stock[[#This Row],[N° Série]],N°série[#All],2,FALSE) -> 0 | J15: 0 | K15: =VLOOKUP(T_stock[[#This Row],[N° Série]],N°série[#All],8,FALSE) -> 1000 | L15: =IF($E15<>0,K15+SUMPRODUCT((T_entrée[N° Article Client]=$E15)*T_entrée[Quantité])-SUMPRODUCT((T_sortie[Référence]=T_stock[[#This Row],[N° Série]])*T_sortie[Quantité]),0) -> 1000 | N15: Correct | P15: =T_stock[[#This Row],[Quantité]] -> 0 | Q15: =IF(T_stock[[#This Row],[Stock Réel]]=0,"",T_stock[[#This Row],[Stock Réel]]-T_stock[[#This Row],[Stock Actuel]]+T_stock[[#This Row],[Modif inventaire]]) ->  | R15: 0 | S15: =IFERROR(VLOOKUP(T_stock[[#This Row],[ Notre Référence]],[2]!T_Inventaire[#Data],MATCH(T_stock[[#Headers],[Quantité]],[2]!T_Inventaire[#Headers],0),FALSE),0) -> 0
E16: 72911 | F16: =VLOOKUP(T_stock[[#This Row],[N° Série]],N°série[#All],7,FALSE) -> SEC 15/313A AC904L TERM SPLE | G16: =VLOOKUP(T_stock[[#This Row],[N° Série]],N°série[#All],2,FALSE) -> 0 | J16: 0 | K16: =VLOOKUP(T_stock[[#This Row],[N° Série]],N°série[#All],8,FALSE) -> 516 | L16: =IF($E16<>0,K16+SUMPRODUCT((T_entrée[N° Article Client]=$E16)*T_entrée[Quantité])-SUMPRODUCT((T_sortie[Référence]=T_stock[[#This Row],[N° Série]])*T_sortie[Quantité]),0) -> 516 | N16: Correct | P16: =T_stock[[#This Row],[Quantité]] -> 0 | Q16: =IF(T_stock[[#This Row],[Stock Réel]]=0,"",T_stock[[#This Row],[Stock Réel]]-T_stock[[#This Row],[Stock Actuel]]+T_stock[[#This Row],[Modif inventaire]]) ->  | R16: 0 | S16: =IFERROR(VLOOKUP(T_stock[[#This Row],[ Notre Référence]],[2]!T_Inventaire[#Data],MATCH(T_stock[[#Headers],[Quantité]],[2]!T_Inventaire[#Headers],0),FALSE),0) -> 0
E17: 72940 | F17: =VLOOKUP(T_stock[[#This Row],[N° Série]],N°série[#All],7,FALSE) -> ALL FER 97200 16 AC SAT MONO V0 | G17: =VLOOKUP(T_stock[[#This Row],[N° Série]],N°série[#All],2,FALSE) -> 0 | J17: 0 | K17: =VLOOKUP(T_stock[[#This Row],[N° Série]],N°série[#All],8,FALSE) -> 900 | L17: =IF($E17<>0,K17+SUMPRODUCT((T_entrée[N° Article Client]=$E17)*T_entrée[Quantité])-SUMPRODUCT((T_sortie[Référence]=T_stock[[#This Row],[N° Série]])*T_sortie[Quantité]),0) -> 900 | N17: Correct | P17: =T_stock[[#This Row],[Quantité]] -> 0 | Q17: =IF(T_stock[[#This Row],[Stock Réel]]=0,"",T_stock[[#This Row],[Stock Réel]]-T_stock[[#This Row],[Stock Actuel]]+T_stock[[#This Row],[Modif inventaire]]) ->  | R17: 0 | S17: =IFERROR(VLOOKUP(T_stock[[#This Row],[ Notre Référence]],[2]!T_Inventaire[#Data],MATCH(T_stock[[#Headers],[Quantité]],[2]!T_Inventaire[#Headers],0),FALSE),0) -> 0
E18: 72903 | F18: =VLOOKUP(T_stock[[#This Row],[N° Série]],N°série[#All],7,FALSE) -> CVE ASS 12/313 AC904L TERM | G18: =VLOOKUP(T_stock[[#This Row],[N° Série]],N°série[#All],2,FALSE) -> 0 | J18: 0 | K18: =VLOOKUP(T_stock[[#This Row],[N° Série]],N°série[#All],8,FALSE) -> 500 | L18: =IF($E18<>0,K18+SUMPRODUCT((T_entrée[N° Article Client]=$E18)*T_entrée[Quantité])-SUMPRODUCT((T_sortie[Référence]=T_stock[[#This Row],[N° Série]])*T_sortie[Quantité]),0) -> 500 | N18: Correct | P18: =T_stock[[#This Row],[Quantité]] -> 0 | Q18: =IF(T_stock[[#This Row],[Stock Réel]]=0,"",T_stock[[#This Row],[Stock Réel]]-T_stock[[#This Row],[Stock Actuel]]+T_stock[[#This Row],[Modif inventaire]]) ->  | R18: 0 | S18: =IFERROR(VLOOKUP(T_stock[[#This Row],[ Notre Référence]],[2]!T_Inventaire[#Data],MATCH(T_stock[[#Headers],[Quantité]],[2]!T_Inventaire[#Headers],0),FALSE),0) -> 0
E19: 72904 | F19: =VLOOKUP(T_stock[[#This Row],[N° Série]],N°série[#All],7,FALSE) -> SEC 15/313 AC904L TERM SPLE | G19: =VLOOKUP(T_stock[[#This Row],[N° Série]],N°série[#All],2,FALSE) -> 0 | J19: 0 | K19: =VLOOKUP(T_stock[[#This Row],[N° Série]],N°série[#All],8,FALSE) -> 1000 | L19: =IF($E19<>0,K19+SUMPRODUCT((T_entrée[N° Article Client]=$E19)*T_entrée[Quantité])-SUMPRODUCT((T_sortie[Référence]=T_stock[[#This Row],[N° Série]])*T_sortie[Quantité]),0) -> 1000 | N19: Correct | P19: =T_stock[[#This Row],[Quantité]] -> 0 | Q19: =IF(T_stock[[#This Row],[Stock Réel]]=0,"",T_stock[[#This Row],[Stock Réel]]-T_stock[[#This Row],[Stock Actuel]]+T_stock[[#This Row],[Modif inventaire]]) ->  | R19: 0 | S19: =IFERROR(VLOOKUP(T_stock[[#This Row],[ Notre Référence]],[2]!T_Inventaire[#Data],MATCH(T_stock[[#Headers],[Quantité]],[2]!T_Inventaire[#Headers],0),FALSE),0) -> 0
E20: 72910 | F20: =VLOOKUP(T_stock[[#This Row],[N° Série]],N°série[#All],7,FALSE) -> CVE 15/313 AC904L SAT | G20: =VLOOKUP(T_stock[[#This Row],[N° Série]],N°série[#All],2,FALSE) -> 0 | J20: =IF(L20<=0,"",L20*I20) -> 0 | K20: =VLOOKUP(T_stock[[#This Row],[N° Série]],N°série[#All],8,FALSE) -> 526 | L20: =IF($E20<>0,K20+SUMPRODUCT((T_entrée[N° Article Client]=$E20)*T_entrée[Quantité])-SUMPRODUCT((T_sortie[Référence]=T_stock[[#This Row],[N° Série]])*T_sortie[Quantité]),0) -> 526 | N20: =IF(L20<M20,"ALERTE","Correct") -> Correct | P20: =T_stock[[#This Row],[Quantité]] -> 0 | Q20: =IF(T_stock[[#This Row],[Stock Réel]]=0,"",T_stock[[#This Row],[Stock Réel]]-T_stock[[#This Row],[Stock Actuel]]+T_stock[[#This Row],[Modif inventaire]]) ->  | R20: =B20 -> 0 | S20: =IFERROR(VLOOKUP(T_stock[[#This Row],[ Notre Référence]],[2]!T_Inventaire[#Data],MATCH(T_stock[[#Headers],[Quantité]],[2]!T_Inventaire[#Headers],0),FALSE),0) -> 0
E21: 72913 | F21: =VLOOKUP(T_stock[[#This Row],[N° Série]],N°série[#All],7,FALSE) -> CVE ASS PLQ 15/423 RL18J TERM | G21: =VLOOKUP(T_stock[[#This Row],[N° Série]],N°série[#All],2,FALSE) -> 0 | J21: 0 | K21: =VLOOKUP(T_stock[[#This Row],[N° Série]],N°série[#All],8,FALSE) -> 248 | L21: =IF($E21<>0,K21+SUMPRODUCT((T_entrée[N° Article Client]=$E21)*T_entrée[Quantité])-SUMPRODUCT((T_sortie[Référence]=T_stock[[#This Row],[N° Série]])*T_sortie[Quantité]),0) -> 248 | N21: Correct | P21: =T_stock[[#This Row],[Quantité]] -> 0 | Q21: =IF(T_stock[[#This Row],[Stock Réel]]=0,"",T_stock[[#This Row],[Stock Réel]]-T_stock[[#This Row],[Stock Actuel]]+T_stock[[#This Row],[Modif inventaire]]) ->  | R21: 0 | S21: =IFERROR(VLOOKUP(T_stock[[#This Row],[ Notre Référence]],[2]!T_Inventaire[#Data],MATCH(T_stock[[#Headers],[Quantité]],[2]!T_Inventaire[#Headers],0),FALSE),0) -> 0
E22: 72912 | F22: =VLOOKUP(T_stock[[#This Row],[N° Série]],N°série[#All],7,FALSE) -> SEC ASS 15/313 RL18R-410 TERM | G22: =VLOOKUP(T_stock[[#This Row],[N° Série]],N°série[#All],2,FALSE) -> 0 | J22: 0 | K22: =VLOOKUP(T_stock[[#This Row],[N° Série]],N°série[#All],8,FALSE) -> 764 | L22: =IF($E22<>0,K22+SUMPRODUCT((T_entrée[N° Article Client]=$E22)*T_entrée[Quantité])-SUMPRODUCT((T_sortie[Référence]=T_stock[[#This Row],[N° Série]])*T_sortie[Quantité]),0) -> 764 | N22: Correct | P22: =T_stock[[#This Row],[Quantité]] -> 0 | Q22: =IF(T_stock[[#This Row],[Stock Réel]]=0,"",T_stock[[#This Row],[Stock Réel]]-T_stock[[#This Row],[Stock Actuel]]+T_stock[[#This Row],[Modif inventaire]]) ->  | R22: 0 | S22: =IFERROR(VLOOKUP(T_stock[[#This Row],[ Notre Référence]],[2]!T_Inventaire[#Data],MATCH(T_stock[[#Headers],[Quantité]],[2]!T_Inventaire[#Headers],0),FALSE),0) -> 0
E23: 72941 | F23: =VLOOKUP(T_stock[[#This Row],[N° Série]],N°série[#All],7,FALSE) -> CVE 15/423 AC904L SAT | G23: =VLOOKUP(T_stock[[#This Row],[N° Série]],N°série[#All],2,FALSE) -> 0 | J23: 0 | K23: =VLOOKUP(T_stock[[#This Row],[N° Série]],N°série[#All],8,FALSE) -> 500 | L23: =IF($E23<>0,K23+SUMPRODUCT((T_entrée[N° Article Client]=$E23)*T_entrée[Quantité])-SUMPRODUCT((T_sortie[Référence]=T_stock[[#This Row],[N° Série]])*T_sortie[Quantité]),0) -> 500 | N23: Correct | P23: =T_stock[[#This Row],[Quantité]] -> 0 | Q23: =IF(T_stock[[#This Row],[Stock Réel]]=0,"",T_stock[[#This Row],[Stock Réel]]-T_stock[[#This Row],[Stock Actuel]]+T_stock[[#This Row],[Modif inventaire]]) ->  | R23: 0 | S23: =IFERROR(VLOOKUP(T_stock[[#This Row],[ Notre Référence]],[2]!T_Inventaire[#Data],MATCH(T_stock[[#Headers],[Quantité]],[2]!T_Inventaire[#Headers],0),FALSE),0) -> 0
E24: 72915 | F24: =VLOOKUP(T_stock[[#This Row],[N° Série]],N°série[#All],7,FALSE) -> CVE ASS 15/313 RL18J TERM | G24: =VLOOKUP(T_stock[[#This Row],[N° Série]],N°série[#All],2,FALSE) -> 0 | J24: 0 | K24: =VLOOKUP(T_stock[[#This Row],[N° Série]],N°série[#All],8,FALSE) -> 1300 | L24: =IF($E24<>0,K24+SUMPRODUCT((T_entrée[N° Article Client]=$E24)*T_entrée[Quantité])-SUMPRODUCT((T_sortie[Référence]=T_stock[[#This Row],[N° Série]])*T_sortie[Quantité]),0) -> 1300 | N24: Correct | P24: =T_stock[[#This Row],[Quantité]] -> 0 | Q24: =IF(T_stock[[#This Row],[Stock Réel]]=0,"",T_stock[[#This Row],[Stock Réel]]-T_stock[[#This Row],[Stock Actuel]]+T_stock[[#This Row],[Modif inventaire]]) ->  | R24: 0 | S24: =IFERROR(VLOOKUP(T_stock[[#This Row],[ Notre Référence]],[2]!T_Inventaire[#Data],MATCH(T_stock[[#Headers],[Quantité]],[2]!T_Inventaire[#Headers],0),FALSE),0) -> 0
E25: 72942 | F25: =VLOOKUP(T_stock[[#This Row],[N° Série]],N°série[#All],7,FALSE) -> ALL FER 97200 16 AC SAT MONO V0 | G25: =VLOOKUP(T_stock[[#This Row],[N° Série]],N°série[#All],2,FALSE) -> 0 | J25: 0 | K25: =VLOOKUP(T_stock[[#This Row],[N° Série]],N°série[#All],8,FALSE) -> 880 | L25: =IF($E25<>0,K25+SUMPRODUCT((T_entrée[N° Article Client]=$E25)*T_entrée[Quantité])-SUMPRODUCT((T_sortie[Référence]=T_stock[[#This Row],[N° Série]])*T_sortie[Quantité]),0) -> 880 | N25: Correct | P25: =T_stock[[#This Row],[Quantité]] -> 0 | Q25: =IF(T_stock[[#This Row],[Stock Réel]]=0,"",T_stock[[#This Row],[Stock Réel]]-T_stock[[#This Row],[Stock Actuel]]+T_stock[[#This Row],[Modif inventaire]]) ->  | R25: 0 | S25: =IFERROR(VLOOKUP(T_stock[[#This Row],[ Notre Référence]],[2]!T_Inventaire[#Data],MATCH(T_stock[[#Headers],[Quantité]],[2]!T_Inventaire[#Headers],0),FALSE),0) -> 0
E26: 72918 | F26: =VLOOKUP(T_stock[[#This Row],[N° Série]],N°série[#All],7,FALSE) -> SEC 15/313A AC904L TERM SPLE | G26: =VLOOKUP(T_stock[[#This Row],[N° Série]],N°série[#All],2,FALSE) -> 0 | J26: 0 | K26: =VLOOKUP(T_stock[[#This Row],[N° Série]],N°série[#All],8,FALSE) -> 516 | L26: =IF($E26<>0,K26+SUMPRODUCT((T_entrée[N° Article Client]=$E26)*T_entrée[Quantité])-SUMPRODUCT((T_sortie[Référence]=T_stock[[#This Row],[N° Série]])*T_sortie[Quantité]),0) -> 516 | N26: Correct | P26: =T_stock[[#This Row],[Quantité]] -> 0 | Q26: =IF(T_stock[[#This Row],[Stock Réel]]=0,"",T_stock[[#This Row],[Stock Réel]]-T_stock[[#This Row],[Stock Actuel]]+T_stock[[#This Row],[Modif inventaire]]) ->  | R26: 0 | S26: =IFERROR(VLOOKUP(T_stock[[#This Row],[ Notre Référence]],[2]!T_Inventaire[#Data],MATCH(T_stock[[#Headers],[Quantité]],[2]!T_Inventaire[#Headers],0),FALSE),0) -> 0
E27: 72917 | F27: =VLOOKUP(T_stock[[#This Row],[N° Série]],N°série[#All],7,FALSE) -> CVE 13/313A AC904L TERM | G27: =VLOOKUP(T_stock[[#This Row],[N° Série]],N°série[#All],2,FALSE) -> 0 | J27: 0 | K27: =VLOOKUP(T_stock[[#This Row],[N° Série]],N°série[#All],8,FALSE) -> 141 | L27: =IF($E27<>0,K27+SUMPRODUCT((T_entrée[N° Article Client]=$E27)*T_entrée[Quantité])-SUMPRODUCT((T_sortie[Référence]=T_stock[[#This Row],[N° Série]])*T_sortie[Quantité]),0) -> 141 | N27: Correct | P27: =T_stock[[#This Row],[Quantité]] -> 0 | Q27: =IF(T_stock[[#This Row],[Stock Réel]]=0,"",T_stock[[#This Row],[Stock Réel]]-T_stock[[#This Row],[Stock Actuel]]+T_stock[[#This Row],[Modif inventaire]]) ->  | R27: 0 | S27: =IFERROR(VLOOKUP(T_stock[[#This Row],[ Notre Référence]],[2]!T_Inventaire[#Data],MATCH(T_stock[[#Headers],[Quantité]],[2]!T_Inventaire[#Headers],0),FALSE),0) -> 0
E28: 72916 | F28: =VLOOKUP(T_stock[[#This Row],[N° Série]],N°série[#All],7,FALSE) -> SEC 15/313 AC904L TERM SPLE | G28: =VLOOKUP(T_stock[[#This Row],[N° Série]],N°série[#All],2,FALSE) -> 0 | J28: 0 | K28: =VLOOKUP(T_stock[[#This Row],[N° Série]],N°série[#All],8,FALSE) -> 1000 | L28: =IF($E28<>0,K28+SUMPRODUCT((T_entrée[N° Article Client]=$E28)*T_entrée[Quantité])-SUMPRODUCT((T_sortie[Référence]=T_stock[[#This Row],[N° Série]])*T_sortie[Quantité]),0) -> 1000 | N28: Correct | P28: =T_stock[[#This Row],[Quantité]] -> 0 | Q28: =IF(T_stock[[#This Row],[Stock Réel]]=0,"",T_stock[[#This Row],[Stock Réel]]-T_stock[[#This Row],[Stock Actuel]]+T_stock[[#This Row],[Modif inventaire]]) ->  | R28: 0 | S28: =IFERROR(VLOOKUP(T_stock[[#This Row],[ Notre Référence]],[2]!T_Inventaire[#Data],MATCH(T_stock[[#Headers],[Quantité]],[2]!T_Inventaire[#Headers],0),FALSE),0) -> 0
E29: 72943 | F29: =VLOOKUP(T_stock[[#This Row],[N° Série]],N°série[#All],7,FALSE) -> CVE ASS PLQ 15/423 RL18J TERM | G29: =VLOOKUP(T_stock[[#This Row],[N° Série]],N°série[#All],2,FALSE) -> 0 | J29: 0 | K29: =VLOOKUP(T_stock[[#This Row],[N° Série]],N°série[#All],8,FALSE) -> 741 | L29: =IF($E29<>0,K29+SUMPRODUCT((T_entrée[N° Article Client]=$E29)*T_entrée[Quantité])-SUMPRODUCT((T_sortie[Référence]=T_stock[[#This Row],[N° Série]])*T_sortie[Quantité]),0) -> 741 | N29: Correct | P29: =T_stock[[#This Row],[Quantité]] -> 0 | Q29: =IF(T_stock[[#This Row],[Stock Réel]]=0,"",T_stock[[#This Row],[Stock Réel]]-T_stock[[#This Row],[Stock Actuel]]+T_stock[[#This Row],[Modif inventaire]]) ->  | R29: 0 | S29: =IFERROR(VLOOKUP(T_stock[[#This Row],[ Notre Référence]],[2]!T_Inventaire[#Data],MATCH(T_stock[[#Headers],[Quantité]],[2]!T_Inventaire[#Headers],0),FALSE),0) -> 0
E30: 72950 | F30: =VLOOKUP(T_stock[[#This Row],[N° Série]],N°série[#All],7,FALSE) -> CVE 15/443 AC904L SAT | G30: =VLOOKUP(T_stock[[#This Row],[N° Série]],N°série[#All],2,FALSE) -> 0 | J30: 0 | K30: =VLOOKUP(T_stock[[#This Row],[N° Série]],N°série[#All],8,FALSE) -> 400 | L30: =IF($E30<>0,K30+SUMPRODUCT((T_entrée[N° Article Client]=$E30)*T_entrée[Quantité])-SUMPRODUCT((T_sortie[Référence]=T_stock[[#This Row],[N° Série]])*T_sortie[Quantité]),0) -> 400 | N30: Correct | P30: =T_stock[[#This Row],[Quantité]] -> 0 | Q30: =IF(T_stock[[#This Row],[Stock Réel]]=0,"",T_stock[[#This Row],[Stock Réel]]-T_stock[[#This Row],[Stock Actuel]]+T_stock[[#This Row],[Modif inventaire]]) ->  | R30: 0 | S30: =IFERROR(VLOOKUP(T_stock[[#This Row],[ Notre Référence]],[2]!T_Inventaire[#Data],MATCH(T_stock[[#Headers],[Quantité]],[2]!T_Inventaire[#Headers],0),FALSE),0) -> 0
E31: 72920 | F31: =VLOOKUP(T_stock[[#This Row],[N° Série]],N°série[#All],7,FALSE) -> CVE ASS EBL 15/313 AC TERM | G31: =VLOOKUP(T_stock[[#This Row],[N° Série]],N°série[#All],2,FALSE) -> 0 | J31: 0 | K31: =VLOOKUP(T_stock[[#This Row],[N° Série]],N°série[#All],8,FALSE) -> 1000 | L31: =IF($E31<>0,K31+SUMPRODUCT((T_entrée[N° Article Client]=$E31)*T_entrée[Quantité])-SUMPRODUCT((T_sortie[Référence]=T_stock[[#This Row],[N° Série]])*T_sortie[Quantité]),0) -> 1000 | N31: Correct | P31: =T_stock[[#This Row],[Quantité]] -> 0 | Q31: =IF(T_stock[[#This Row],[Stock Réel]]=0,"",T_stock[[#This Row],[Stock Réel]]-T_stock[[#This Row],[Stock Actuel]]+T_stock[[#This Row],[Modif inventaire]]) ->  | R31: 0 | S31: =IFERROR(VLOOKUP(T_stock[[#This Row],[ Notre Référence]],[2]!T_Inventaire[#Data],MATCH(T_stock[[#Headers],[Quantité]],[2]!T_Inventaire[#Headers],0),FALSE),0) -> 0
E32: 72921 | F32: =VLOOKUP(T_stock[[#This Row],[N° Série]],N°série[#All],7,FALSE) -> CVE ASS EBL 15/313 AC TERM | G32: =VLOOKUP(T_stock[[#This Row],[N° Série]],N°série[#All],2,FALSE) -> 0 | J32: 0 | K32: =VLOOKUP(T_stock[[#This Row],[N° Série]],N°série[#All],8,FALSE) -> 772 | L32: =IF($E32<>0,K32+SUMPRODUCT((T_entrée[N° Article Client]=$E32)*T_entrée[Quantité])-SUMPRODUCT((T_sortie[Référence]=T_stock[[#This Row],[N° Série]])*T_sortie[Quantité]),0) -> 772 | N32: Correct | P32: =T_stock[[#This Row],[Quantité]] -> 0 | Q32: =IF(T_stock[[#This Row],[Stock Réel]]=0,"",T_stock[[#This Row],[Stock Réel]]-T_stock[[#This Row],[Stock Actuel]]+T_stock[[#This Row],[Modif inventaire]]) ->  | R32: 0 | S32: =IFERROR(VLOOKUP(T_stock[[#This Row],[ Notre Référence]],[2]!T_Inventaire[#Data],MATCH(T_stock[[#Headers],[Quantité]],[2]!T_Inventaire[#Headers],0),FALSE),0) -> 0
E33: 72930 | F33: =VLOOKUP(T_stock[[#This Row],[N° Série]],N°série[#All],7,FALSE) -> CVE ASS EBL 17/413 AC TERM | G33: =VLOOKUP(T_stock[[#This Row],[N° Série]],N°série[#All],2,FALSE) -> 0 | J33: 0 | K33: =VLOOKUP(T_stock[[#This Row],[N° Série]],N°série[#All],8,FALSE) -> 75 | L33: =IF($E33<>0,K33+SUMPRODUCT((T_entrée[N° Article Client]=$E33)*T_entrée[Quantité])-SUMPRODUCT((T_sortie[Référence]=T_stock[[#This Row],[N° Série]])*T_sortie[Quantité]),0) -> 75 | N33: Correct | P33: =T_stock[[#This Row],[Quantité]] -> 0 | Q33: =IF(T_stock[[#This Row],[Stock Réel]]=0,"",T_stock[[#This Row],[Stock Réel]]-T_stock[[#This Row],[Stock Actuel]]+T_stock[[#This Row],[Modif inventaire]]) ->  | R33: 0 | S33: =IFERROR(VLOOKUP(T_stock[[#This Row],[ Notre Référence]],[2]!T_Inventaire[#Data],MATCH(T_stock[[#Headers],[Quantité]],[2]!T_Inventaire[#Headers],0),FALSE),0) -> 0
E34: 72922 | F34: =VLOOKUP(T_stock[[#This Row],[N° Série]],N°série[#All],7,FALSE) -> SEC 15/313 AC904L TERM SPLE | G34: =VLOOKUP(T_stock[[#This Row],[N° Série]],N°série[#All],2,FALSE) -> 0 | J34: 0 | K34: =VLOOKUP(T_stock[[#This Row],[N° Série]],N°série[#All],8,FALSE) -> 880 | L34: =IF($E34<>0,K34+SUMPRODUCT((T_entrée[N° Article Client]=$E34)*T_entrée[Quantité])-SUMPRODUCT((T_sortie[Référence]=T_stock[[#This Row],[N° Série]])*T_sortie[Quantité]),0) -> 880 | N34: Correct | P34: =T_stock[[#This Row],[Quantité]] -> 0 | Q34: =IF(T_stock[[#This Row],[Stock Réel]]=0,"",T_stock[[#This Row],[Stock Réel]]-T_stock[[#This Row],[Stock Actuel]]+T_stock[[#This Row],[Modif inventaire]]) ->  | R34: 0 | S34: =IFERROR(VLOOKUP(T_stock[[#This Row],[ Notre Référence]],[2]!T_Inventaire[#Data],MATCH(T_stock[[#Headers],[Quantité]],[2]!T_Inventaire[#Headers],0),FALSE),0) -> 0
E35: 72923 | F35: =VLOOKUP(T_stock[[#This Row],[N° Série]],N°série[#All],7,FALSE) -> SEC 15/313A AC904L TERM SPLE | G35: =VLOOKUP(T_stock[[#This Row],[N° Série]],N°série[#All],2,FALSE) -> 0 | J35: 0 | K35: =VLOOKUP(T_stock[[#This Row],[N° Série]],N°série[#All],8,FALSE) -> 518 | L35: =IF($E35<>0,K35+SUMPRODUCT((T_entrée[N° Article Client]=$E35)*T_entrée[Quantité])-SUMPRODUCT((T_sortie[Référence]=T_stock[[#This Row],[N° Série]])*T_sortie[Quantité]),0) -> 518 | N35: Correct | P35: =T_stock[[#This Row],[Quantité]] -> 0 | Q35: =IF(T_stock[[#This Row],[Stock Réel]]=0,"",T_stock[[#This Row],[Stock Réel]]-T_stock[[#This Row],[Stock Actuel]]+T_stock[[#This Row],[Modif inventaire]]) ->  | R35: 0 | S35: =IFERROR(VLOOKUP(T_stock[[#This Row],[ Notre Référence]],[2]!T_Inventaire[#Data],MATCH(T_stock[[#Headers],[Quantité]],[2]!T_Inventaire[#Headers],0),FALSE),0) -> 0
E36: 72951 | F36: =VLOOKUP(T_stock[[#This Row],[N° Série]],N°série[#All],7,FALSE) -> CVE 15/443 AC904L SAT | G36: =VLOOKUP(T_stock[[#This Row],[N° Série]],N°série[#All],2,FALSE) -> 0 | J36: 0 | K36: =VLOOKUP(T_stock[[#This Row],[N° Série]],N°série[#All],8,FALSE) -> 400 | L36: =IF($E36<>0,K36+SUMPRODUCT((T_entrée[N° Article Client]=$E36)*T_entrée[Quantité])-SUMPRODUCT((T_sortie[Référence]=T_stock[[#This Row],[N° Série]])*T_sortie[Quantité]),0) -> 400 | N36: Correct | P36: =T_stock[[#This Row],[Quantité]] -> 0 | Q36: =IF(T_stock[[#This Row],[Stock Réel]]=0,"",T_stock[[#This Row],[Stock Réel]]-T_stock[[#This Row],[Stock Actuel]]+T_stock[[#This Row],[Modif inventaire]]) ->  | R36: 0 | S36: =IFERROR(VLOOKUP(T_stock[[#This Row],[ Notre Référence]],[2]!T_Inventaire[#Data],MATCH(T_stock[[#Headers],[Quantité]],[2]!T_Inventaire[#Headers],0),FALSE),0) -> 0
E37: 72945 | F37: =VLOOKUP(T_stock[[#This Row],[N° Série]],N°série[#All],7,FALSE) -> CVE 13/313A AC904L TERM | G37: =VLOOKUP(T_stock[[#This Row],[N° Série]],N°série[#All],2,FALSE) -> 0 | J37: 0 | K37: =VLOOKUP(T_stock[[#This Row],[N° Série]],N°série[#All],8,FALSE) -> 159 | L37: =IF($E37<>0,K37+SUMPRODUCT((T_entrée[N° Article Client]=$E37)*T_entrée[Quantité])-SUMPRODUCT((T_sortie[Référence]=T_stock[[#This Row],[N° Série]])*T_sortie[Quantité]),0) -> 159 | N37: Correct | P37: =T_stock[[#This Row],[Quantité]] -> 0 | Q37: =IF(T_stock[[#This Row],[Stock Réel]]=0,"",T_stock[[#This Row],[Stock Réel]]-T_stock[[#This Row],[Stock Actuel]]+T_stock[[#This Row],[Modif inventaire]]) ->  | R37: 0 | S37: =IFERROR(VLOOKUP(T_stock[[#This Row],[ Notre Référence]],[2]!T_Inventaire[#Data],MATCH(T_stock[[#Headers],[Quantité]],[2]!T_Inventaire[#Headers],0),FALSE),0) -> 0
E38: 72946 | F38: =VLOOKUP(T_stock[[#This Row],[N° Série]],N°série[#All],7,FALSE) -> CVE 15/313 AC904L SAT | G38: =VLOOKUP(T_stock[[#This Row],[N° Série]],N°série[#All],2,FALSE) -> 0 | J38: 0 | K38: =VLOOKUP(T_stock[[#This Row],[N° Série]],N°série[#All],8,FALSE) -> 186 | L38: =IF($E38<>0,K38+SUMPRODUCT((T_entrée[N° Article Client]=$E38)*T_entrée[Quantité])-SUMPRODUCT((T_sortie[Référence]=T_stock[[#This Row],[N° Série]])*T_sortie[Quantité]),0) -> 186 | N38: Correct | P38: =T_stock[[#This Row],[Quantité]] -> 0 | Q38: =IF(T_stock[[#This Row],[Stock Réel]]=0,"",T_stock[[#This Row],[Stock Réel]]-T_stock[[#This Row],[Stock Actuel]]+T_stock[[#This Row],[Modif inventaire]]) ->  | R38: 0 | S38: =IFERROR(VLOOKUP(T_stock[[#This Row],[ Notre Référence]],[2]!T_Inventaire[#Data],MATCH(T_stock[[#Headers],[Quantité]],[2]!T_Inventaire[#Headers],0),FALSE),0) -> 0
E39: 72925 | F39: =VLOOKUP(T_stock[[#This Row],[N° Série]],N°série[#All],7,FALSE) -> SEC ASS 15/423 AC TERM | G39: =VLOOKUP(T_stock[[#This Row],[N° Série]],N°série[#All],2,FALSE) -> 0 | J39: 0 | K39: =VLOOKUP(T_stock[[#This Row],[N° Série]],N°série[#All],8,FALSE) -> 646 | L39: =IF($E39<>0,K39+SUMPRODUCT((T_entrée[N° Article Client]=$E39)*T_entrée[Quantité])-SUMPRODUCT((T_sortie[Référence]=T_stock[[#This Row],[N° Série]])*T_sortie[Quantité]),0) -> 646 | N39: Correct | P39: =T_stock[[#This Row],[Quantité]] -> 0 | Q39: =IF(T_stock[[#This Row],[Stock Réel]]=0,"",T_stock[[#This Row],[Stock Réel]]-T_stock[[#This Row],[Stock Actuel]]+T_stock[[#This Row],[Modif inventaire]]) ->  | R39: 0 | S39: =IFERROR(VLOOKUP(T_stock[[#This Row],[ Notre Référence]],[2]!T_Inventaire[#Data],MATCH(T_stock[[#Headers],[Quantité]],[2]!T_Inventaire[#Headers],0),FALSE),0) -> 0
E40: 72944 | F40: =VLOOKUP(T_stock[[#This Row],[N° Série]],N°série[#All],7,FALSE) -> CVE ASS PLQ 15/423 RL18R-410 TERM | G40: =VLOOKUP(T_stock[[#This Row],[N° Série]],N°série[#All],2,FALSE) -> 0 | J40: 0 | K40: =VLOOKUP(T_stock[[#This Row],[N° Série]],N°série[#All],8,FALSE) -> 361 | L40: =IF($E40<>0,K40+SUMPRODUCT((T_entrée[N° Article Client]=$E40)*T_entrée[Quantité])-SUMPRODUCT((T_sortie[Référence]=T_stock[[#This Row],[N° Série]])*T_sortie[Quantité]),0) -> 361 | N40: Correct | P40: =T_stock[[#This Row],[Quantité]] -> 0 | Q40: =IF(T_stock[[#This Row],[Stock Réel]]=0,"",T_stock[[#This Row],[Stock Réel]]-T_stock[[#This Row],[Stock Actuel]]+T_stock[[#This Row],[Modif inventaire]]) ->  | R40: 0 | S40: =IFERROR(VLOOKUP(T_stock[[#This Row],[ Notre Référence]],[2]!T_Inventaire[#Data],MATCH(T_stock[[#Headers],[Quantité]],[2]!T_Inventaire[#Headers],0),FALSE),0) -> 0
E41: 72947 | F41: =VLOOKUP(T_stock[[#This Row],[N° Série]],N°série[#All],7,FALSE) -> ALL FER 97220 17 AC SAT MONO | G41: =VLOOKUP(T_stock[[#This Row],[N° Série]],N°série[#All],2,FALSE) -> 0 | J41: 0 | K41: =VLOOKUP(T_stock[[#This Row],[N° Série]],N°série[#All],8,FALSE) -> 900 | L41: =IF($E41<>0,K41+SUMPRODUCT((T_entrée[N° Article Client]=$E41)*T_entrée[Quantité])-SUMPRODUCT((T_sortie[Référence]=T_stock[[#This Row],[N° Série]])*T_sortie[Quantité]),0) -> 900 | N41: Correct | P41: =T_stock[[#This Row],[Quantité]] -> 0 | Q41: =IF(T_stock[[#This Row],[Stock Réel]]=0,"",T_stock[[#This Row],[Stock Réel]]-T_stock[[#This Row],[Stock Actuel]]+T_stock[[#This Row],[Modif inventaire]]) ->  | R41: 0 | S41: =IFERROR(VLOOKUP(T_stock[[#This Row],[ Notre Référence]],[2]!T_Inventaire[#Data],MATCH(T_stock[[#Headers],[Quantité]],[2]!T_Inventaire[#Headers],0),FALSE),0) -> 0
E42: 72948 | F42: =VLOOKUP(T_stock[[#This Row],[N° Série]],N°série[#All],7,FALSE) -> SEC ASS 15/313 RL18R-410 TERM | G42: =VLOOKUP(T_stock[[#This Row],[N° Série]],N°série[#All],2,FALSE) -> 0 | J42: 0 | K42: =VLOOKUP(T_stock[[#This Row],[N° Série]],N°série[#All],8,FALSE) -> 1053 | L42: =IF($E42<>0,K42+SUMPRODUCT((T_entrée[N° Article Client]=$E42)*T_entrée[Quantité])-SUMPRODUCT((T_sortie[Référence]=T_stock[[#This Row],[N° Série]])*T_sortie[Quantité]),0) -> 1053 | N42: Correct | P42: =T_stock[[#This Row],[Quantité]] -> 0 | Q42: =IF(T_stock[[#This Row],[Stock Réel]]=0,"",T_stock[[#This Row],[Stock Réel]]-T_stock[[#This Row],[Stock Actuel]]+T_stock[[#This Row],[Modif inventaire]]) ->  | R42: 0 | S42: =IFERROR(VLOOKUP(T_stock[[#This Row],[ Notre Référence]],[2]!T_Inventaire[#Data],MATCH(T_stock[[#Headers],[Quantité]],[2]!T_Inventaire[#Headers],0),FALSE),0) -> 0
E43: 72968 | F43: =VLOOKUP(T_stock[[#This Row],[N° Série]],N°série[#All],7,FALSE) -> SEC ASS 15/400 AC SAT | G43: =VLOOKUP(T_stock[[#This Row],[N° Série]],N°série[#All],2,FALSE) -> 0 | J43: 0 | K43: =VLOOKUP(T_stock[[#This Row],[N° Série]],N°série[#All],8,FALSE) -> 500 | L43: =IF($E43<>0,K43+SUMPRODUCT((T_entrée[N° Article Client]=$E43)*T_entrée[Quantité])-SUMPRODUCT((T_sortie[Référence]=T_stock[[#This Row],[N° Série]])*T_sortie[Quantité]),0) -> 500 | N43: Correct | P43: =T_stock[[#This Row],[Quantité]] -> 0 | Q43: =IF(T_stock[[#This Row],[Stock Réel]]=0,"",T_stock[[#This Row],[Stock Réel]]-T_stock[[#This Row],[Stock Actuel]]+T_stock[[#This Row],[Modif inventaire]]) ->  | R43: 0 | S43: =IFERROR(VLOOKUP(T_stock[[#This Row],[ Notre Référence]],[2]!T_Inventaire[#Data],MATCH(T_stock[[#Headers],[Quantité]],[2]!T_Inventaire[#Headers],0),FALSE),0) -> 0
E44: 72966 | F44: =VLOOKUP(T_stock[[#This Row],[N° Série]],N°série[#All],7,FALSE) -> CVE ASS EBL 15/313 AC TERM | G44: =VLOOKUP(T_stock[[#This Row],[N° Série]],N°série[#All],2,FALSE) -> 0 | J44: 0 | K44: =VLOOKUP(T_stock[[#This Row],[N° Série]],N°série[#All],8,FALSE) -> 1000 | L44: =IF($E44<>0,K44+SUMPRODUCT((T_entrée[N° Article Client]=$E44)*T_entrée[Quantité])-SUMPRODUCT((T_sortie[Référence]=T_stock[[#This Row],[N° Série]])*T_sortie[Quantité]),0) -> 1000 | N44: Correct | P44: =T_stock[[#This Row],[Quantité]] -> 0 | Q44: =IF(T_stock[[#This Row],[Stock Réel]]=0,"",T_stock[[#This Row],[Stock Réel]]-T_stock[[#This Row],[Stock Actuel]]+T_stock[[#This Row],[Modif inventaire]]) ->  | R44: 0 | S44: =IFERROR(VLOOKUP(T_stock[[#This Row],[ Notre Référence]],[2]!T_Inventaire[#Data],MATCH(T_stock[[#Headers],[Quantité]],[2]!T_Inventaire[#Headers],0),FALSE),0) -> 0
E45: 72967 | F45: =VLOOKUP(T_stock[[#This Row],[N° Série]],N°série[#All],7,FALSE) -> SEC 15/313 AC904L TERM SPLE | G45: =VLOOKUP(T_stock[[#This Row],[N° Série]],N°série[#All],2,FALSE) -> 0 | J45: 0 | K45: =VLOOKUP(T_stock[[#This Row],[N° Série]],N°série[#All],8,FALSE) -> 269 | L45: =IF($E45<>0,K45+SUMPRODUCT((T_entrée[N° Article Client]=$E45)*T_entrée[Quantité])-SUMPRODUCT((T_sortie[Référence]=T_stock[[#This Row],[N° Série]])*T_sortie[Quantité]),0) -> 269 | N45: Correct | P45: =T_stock[[#This Row],[Quantité]] -> 0 | Q45: =IF(T_stock[[#This Row],[Stock Réel]]=0,"",T_stock[[#This Row],[Stock Réel]]-T_stock[[#This Row],[Stock Actuel]]+T_stock[[#This Row],[Modif inventaire]]) ->  | R45: 0 | S45: =IFERROR(VLOOKUP(T_stock[[#This Row],[ Notre Référence]],[2]!T_Inventaire[#Data],MATCH(T_stock[[#Headers],[Quantité]],[2]!T_Inventaire[#Headers],0),FALSE),0) -> 0
E46: 72971 | F46: =VLOOKUP(T_stock[[#This Row],[N° Série]],N°série[#All],7,FALSE) -> CVE ASS PLQ 15/443 RL18J TERM | G46: =VLOOKUP(T_stock[[#This Row],[N° Série]],N°série[#All],2,FALSE) -> 0 | J46: 0 | K46: =VLOOKUP(T_stock[[#This Row],[N° Série]],N°série[#All],8,FALSE) -> 592 | L46: =IF($E46<>0,K46+SUMPRODUCT((T_entrée[N° Article Client]=$E46)*T_entrée[Quantité])-SUMPRODUCT((T_sortie[Référence]=T_stock[[#This Row],[N° Série]])*T_sortie[Quantité]),0) -> 592 | N46: Correct | P46: =T_stock[[#This Row],[Quantité]] -> 0 | Q46: =IF(T_stock[[#This Row],[Stock Réel]]=0,"",T_stock[[#This Row],[Stock Réel]]-T_stock[[#This Row],[Stock Actuel]]+T_stock[[#This Row],[Modif inventaire]]) ->  | R46: 0 | S46: =IFERROR(VLOOKUP(T_stock[[#This Row],[ Notre Référence]],[2]!T_Inventaire[#Data],MATCH(T_stock[[#Headers],[Quantité]],[2]!T_Inventaire[#Headers],0),FALSE),0) -> 0
E47: 72972 | F47: =VLOOKUP(T_stock[[#This Row],[N° Série]],N°série[#All],7,FALSE) -> CVE 15/313 AC904L SAT | G47: =VLOOKUP(T_stock[[#This Row],[N° Série]],N°série[#All],2,FALSE) -> 0 | J47: 0 | K47: =VLOOKUP(T_stock[[#This Row],[N° Série]],N°série[#All],8,FALSE) -> 250 | L47: =IF($E47<>0,K47+SUMPRODUCT((T_entrée[N° Article Client]=$E47)*T_entrée[Quantité])-SUMPRODUCT((T_sortie[Référence]=T_stock[[#This Row],[N° Série]])*T_sortie[Quantité]),0) -> 250 | N47: Correct | P47: =T_stock[[#This Row],[Quantité]] -> 0 | Q47: =IF(T_stock[[#This Row],[Stock Réel]]=0,"",T_stock[[#This Row],[Stock Réel]]-T_stock[[#This Row],[Stock Actuel]]+T_stock[[#This Row],[Modif inventaire]]) ->  | R47: 0 | S47: =IFERROR(VLOOKUP(T_stock[[#This Row],[ Notre Référence]],[2]!T_Inventaire[#Data],MATCH(T_stock[[#Headers],[Quantité]],[2]!T_Inventaire[#Headers],0),FALSE),0) -> 0
E48: 72973 | F48: =VLOOKUP(T_stock[[#This Row],[N° Série]],N°série[#All],7,FALSE) -> CVE 15/423 AC904L SAT | G48: =VLOOKUP(T_stock[[#This Row],[N° Série]],N°série[#All],2,FALSE) -> 0 | J48: 0 | K48: =VLOOKUP(T_stock[[#This Row],[N° Série]],N°série[#All],8,FALSE) -> 400 | L48: =IF($E48<>0,K48+SUMPRODUCT((T_entrée[N° Article Client]=$E48)*T_entrée[Quantité])-SUMPRODUCT((T_sortie[Référence]=T_stock[[#This Row],[N° Série]])*T_sortie[Quantité]),0) -> 400 | N48: Correct | P48: =T_stock[[#This Row],[Quantité]] -> 0 | Q48: =IF(T_stock[[#This Row],[Stock Réel]]=0,"",T_stock[[#This Row],[Stock Réel]]-T_stock[[#This Row],[Stock Actuel]]+T_stock[[#This Row],[Modif inventaire]]) ->  | R48: 0 | S48: =IFERROR(VLOOKUP(T_stock[[#This Row],[ Notre Référence]],[2]!T_Inventaire[#Data],MATCH(T_stock[[#Headers],[Quantité]],[2]!T_Inventaire[#Headers],0),FALSE),0) -> 0
E49: 72970 | F49: =VLOOKUP(T_stock[[#This Row],[N° Série]],N°série[#All],7,FALSE) -> SEC ASS 14/400 RL18R-410 TERM | G49: =VLOOKUP(T_stock[[#This Row],[N° Série]],N°série[#All],2,FALSE) -> 0 | J49: 0 | K49: =VLOOKUP(T_stock[[#This Row],[N° Série]],N°série[#All],8,FALSE) -> 144 | L49: =IF($E49<>0,K49+SUMPRODUCT((T_entrée[N° Article Client]=$E49)*T_entrée[Quantité])-SUMPRODUCT((T_sortie[Référence]=T_stock[[#This Row],[N° Série]])*T_sortie[Quantité]),0) -> 144 | N49: Correct | P49: =T_stock[[#This Row],[Quantité]] -> 0 | Q49: =IF(T_stock[[#This Row],[Stock Réel]]=0,"",T_stock[[#This Row],[Stock Réel]]-T_stock[[#This Row],[Stock Actuel]]+T_stock[[#This Row],[Modif inventaire]]) ->  | R49: 0 | S49: =IFERROR(VLOOKUP(T_stock[[#This Row],[ Notre Référence]],[2]!T_Inventaire[#Data],MATCH(T_stock[[#Headers],[Quantité]],[2]!T_Inventaire[#Headers],0),FALSE),0) -> 0
E50: 72969 | F50: =VLOOKUP(T_stock[[#This Row],[N° Série]],N°série[#All],7,FALSE) -> SEC ASS 17/400 AC SAT | G50: =VLOOKUP(T_stock[[#This Row],[N° Série]],N°série[#All],2,FALSE) -> 0 | J50: 0 | K50: =VLOOKUP(T_stock[[#This Row],[N° Série]],N°série[#All],8,FALSE) -> 515 | L50: =IF($E50<>0,K50+SUMPRODUCT((T_entrée[N° Article Client]=$E50)*T_entrée[Quantité])-SUMPRODUCT((T_sortie[Référence]=T_stock[[#This Row],[N° Série]])*T_sortie[Quantité]),0) -> 515 | N50: Correct | P50: =T_stock[[#This Row],[Quantité]] -> 0 | Q50: =IF(T_stock[[#This Row],[Stock Réel]]=0,"",T_stock[[#This Row],[Stock Réel]]-T_stock[[#This Row],[Stock Actuel]]+T_stock[[#This Row],[Modif inventaire]]) ->  | R50: 0 | S50: =IFERROR(VLOOKUP(T_stock[[#This Row],[ Notre Référence]],[2]!T_Inventaire[#Data],MATCH(T_stock[[#Headers],[Quantité]],[2]!T_Inventaire[#Headers],0),FALSE),0) -> 0
E51: 72924 | F51: =VLOOKUP(T_stock[[#This Row],[N° Série]],N°série[#All],7,FALSE) -> SEC ASS 15/400 AC SAT | G51: =VLOOKUP(T_stock[[#This Row],[N° Série]],N°série[#All],2,FALSE) -> 0 | J51: 0 | K51: =VLOOKUP(T_stock[[#This Row],[N° Série]],N°série[#All],8,FALSE) -> 989 | L51: =IF($E51<>0,K51+SUMPRODUCT((T_entrée[N° Article Client]=$E51)*T_entrée[Quantité])-SUMPRODUCT((T_sortie[Référence]=T_stock[[#This Row],[N° Série]])*T_sortie[Quantité]),0) -> 989 | N51: Correct | P51: =T_stock[[#This Row],[Quantité]] -> 0 | Q51: =IF(T_stock[[#This Row],[Stock Réel]]=0,"",T_stock[[#This Row],[Stock Réel]]-T_stock[[#This Row],[Stock Actuel]]+T_stock[[#This Row],[Modif inventaire]]) ->  | R51: 0 | S51: =IFERROR(VLOOKUP(T_stock[[#This Row],[ Notre Référence]],[2]!T_Inventaire[#Data],MATCH(T_stock[[#Headers],[Quantité]],[2]!T_Inventaire[#Headers],0),FALSE),0) -> 0
E52: 72919 | F52: =VLOOKUP(T_stock[[#This Row],[N° Série]],N°série[#All],7,FALSE) -> SEC ASS 15/423 AC TERM | G52: =VLOOKUP(T_stock[[#This Row],[N° Série]],N°série[#All],2,FALSE) -> 0 | J52: 0 | K52: =VLOOKUP(T_stock[[#This Row],[N° Série]],N°série[#All],8,FALSE) -> 1029 | L52: =IF($E52<>0,K52+SUMPRODUCT((T_entrée[N° Article Client]=$E52)*T_entrée[Quantité])-SUMPRODUCT((T_sortie[Référence]=T_stock[[#This Row],[N° Série]])*T_sortie[Quantité]),0) -> 1029 | N52: Correct | P52: =T_stock[[#This Row],[Quantité]] -> 0 | Q52: =IF(T_stock[[#This Row],[Stock Réel]]=0,"",T_stock[[#This Row],[Stock Réel]]-T_stock[[#This Row],[Stock Actuel]]+T_stock[[#This Row],[Modif inventaire]]) ->  | R52: 0 | S52: =IFERROR(VLOOKUP(T_stock[[#This Row],[ Notre Référence]],[2]!T_Inventaire[#Data],MATCH(T_stock[[#Headers],[Quantité]],[2]!T_Inventaire[#Headers],0),FALSE),0) -> 0
E53: 72978 | F53: =VLOOKUP(T_stock[[#This Row],[N° Série]],N°série[#All],7,FALSE) -> CVE ASS PLQ 15/423 RL18J TERM | G53: =VLOOKUP(T_stock[[#This Row],[N° Série]],N°série[#All],2,FALSE) -> 0 | J53: 0 | K53: =VLOOKUP(T_stock[[#This Row],[N° Série]],N°série[#All],8,FALSE) -> 248 | L53: =IF($E53<>0,K53+SUMPRODUCT((T_entrée[N° Article Client]=$E53)*T_entrée[Quantité])-SUMPRODUCT((T_sortie[Référence]=T_stock[[#This Row],[N° Série]])*T_sortie[Quantité]),0) -> 248 | N53: Correct | P53: =T_stock[[#This Row],[Quantité]] -> 0 | Q53: =IF(T_stock[[#This Row],[Stock Réel]]=0,"",T_stock[[#This Row],[Stock Réel]]-T_stock[[#This Row],[Stock Actuel]]+T_stock[[#This Row],[Modif inventaire]]) ->  | R53: 0 | S53: =IFERROR(VLOOKUP(T_stock[[#This Row],[ Notre Référence]],[2]!T_Inventaire[#Data],MATCH(T_stock[[#Headers],[Quantité]],[2]!T_Inventaire[#Headers],0),FALSE),0) -> 0
E54: 72949 | F54: =VLOOKUP(T_stock[[#This Row],[N° Série]],N°série[#All],7,FALSE) -> SEC ASS 12/313 RL18J TERM | G54: =VLOOKUP(T_stock[[#This Row],[N° Série]],N°série[#All],2,FALSE) -> 0 | J54: 0 | K54: =VLOOKUP(T_stock[[#This Row],[N° Série]],N°série[#All],8,FALSE) -> 311 | L54: =IF($E54<>0,K54+SUMPRODUCT((T_entrée[N° Article Client]=$E54)*T_entrée[Quantité])-SUMPRODUCT((T_sortie[Référence]=T_stock[[#This Row],[N° Série]])*T_sortie[Quantité]),0) -> 311 | N54: Correct | P54: =T_stock[[#This Row],[Quantité]] -> 0 | Q54: =IF(T_stock[[#This Row],[Stock Réel]]=0,"",T_stock[[#This Row],[Stock Réel]]-T_stock[[#This Row],[Stock Actuel]]+T_stock[[#This Row],[Modif inventaire]]) ->  | R54: 0 | S54: =IFERROR(VLOOKUP(T_stock[[#This Row],[ Notre Référence]],[2]!T_Inventaire[#Data],MATCH(T_stock[[#Headers],[Quantité]],[2]!T_Inventaire[#Headers],0),FALSE),0) -> 0
E55: 72981 | F55: =VLOOKUP(T_stock[[#This Row],[N° Série]],N°série[#All],7,FALSE) -> SEC 15/313 AC904L TERM SPLE | G55: =VLOOKUP(T_stock[[#This Row],[N° Série]],N°série[#All],2,FALSE) -> 0 | J55: 0 | K55: =VLOOKUP(T_stock[[#This Row],[N° Série]],N°série[#All],8,FALSE) -> 1000 | L55: =IF($E55<>0,K55+SUMPRODUCT((T_entrée[N° Article Client]=$E55)*T_entrée[Quantité])-SUMPRODUCT((T_sortie[Référence]=T_stock[[#This Row],[N° Série]])*T_sortie[Quantité]),0) -> 1000 | N55: Correct | P55: =T_stock[[#This Row],[Quantité]] -> 0 | Q55: =IF(T_stock[[#This Row],[Stock Réel]]=0,"",T_stock[[#This Row],[Stock Réel]]-T_stock[[#This Row],[Stock Actuel]]+T_stock[[#This Row],[Modif inventaire]]) ->  | R55: 0 | S55: =IFERROR(VLOOKUP(T_stock[[#This Row],[ Notre Référence]],[2]!T_Inventaire[#Data],MATCH(T_stock[[#Headers],[Quantité]],[2]!T_Inventaire[#Headers],0),FALSE),0) -> 0
E56: 72979 | F56: =VLOOKUP(T_stock[[#This Row],[N° Série]],N°série[#All],7,FALSE) -> CVE 15/313 AC904L SAT | G56: =VLOOKUP(T_stock[[#This Row],[N° Série]],N°série[#All],2,FALSE) -> 32748 | J56: 0 | K56: =VLOOKUP(T_stock[[#This Row],[N° Série]],N°série[#All],8,FALSE) -> 250 | L56: =IF($E56<>0,K56+SUMPRODUCT((T_entrée[N° Article Client]=$E56)*T_entrée[Quantité])-SUMPRODUCT((T_sortie[Référence]=T_stock[[#This Row],[N° Série]])*T_sortie[Quantité]),0) -> 250 | N56: Correct | P56: =T_stock[[#This Row],[Quantité]] -> 0 | Q56: =IF(T_stock[[#This Row],[Stock Réel]]=0,"",T_stock[[#This Row],[Stock Réel]]-T_stock[[#This Row],[Stock Actuel]]+T_stock[[#This Row],[Modif inventaire]]) ->  | R56: 0 | S56: =IFERROR(VLOOKUP(T_stock[[#This Row],[ Notre Référence]],[2]!T_Inventaire[#Data],MATCH(T_stock[[#Headers],[Quantité]],[2]!T_Inventaire[#Headers],0),FALSE),0) -> 0
E57: 72976 | F57: =VLOOKUP(T_stock[[#This Row],[N° Série]],N°série[#All],7,FALSE) -> SEC ASS 15/400 AC SAT | G57: =VLOOKUP(T_stock[[#This Row],[N° Série]],N°série[#All],2,FALSE) -> 0 | J57: 0 | K57: =VLOOKUP(T_stock[[#This Row],[N° Série]],N°série[#All],8,FALSE) -> 1000 | L57: =IF($E57<>0,K57+SUMPRODUCT((T_entrée[N° Article Client]=$E57)*T_entrée[Quantité])-SUMPRODUCT((T_sortie[Référence]=T_stock[[#This Row],[N° Série]])*T_sortie[Quantité]),0) -> 1000 | N57: Correct | P57: =T_stock[[#This Row],[Quantité]] -> 0 | Q57: =IF(T_stock[[#This Row],[Stock Réel]]=0,"",T_stock[[#This Row],[Stock Réel]]-T_stock[[#This Row],[Stock Actuel]]+T_stock[[#This Row],[Modif inventaire]]) ->  | R57: 0 | S57: =IFERROR(VLOOKUP(T_stock[[#This Row],[ Notre Référence]],[2]!T_Inventaire[#Data],MATCH(T_stock[[#Headers],[Quantité]],[2]!T_Inventaire[#Headers],0),FALSE),0) -> 0
E58: 72977 | F58: =VLOOKUP(T_stock[[#This Row],[N° Série]],N°série[#All],7,FALSE) -> CVE ASS PLQ 15/423 RL18J TERM | G58: =VLOOKUP(T_stock[[#This Row],[N° Série]],N°série[#All],2,FALSE) -> 0 | J58: 0 | K58: =VLOOKUP(T_stock[[#This Row],[N° Série]],N°série[#All],8,FALSE) -> 248 | L58: =IF($E58<>0,K58+SUMPRODUCT((T_entrée[N° Article Client]=$E58)*T_entrée[Quantité])-SUMPRODUCT((T_sortie[Référence]=T_stock[[#This Row],[N° Série]])*T_sortie[Quantité]),0) -> 248 | N58: Correct | P58: =T_stock[[#This Row],[Quantité]] -> 0 | Q58: =IF(T_stock[[#This Row],[Stock Réel]]=0,"",T_stock[[#This Row],[Stock Réel]]-T_stock[[#This Row],[Stock Actuel]]+T_stock[[#This Row],[Modif inventaire]]) ->  | R58: 0 | S58: =IFERROR(VLOOKUP(T_stock[[#This Row],[ Notre Référence]],[2]!T_Inventaire[#Data],MATCH(T_stock[[#Headers],[Quantité]],[2]!T_Inventaire[#Headers],0),FALSE),0) -> 0
E59: 72974 | F59: =VLOOKUP(T_stock[[#This Row],[N° Série]],N°série[#All],7,FALSE) -> CVE ASS EBL 15/313 AC TERM | G59: =VLOOKUP(T_stock[[#This Row],[N° Série]],N°série[#All],2,FALSE) -> 0 | J59: 0 | K59: =VLOOKUP(T_stock[[#This Row],[N° Série]],N°série[#All],8,FALSE) -> 1000 | L59: =IF($E59<>0,K59+SUMPRODUCT((T_entrée[N° Article Client]=$E59)*T_entrée[Quantité])-SUMPRODUCT((T_sortie[Référence]=T_stock[[#This Row],[N° Série]])*T_sortie[Quantité]),0) -> 1000 | N59: Correct | P59: =T_stock[[#This Row],[Quantité]] -> 0 | Q59: =IF(T_stock[[#This Row],[Stock Réel]]=0,"",T_stock[[#This Row],[Stock Réel]]-T_stock[[#This Row],[Stock Actuel]]+T_stock[[#This Row],[Modif inventaire]]) ->  | R59: 0 | S59: =IFERROR(VLOOKUP(T_stock[[#This Row],[ Notre Référence]],[2]!T_Inventaire[#Data],MATCH(T_stock[[#Headers],[Quantité]],[2]!T_Inventaire[#Headers],0),FALSE),0) -> 0
E60: 72975 | F60: =VLOOKUP(T_stock[[#This Row],[N° Série]],N°série[#All],7,FALSE) -> CVE ASS 12/313 RL18R-410 TERM | G60: =VLOOKUP(T_stock[[#This Row],[N° Série]],N°série[#All],2,FALSE) -> 0 | J60: 0 | K60: =VLOOKUP(T_stock[[#This Row],[N° Série]],N°série[#All],8,FALSE) -> 492 | L60: =IF($E60<>0,K60+SUMPRODUCT((T_entrée[N° Article Client]=$E60)*T_entrée[Quantité])-SUMPRODUCT((T_sortie[Référence]=T_stock[[#This Row],[N° Série]])*T_sortie[Quantité]),0) -> 492 | N60: Correct | P60: =T_stock[[#This Row],[Quantité]] -> 0 | Q60: =IF(T_stock[[#This Row],[Stock Réel]]=0,"",T_stock[[#This Row],[Stock Réel]]-T_stock[[#This Row],[Stock Actuel]]+T_stock[[#This Row],[Modif inventaire]]) ->  | R60: 0 | S60: =IFERROR(VLOOKUP(T_stock[[#This Row],[ Notre Référence]],[2]!T_Inventaire[#Data],MATCH(T_stock[[#Headers],[Quantité]],[2]!T_Inventaire[#Headers],0),FALSE),0) -> 0
E61: 72980 | F61: =VLOOKUP(T_stock[[#This Row],[N° Série]],N°série[#All],7,FALSE) -> CVE 15/423 AC904L SAT | G61: =VLOOKUP(T_stock[[#This Row],[N° Série]],N°série[#All],2,FALSE) -> 0 | J61: 0 | K61: =VLOOKUP(T_stock[[#This Row],[N° Série]],N°série[#All],8,FALSE) -> 400 | L61: =IF($E61<>0,K61+SUMPRODUCT((T_entrée[N° Article Client]=$E61)*T_entrée[Quantité])-SUMPRODUCT((T_sortie[Référence]=T_stock[[#This Row],[N° Série]])*T_sortie[Quantité]),0) -> 400 | N61: Correct | P61: =T_stock[[#This Row],[Quantité]] -> 0 | Q61: =IF(T_stock[[#This Row],[Stock Réel]]=0,"",T_stock[[#This Row],[Stock Réel]]-T_stock[[#This Row],[Stock Actuel]]+T_stock[[#This Row],[Modif inventaire]]) ->  | R61: 0 | S61: =IFERROR(VLOOKUP(T_stock[[#This Row],[ Notre Référence]],[2]!T_Inventaire[#Data],MATCH(T_stock[[#Headers],[Quantité]],[2]!T_Inventaire[#Headers],0),FALSE),0) -> 0
E62: 73014 | F62: =VLOOKUP(T_stock[[#This Row],[N° Série]],N°série[#All],7,FALSE) -> ALL FER 97220 17 AC SAT MONO | G62: =VLOOKUP(T_stock[[#This Row],[N° Série]],N°série[#All],2,FALSE) -> 0 | J62: 0 | K62: =VLOOKUP(T_stock[[#This Row],[N° Série]],N°série[#All],8,FALSE) -> 880 | L62: =IF($E62<>0,K62+SUMPRODUCT((T_entrée[N° Article Client]=$E62)*T_entrée[Quantité])-SUMPRODUCT((T_sortie[Référence]=T_stock[[#This Row],[N° Série]])*T_sortie[Quantité]),0) -> 880 | N62: Correct | P62: =T_stock[[#This Row],[Quantité]] -> 0 | Q62: =IF(T_stock[[#This Row],[Stock Réel]]=0,"",T_stock[[#This Row],[Stock Réel]]-T_stock[[#This Row],[Stock Actuel]]+T_stock[[#This Row],[Modif inventaire]]) ->  | R62: 0 | S62: =IFERROR(VLOOKUP(T_stock[[#This Row],[ Notre Référence]],[2]!T_Inventaire[#Data],MATCH(T_stock[[#Headers],[Quantité]],[2]!T_Inventaire[#Headers],0),FALSE),0) -> 0
E63: 73034 | F63: =VLOOKUP(T_stock[[#This Row],[N° Série]],N°série[#All],7,FALSE) -> SEC 15/313A AC904L TERM SPLE | G63: =VLOOKUP(T_stock[[#This Row],[N° Série]],N°série[#All],2,FALSE) -> 0 | J63: 0 | K63: =VLOOKUP(T_stock[[#This Row],[N° Série]],N°série[#All],8,FALSE) -> 516 | L63: =IF($E63<>0,K63+SUMPRODUCT((T_entrée[N° Article Client]=$E63)*T_entrée[Quantité])-SUMPRODUCT((T_sortie[Référence]=T_stock[[#This Row],[N° Série]])*T_sortie[Quantité]),0) -> 516 | N63: Correct | P63: =T_stock[[#This Row],[Quantité]] -> 0 | Q63: =IF(T_stock[[#This Row],[Stock Réel]]=0,"",T_stock[[#This Row],[Stock Réel]]-T_stock[[#This Row],[Stock Actuel]]+T_stock[[#This Row],[Modif inventaire]]) ->  | R63: 0 | S63: =IFERROR(VLOOKUP(T_stock[[#This Row],[ Notre Référence]],[2]!T_Inventaire[#Data],MATCH(T_stock[[#Headers],[Quantité]],[2]!T_Inventaire[#Headers],0),FALSE),0) -> 0
E64: 72985 | F64: =VLOOKUP(T_stock[[#This Row],[N° Série]],N°série[#All],7,FALSE) -> CVE 15/313 AC904L SAT | G64: =VLOOKUP(T_stock[[#This Row],[N° Série]],N°série[#All],2,FALSE) -> 0 | J64: 0 | K64: =VLOOKUP(T_stock[[#This Row],[N° Série]],N°série[#All],8,FALSE) -> 500 | L64: =IF($E64<>0,K64+SUMPRODUCT((T_entrée[N° Article Client]=$E64)*T_entrée[Quantité])-SUMPRODUCT((T_sortie[Référence]=T_stock[[#This Row],[N° Série]])*T_sortie[Quantité]),0) -> 500 | N64: Correct | P64: =T_stock[[#This Row],[Quantité]] -> 0 | Q64: =IF(T_stock[[#This Row],[Stock Réel]]=0,"",T_stock[[#This Row],[Stock Réel]]-T_stock[[#This Row],[Stock Actuel]]+T_stock[[#This Row],[Modif inventaire]]) ->  | R64: 0 | S64: =IFERROR(VLOOKUP(T_stock[[#This Row],[ Notre Référence]],[2]!T_Inventaire[#Data],MATCH(T_stock[[#Headers],[Quantité]],[2]!T_Inventaire[#Headers],0),FALSE),0) -> 0
E65: 72982 | F65: =VLOOKUP(T_stock[[#This Row],[N° Série]],N°série[#All],7,FALSE) -> CVE ASS 12/313 RL18J TERM | G65: =VLOOKUP(T_stock[[#This Row],[N° Série]],N°série[#All],2,FALSE) -> 0 | J65: 0 | K65: =VLOOKUP(T_stock[[#This Row],[N° Série]],N°série[#All],8,FALSE) -> 652 | L65: =IF($E65<>0,K65+SUMPRODUCT((T_entrée[N° Article Client]=$E65)*T_entrée[Quantité])-SUMPRODUCT((T_sortie[Référence]=T_stock[[#This Row],[N° Série]])*T_sortie[Quantité]),0) -> 652 | N65: Correct | P65: =T_stock[[#This Row],[Quantité]] -> 0 | Q65: =IF(T_stock[[#This Row],[Stock Réel]]=0,"",T_stock[[#This Row],[Stock Réel]]-T_stock[[#This Row],[Stock Actuel]]+T_stock[[#This Row],[Modif inventaire]]) ->  | R65: 0 | S65: =IFERROR(VLOOKUP(T_stock[[#This Row],[ Notre Référence]],[2]!T_Inventaire[#Data],MATCH(T_stock[[#Headers],[Quantité]],[2]!T_Inventaire[#Headers],0),FALSE),0) -> 0
E66: 72984 | F66: =VLOOKUP(T_stock[[#This Row],[N° Série]],N°série[#All],7,FALSE) -> CVE ASS PLQ 15/423 RL18R-410 TERM | G66: =VLOOKUP(T_stock[[#This Row],[N° Série]],N°série[#All],2,FALSE) -> 0 | J66: 0 | K66: =VLOOKUP(T_stock[[#This Row],[N° Série]],N°série[#All],8,FALSE) -> 312 | L66: =IF($E66<>0,K66+SUMPRODUCT((T_entrée[N° Article Client]=$E66)*T_entrée[Quantité])-SUMPRODUCT((T_sortie[Référence]=T_stock[[#This Row],[N° Série]])*T_sortie[Quantité]),0) -> 312 | N66: Correct | P66: =T_stock[[#This Row],[Quantité]] -> 0 | Q66: =IF(T_stock[[#This Row],[Stock Réel]]=0,"",T_stock[[#This Row],[Stock Réel]]-T_stock[[#This Row],[Stock Actuel]]+T_stock[[#This Row],[Modif inventaire]]) ->  | R66: 0 | S66: =IFERROR(VLOOKUP(T_stock[[#This Row],[ Notre Référence]],[2]!T_Inventaire[#Data],MATCH(T_stock[[#Headers],[Quantité]],[2]!T_Inventaire[#Headers],0),FALSE),0) -> 0
E67: 72986 | F67: =VLOOKUP(T_stock[[#This Row],[N° Série]],N°série[#All],7,FALSE) -> CVE 15/443 AC904L SAT | G67: =VLOOKUP(T_stock[[#This Row],[N° Série]],N°série[#All],2,FALSE) -> 0 | J67: 0 | K67: =VLOOKUP(T_stock[[#This Row],[N° Série]],N°série[#All],8,FALSE) -> 500 | L67: =IF($E67<>0,K67+SUMPRODUCT((T_entrée[N° Article Client]=$E67)*T_entrée[Quantité])-SUMPRODUCT((T_sortie[Référence]=T_stock[[#This Row],[N° Série]])*T_sortie[Quantité]),0) -> 500 | N67: Correct | P67: =T_stock[[#This Row],[Quantité]] -> 0 | Q67: =IF(T_stock[[#This Row],[Stock Réel]]=0,"",T_stock[[#This Row],[Stock Réel]]-T_stock[[#This Row],[Stock Actuel]]+T_stock[[#This Row],[Modif inventaire]]) ->  | R67: 0 | S67: =IFERROR(VLOOKUP(T_stock[[#This Row],[ Notre Référence]],[2]!T_Inventaire[#Data],MATCH(T_stock[[#Headers],[Quantité]],[2]!T_Inventaire[#Headers],0),FALSE),0) -> 0
E68: 72987 | F68: =VLOOKUP(T_stock[[#This Row],[N° Série]],N°série[#All],7,FALSE) -> SEC 15/313 AC904L TERM SPLE | G68: =VLOOKUP(T_stock[[#This Row],[N° Série]],N°série[#All],2,FALSE) -> 0 | J68: 0 | K68: =VLOOKUP(T_stock[[#This Row],[N° Série]],N°série[#All],8,FALSE) -> 1107 | L68: =IF($E68<>0,K68+SUMPRODUCT((T_entrée[N° Article Client]=$E68)*T_entrée[Quantité])-SUMPRODUCT((T_sortie[Référence]=T_stock[[#This Row],[N° Série]])*T_sortie[Quantité]),0) -> 1107 | N68: Correct | P68: =T_stock[[#This Row],[Quantité]] -> 0 | Q68: =IF(T_stock[[#This Row],[Stock Réel]]=0,"",T_stock[[#This Row],[Stock Réel]]-T_stock[[#This Row],[Stock Actuel]]+T_stock[[#This Row],[Modif inventaire]]) ->  | R68: 0 | S68: =IFERROR(VLOOKUP(T_stock[[#This Row],[ Notre Référence]],[2]!T_Inventaire[#Data],MATCH(T_stock[[#Headers],[Quantité]],[2]!T_Inventaire[#Headers],0),FALSE),0) -> 0
E69: 72983 | F69: =VLOOKUP(T_stock[[#This Row],[N° Série]],N°série[#All],7,FALSE) -> SEC ASS 15/400 AC SAT | G69: =VLOOKUP(T_stock[[#This Row],[N° Série]],N°série[#All],2,FALSE) -> 0 | J69: 0 | K69: =VLOOKUP(T_stock[[#This Row],[N° Série]],N°série[#All],8,FALSE) -> 1333 | L69: =IF($E69<>0,K69+SUMPRODUCT((T_entrée[N° Article Client]=$E69)*T_entrée[Quantité])-SUMPRODUCT((T_sortie[Référence]=T_stock[[#This Row],[N° Série]])*T_sortie[Quantité]),0) -> 1333 | N69: Correct | P69: =T_stock[[#This Row],[Quantité]] -> 0 | Q69: =IF(T_stock[[#This Row],[Stock Réel]]=0,"",T_stock[[#This Row],[Stock Réel]]-T_stock[[#This Row],[Stock Actuel]]+T_stock[[#This Row],[Modif inventaire]]) ->  | R69: 0 | S69: =IFERROR(VLOOKUP(T_stock[[#This Row],[ Notre Référence]],[2]!T_Inventaire[#Data],MATCH(T_stock[[#Headers],[Quantité]],[2]!T_Inventaire[#Headers],0),FALSE),0) -> 0
E70: 73038 | F70: =VLOOKUP(T_stock[[#This Row],[N° Série]],N°série[#All],7,FALSE) -> SEC 15/313A AC904L TERM SPLE | G70: =VLOOKUP(T_stock[[#This Row],[N° Série]],N°série[#All],2,FALSE) -> 0 | J70: 0 | K70: =VLOOKUP(T_stock[[#This Row],[N° Série]],N°série[#All],8,FALSE) -> 518 | L70: =IF($E70<>0,K70+SUMPRODUCT((T_entrée[N° Article Client]=$E70)*T_entrée[Quantité])-SUMPRODUCT((T_sortie[Référence]=T_stock[[#This Row],[N° Série]])*T_sortie[Quantité]),0) -> 518 | N70: Correct | P70: =T_stock[[#This Row],[Quantité]] -> 0 | Q70: =IF(T_stock[[#This Row],[Stock Réel]]=0,"",T_stock[[#This Row],[Stock Réel]]-T_stock[[#This Row],[Stock Actuel]]+T_stock[[#This Row],[Modif inventaire]]) ->  | R70: 0 | S70: =IFERROR(VLOOKUP(T_stock[[#This Row],[ Notre Référence]],[2]!T_Inventaire[#Data],MATCH(T_stock[[#Headers],[Quantité]],[2]!T_Inventaire[#Headers],0),FALSE),0) -> 0
E71: 73037 | F71: =VLOOKUP(T_stock[[#This Row],[N° Série]],N°série[#All],7,FALSE) -> SEC 15/313A AC904L TERM SPLE | G71: =VLOOKUP(T_stock[[#This Row],[N° Série]],N°série[#All],2,FALSE) -> 0 | J71: 0 | K71: =VLOOKUP(T_stock[[#This Row],[N° Série]],N°série[#All],8,FALSE) -> 516 | L71: =IF($E71<>0,K71+SUMPRODUCT((T_entrée[N° Article Client]=$E71)*T_entrée[Quantité])-SUMPRODUCT((T_sortie[Référence]=T_stock[[#This Row],[N° Série]])*T_sortie[Quantité]),0) -> 516 | N71: Correct | P71: =T_stock[[#This Row],[Quantité]] -> 0 | Q71: =IF(T_stock[[#This Row],[Stock Réel]]=0,"",T_stock[[#This Row],[Stock Réel]]-T_stock[[#This Row],[Stock Actuel]]+T_stock[[#This Row],[Modif inventaire]]) ->  | R71: 0 | S71: =IFERROR(VLOOKUP(T_stock[[#This Row],[ Notre Référence]],[2]!T_Inventaire[#Data],MATCH(T_stock[[#Headers],[Quantité]],[2]!T_Inventaire[#Headers],0),FALSE),0) -> 0
E72: 73036 | F72: =VLOOKUP(T_stock[[#This Row],[N° Série]],N°série[#All],7,FALSE) -> SEC 15/313 AC904L TERM SPLE | G72: =VLOOKUP(T_stock[[#This Row],[N° Série]],N°série[#All],2,FALSE) -> 0 | J72: 0 | K72: =VLOOKUP(T_stock[[#This Row],[N° Série]],N°série[#All],8,FALSE) -> 569 | L72: =IF($E72<>0,K72+SUMPRODUCT((T_entrée[N° Article Client]=$E72)*T_entrée[Quantité])-SUMPRODUCT((T_sortie[Référence]=T_stock[[#This Row],[N° Série]])*T_sortie[Quantité]),0) -> 569 | N72: Correct | P72: =T_stock[[#This Row],[Quantité]] -> 0 | Q72: =IF(T_stock[[#This Row],[Stock Réel]]=0,"",T_stock[[#This Row],[Stock Réel]]-T_stock[[#This Row],[Stock Actuel]]+T_stock[[#This Row],[Modif inventaire]]) ->  | R72: 0 | S72: =IFERROR(VLOOKUP(T_stock[[#This Row],[ Notre Référence]],[2]!T_Inventaire[#Data],MATCH(T_stock[[#Headers],[Quantité]],[2]!T_Inventaire[#Headers],0),FALSE),0) -> 0
E73: 73035 | F73: =VLOOKUP(T_stock[[#This Row],[N° Série]],N°série[#All],7,FALSE) -> CVE ASS 15/313 RL18J TERM | G73: =VLOOKUP(T_stock[[#This Row],[N° Série]],N°série[#All],2,FALSE) -> 0 | J73: 0 | K73: =VLOOKUP(T_stock[[#This Row],[N° Série]],N°série[#All],8,FALSE) -> 541 | L73: =IF($E73<>0,K73+SUMPRODUCT((T_entrée[N° Article Client]=$E73)*T_entrée[Quantité])-SUMPRODUCT((T_sortie[Référence]=T_stock[[#This Row],[N° Série]])*T_sortie[Quantité]),0) -> 541 | N73: Correct | P73: =T_stock[[#This Row],[Quantité]] -> 0 | Q73: =IF(T_stock[[#This Row],[Stock Réel]]=0,"",T_stock[[#This Row],[Stock Réel]]-T_stock[[#This Row],[Stock Actuel]]+T_stock[[#This Row],[Modif inventaire]]) ->  | R73: 0 | S73: =IFERROR(VLOOKUP(T_stock[[#This Row],[ Notre Référence]],[2]!T_Inventaire[#Data],MATCH(T_stock[[#Headers],[Quantité]],[2]!T_Inventaire[#Headers],0),FALSE),0) -> 0
E74: 72962 | F74: =VLOOKUP(T_stock[[#This Row],[N° Série]],N°série[#All],7,FALSE) -> SEC ASS 15/313 RL18R-410 TERM | G74: =VLOOKUP(T_stock[[#This Row],[N° Série]],N°série[#All],2,FALSE) -> 0 | J74: 0 | K74: =VLOOKUP(T_stock[[#This Row],[N° Série]],N°série[#All],8,FALSE) -> 261 | L74: =IF($E74<>0,K74+SUMPRODUCT((T_entrée[N° Article Client]=$E74)*T_entrée[Quantité])-SUMPRODUCT((T_sortie[Référence]=T_stock[[#This Row],[N° Série]])*T_sortie[Quantité]),0) -> 261 | N74: Correct | P74: =T_stock[[#This Row],[Quantité]] -> 0 | Q74: =IF(T_stock[[#This Row],[Stock Réel]]=0,"",T_stock[[#This Row],[Stock Réel]]-T_stock[[#This Row],[Stock Actuel]]+T_stock[[#This Row],[Modif inventaire]]) ->  | R74: 0 | S74: =IFERROR(VLOOKUP(T_stock[[#This Row],[ Notre Référence]],[2]!T_Inventaire[#Data],MATCH(T_stock[[#Headers],[Quantité]],[2]!T_Inventaire[#Headers],0),FALSE),0) -> 0
E75: 73018 | F75: =VLOOKUP(T_stock[[#This Row],[N° Série]],N°série[#All],7,FALSE) -> SEC ASS 15/400 RL18J TERM | G75: =VLOOKUP(T_stock[[#This Row],[N° Série]],N°série[#All],2,FALSE) -> 0 | J75: 0 | K75: =VLOOKUP(T_stock[[#This Row],[N° Série]],N°série[#All],8,FALSE) -> 785 | L75: =IF($E75<>0,K75+SUMPRODUCT((T_entrée[N° Article Client]=$E75)*T_entrée[Quantité])-SUMPRODUCT((T_sortie[Référence]=T_stock[[#This Row],[N° Série]])*T_sortie[Quantité]),0) -> 785 | N75: Correct | P75: =T_stock[[#This Row],[Quantité]] -> 0 | Q75: =IF(T_stock[[#This Row],[Stock Réel]]=0,"",T_stock[[#This Row],[Stock Réel]]-T_stock[[#This Row],[Stock Actuel]]+T_stock[[#This Row],[Modif inventaire]]) ->  | R75: 0 | S75: =IFERROR(VLOOKUP(T_stock[[#This Row],[ Notre Référence]],[2]!T_Inventaire[#Data],MATCH(T_stock[[#Headers],[Quantité]],[2]!T_Inventaire[#Headers],0),FALSE),0) -> 0
E76: 73039 | F76: =VLOOKUP(T_stock[[#This Row],[N° Série]],N°série[#All],7,FALSE) -> CVE ASS 15/313 RL18J TERM | G76: =VLOOKUP(T_stock[[#This Row],[N° Série]],N°série[#All],2,FALSE) -> 0 | J76: 0 | K76: =VLOOKUP(T_stock[[#This Row],[N° Série]],N°série[#All],8,FALSE) -> 1000 | L76: =IF($E76<>0,K76+SUMPRODUCT((T_entrée[N° Article Client]=$E76)*T_entrée[Quantité])-SUMPRODUCT((T_sortie[Référence]=T_stock[[#This Row],[N° Série]])*T_sortie[Quantité]),0) -> 1000 | N76: Correct | P76: =T_stock[[#This Row],[Quantité]] -> 0 | Q76: =IF(T_stock[[#This Row],[Stock Réel]]=0,"",T_stock[[#This Row],[Stock Réel]]-T_stock[[#This Row],[Stock Actuel]]+T_stock[[#This Row],[Modif inventaire]]) ->  | R76: 0 | S76: =IFERROR(VLOOKUP(T_stock[[#This Row],[ Notre Référence]],[2]!T_Inventaire[#Data],MATCH(T_stock[[#Headers],[Quantité]],[2]!T_Inventaire[#Headers],0),FALSE),0) -> 0
E77: 73019 | F77: =VLOOKUP(T_stock[[#This Row],[N° Série]],N°série[#All],7,FALSE) -> SEC ASS 14/400 RL18R-410 TERM | G77: =VLOOKUP(T_stock[[#This Row],[N° Série]],N°série[#All],2,FALSE) -> 0 | J77: 0 | K77: =VLOOKUP(T_stock[[#This Row],[N° Série]],N°série[#All],8,FALSE) -> 310 | L77: =IF($E77<>0,K77+SUMPRODUCT((T_entrée[N° Article Client]=$E77)*T_entrée[Quantité])-SUMPRODUCT((T_sortie[Référence]=T_stock[[#This Row],[N° Série]])*T_sortie[Quantité]),0) -> 310 | N77: Correct | P77: =T_stock[[#This Row],[Quantité]] -> 0 | Q77: =IF(T_stock[[#This Row],[Stock Réel]]=0,"",T_stock[[#This Row],[Stock Réel]]-T_stock[[#This Row],[Stock Actuel]]+T_stock[[#This Row],[Modif inventaire]]) ->  | R77: 0 | S77: =IFERROR(VLOOKUP(T_stock[[#This Row],[ Notre Référence]],[2]!T_Inventaire[#Data],MATCH(T_stock[[#Headers],[Quantité]],[2]!T_Inventaire[#Headers],0),FALSE),0) -> 0
E78: 72988 | F78: =VLOOKUP(T_stock[[#This Row],[N° Série]],N°série[#All],7,FALSE) -> CVE 15/313 AC904L SAT | G78: =VLOOKUP(T_stock[[#This Row],[N° Série]],N°série[#All],2,FALSE) -> 0 | J78: 0 | K78: =VLOOKUP(T_stock[[#This Row],[N° Série]],N°série[#All],8,FALSE) -> 250 | L78: =IF($E78<>0,K78+SUMPRODUCT((T_entrée[N° Article Client]=$E78)*T_entrée[Quantité])-SUMPRODUCT((T_sortie[Référence]=T_stock[[#This Row],[N° Série]])*T_sortie[Quantité]),0) -> 250 | N78: Correct | P78: =T_stock[[#This Row],[Quantité]] -> 0 | Q78: =IF(T_stock[[#This Row],[Stock Réel]]=0,"",T_stock[[#This Row],[Stock Réel]]-T_stock[[#This Row],[Stock Actuel]]+T_stock[[#This Row],[Modif inventaire]]) ->  | R78: 0 | S78: =IFERROR(VLOOKUP(T_stock[[#This Row],[ Notre Référence]],[2]!T_Inventaire[#Data],MATCH(T_stock[[#Headers],[Quantité]],[2]!T_Inventaire[#Headers],0),FALSE),0) -> 0
E79: 73044 | F79: =VLOOKUP(T_stock[[#This Row],[N° Série]],N°série[#All],7,FALSE) -> CVE 15/423 AC904L SAT | G79: =VLOOKUP(T_stock[[#This Row],[N° Série]],N°série[#All],2,FALSE) -> 0 | J79: 0 | K79: =VLOOKUP(T_stock[[#This Row],[N° Série]],N°série[#All],8,FALSE) -> 400 | L79: =IF($E79<>0,K79+SUMPRODUCT((T_entrée[N° Article Client]=$E79)*T_entrée[Quantité])-SUMPRODUCT((T_sortie[Référence]=T_stock[[#This Row],[N° Série]])*T_sortie[Quantité]),0) -> 400 | N79: Correct | P79: =T_stock[[#This Row],[Quantité]] -> 0 | Q79: =IF(T_stock[[#This Row],[Stock Réel]]=0,"",T_stock[[#This Row],[Stock Réel]]-T_stock[[#This Row],[Stock Actuel]]+T_stock[[#This Row],[Modif inventaire]]) ->  | R79: 0 | S79: =IFERROR(VLOOKUP(T_stock[[#This Row],[ Notre Référence]],[2]!T_Inventaire[#Data],MATCH(T_stock[[#Headers],[Quantité]],[2]!T_Inventaire[#Headers],0),FALSE),0) -> 0
E80: 73041 | F80: =VLOOKUP(T_stock[[#This Row],[N° Série]],N°série[#All],7,FALSE) -> SEC 15/313 AC904L TERM SPLE | G80: =VLOOKUP(T_stock[[#This Row],[N° Série]],N°série[#All],2,FALSE) -> 0 | J80: 0 | K80: =VLOOKUP(T_stock[[#This Row],[N° Série]],N°série[#All],8,FALSE) -> 1150 | L80: =IF($E80<>0,K80+SUMPRODUCT((T_entrée[N° Article Client]=$E80)*T_entrée[Quantité])-SUMPRODUCT((T_sortie[Référence]=T_stock[[#This Row],[N° Série]])*T_sortie[Quantité]),0) -> 1150 | N80: Correct | P80: =T_stock[[#This Row],[Quantité]] -> 0 | Q80: =IF(T_stock[[#This Row],[Stock Réel]]=0,"",T_stock[[#This Row],[Stock Réel]]-T_stock[[#This Row],[Stock Actuel]]+T_stock[[#This Row],[Modif inventaire]]) ->  | R80: 0 | S80: =IFERROR(VLOOKUP(T_stock[[#This Row],[ Notre Référence]],[2]!T_Inventaire[#Data],MATCH(T_stock[[#Headers],[Quantité]],[2]!T_Inventaire[#Headers],0),FALSE),0) -> 0
E81: 73040 | F81: =VLOOKUP(T_stock[[#This Row],[N° Série]],N°série[#All],7,FALSE) -> CVE ASS 12/313 RL18J TERM | G81: =VLOOKUP(T_stock[[#This Row],[N° Série]],N°série[#All],2,FALSE) -> 0 | J81: 0 | K81: =VLOOKUP(T_stock[[#This Row],[N° Série]],N°série[#All],8,FALSE) -> 400 | L81: =IF($E81<>0,K81+SUMPRODUCT((T_entrée[N° Article Client]=$E81)*T_entrée[Quantité])-SUMPRODUCT((T_sortie[Référence]=T_stock[[#This Row],[N° Série]])*T_sortie[Quantité]),0) -> 400 | N81: Correct | P81: =T_stock[[#This Row],[Quantité]] -> 0 | Q81: =IF(T_stock[[#This Row],[Stock Réel]]=0,"",T_stock[[#This Row],[Stock Réel]]-T_stock[[#This Row],[Stock Actuel]]+T_stock[[#This Row],[Modif inventaire]]) ->  | R81: 0 | S81: =IFERROR(VLOOKUP(T_stock[[#This Row],[ Notre Référence]],[2]!T_Inventaire[#Data],MATCH(T_stock[[#Headers],[Quantité]],[2]!T_Inventaire[#Headers],0),FALSE),0) -> 0
E82: 73043 | F82: =VLOOKUP(T_stock[[#This Row],[N° Série]],N°série[#All],7,FALSE) -> CVE ASS PLQ 15/443 RL18J TERM | G82: =VLOOKUP(T_stock[[#This Row],[N° Série]],N°série[#All],2,FALSE) -> 0 | J82: 0 | K82: =VLOOKUP(T_stock[[#This Row],[N° Série]],N°série[#All],8,FALSE) -> 597 | L82: =IF($E82<>0,K82+SUMPRODUCT((T_entrée[N° Article Client]=$E82)*T_entrée[Quantité])-SUMPRODUCT((T_sortie[Référence]=T_stock[[#This Row],[N° Série]])*T_sortie[Quantité]),0) -> 597 | N82: Correct | P82: =T_stock[[#This Row],[Quantité]] -> 0 | Q82: =IF(T_stock[[#This Row],[Stock Réel]]=0,"",T_stock[[#This Row],[Stock Réel]]-T_stock[[#This Row],[Stock Actuel]]+T_stock[[#This Row],[Modif inventaire]]) ->  | R82: 0 | S82: =IFERROR(VLOOKUP(T_stock[[#This Row],[ Notre Référence]],[2]!T_Inventaire[#Data],MATCH(T_stock[[#Headers],[Quantité]],[2]!T_Inventaire[#Headers],0),FALSE),0) -> 0
E83: 73075 | F83: =VLOOKUP(T_stock[[#This Row],[N° Série]],N°série[#All],7,FALSE) -> ALL FER 97220 17 AC SAT MONO | G83: =VLOOKUP(T_stock[[#This Row],[N° Série]],N°série[#All],2,FALSE) -> 0 | J83: 0 | K83: =VLOOKUP(T_stock[[#This Row],[N° Série]],N°série[#All],8,FALSE) -> 900 | L83: =IF($E83<>0,K83+SUMPRODUCT((T_entrée[N° Article Client]=$E83)*T_entrée[Quantité])-SUMPRODUCT((T_sortie[Référence]=T_stock[[#This Row],[N° Série]])*T_sortie[Quantité]),0) -> 900 | N83: Correct | P83: =T_stock[[#This Row],[Quantité]] -> 0 | Q83: =IF(T_stock[[#This Row],[Stock Réel]]=0,"",T_stock[[#This Row],[Stock Réel]]-T_stock[[#This Row],[Stock Actuel]]+T_stock[[#This Row],[Modif inventaire]]) ->  | R83: 0 | S83: =IFERROR(VLOOKUP(T_stock[[#This Row],[ Notre Référence]],[2]!T_Inventaire[#Data],MATCH(T_stock[[#Headers],[Quantité]],[2]!T_Inventaire[#Headers],0),FALSE),0) -> 0
E84: 72989 | F84: =VLOOKUP(T_stock[[#This Row],[N° Série]],N°série[#All],7,FALSE) -> CVE 15/313 AC904L SAT | G84: =VLOOKUP(T_stock[[#This Row],[N° Série]],N°série[#All],2,FALSE) -> 0 | J84: =IF(L84<=0,"",L84*I84) -> 0 | K84: =VLOOKUP(T_stock[[#This Row],[N° Série]],N°série[#All],8,FALSE) -> 258 | L84: =IF($E84<>0,K84+SUMPRODUCT((T_entrée[N° Article Client]=$E84)*T_entrée[Quantité])-SUMPRODUCT((T_sortie[Référence]=T_stock[[#This Row],[N° Série]])*T_sortie[Quantité]),0) -> 258 | N84: =IF(L84<M84,"ALERTE","Correct") -> Correct | P84: =T_stock[[#This Row],[Quantité]] -> 0 | Q84: =IF(T_stock[[#This Row],[Stock Réel]]=0,"",T_stock[[#This Row],[Stock Réel]]-T_stock[[#This Row],[Stock Actuel]]+T_stock[[#This Row],[Modif inventaire]]) ->  | R84: =B84 -> 0 | S84: =IFERROR(VLOOKUP(T_stock[[#This Row],[ Notre Référence]],[2]!T_Inventaire[#Data],MATCH(T_stock[[#Headers],[Quantité]],[2]!T_Inventaire[#Headers],0),FALSE),0) -> 0
E85: 73045 | F85: =VLOOKUP(T_stock[[#This Row],[N° Série]],N°série[#All],7,FALSE) -> CVE ASS 15/313 RL18R-410 TERM | G85: =VLOOKUP(T_stock[[#This Row],[N° Série]],N°série[#All],2,FALSE) -> 0 | J85: 0 | K85: =VLOOKUP(T_stock[[#This Row],[N° Série]],N°série[#All],8,FALSE) -> 1000 | L85: =IF($E85<>0,K85+SUMPRODUCT((T_entrée[N° Article Client]=$E85)*T_entrée[Quantité])-SUMPRODUCT((T_sortie[Référence]=T_stock[[#This Row],[N° Série]])*T_sortie[Quantité]),0) -> 1000 | N85: Correct | P85: =T_stock[[#This Row],[Quantité]] -> 0 | Q85: =IF(T_stock[[#This Row],[Stock Réel]]=0,"",T_stock[[#This Row],[Stock Réel]]-T_stock[[#This Row],[Stock Actuel]]+T_stock[[#This Row],[Modif inventaire]]) ->  | R85: 0 | S85: =IFERROR(VLOOKUP(T_stock[[#This Row],[ Notre Référence]],[2]!T_Inventaire[#Data],MATCH(T_stock[[#Headers],[Quantité]],[2]!T_Inventaire[#Headers],0),FALSE),0) -> 0
E86: 73046 | F86: =VLOOKUP(T_stock[[#This Row],[N° Série]],N°série[#All],7,FALSE) -> SEC 15/313 AC904L TERM SPLE | G86: =VLOOKUP(T_stock[[#This Row],[N° Série]],N°série[#All],2,FALSE) -> 0 | J86: 0 | K86: =VLOOKUP(T_stock[[#This Row],[N° Série]],N°série[#All],8,FALSE) -> 1150 | L86: =IF($E86<>0,K86+SUMPRODUCT((T_entrée[N° Article Client]=$E86)*T_entrée[Quantité])-SUMPRODUCT((T_sortie[Référence]=T_stock[[#This Row],[N° Série]])*T_sortie[Quantité]),0) -> 1150 | N86: Correct | P86: =T_stock[[#This Row],[Quantité]] -> 0 | Q86: =IF(T_stock[[#This Row],[Stock Réel]]=0,"",T_stock[[#This Row],[Stock Réel]]-T_stock[[#This Row],[Stock Actuel]]+T_stock[[#This Row],[Modif inventaire]]) ->  | R86: 0 | S86: =IFERROR(VLOOKUP(T_stock[[#This Row],[ Notre Référence]],[2]!T_Inventaire[#Data],MATCH(T_stock[[#Headers],[Quantité]],[2]!T_Inventaire[#Headers],0),FALSE),0) -> 0
E87: 73049 | F87: =VLOOKUP(T_stock[[#This Row],[N° Série]],N°série[#All],7,FALSE) -> CVE ASS PLQ 15/423 RL18R-410 TERM | G87: =VLOOKUP(T_stock[[#This Row],[N° Série]],N°série[#All],2,FALSE) -> 0 | J87: 0 | K87: =VLOOKUP(T_stock[[#This Row],[N° Série]],N°série[#All],8,FALSE) -> 227 | L87: =IF($E87<>0,K87+SUMPRODUCT((T_entrée[N° Article Client]=$E87)*T_entrée[Quantité])-SUMPRODUCT((T_sortie[Référence]=T_stock[[#This Row],[N° Série]])*T_sortie[Quantité]),0) -> 227 | N87: Correct | P87: =T_stock[[#This Row],[Quantité]] -> 0 | Q87: =IF(T_stock[[#This Row],[Stock Réel]]=0,"",T_stock[[#This Row],[Stock Réel]]-T_stock[[#This Row],[Stock Actuel]]+T_stock[[#This Row],[Modif inventaire]]) ->  | R87: 0 | S87: =IFERROR(VLOOKUP(T_stock[[#This Row],[ Notre Référence]],[2]!T_Inventaire[#Data],MATCH(T_stock[[#Headers],[Quantité]],[2]!T_Inventaire[#Headers],0),FALSE),0) -> 0
E88: 73048 | F88: =VLOOKUP(T_stock[[#This Row],[N° Série]],N°série[#All],7,FALSE) -> SEC ASS 15/423 AC TERM | G88: =VLOOKUP(T_stock[[#This Row],[N° Série]],N°série[#All],2,FALSE) -> 0 | J88: 0 | K88: =VLOOKUP(T_stock[[#This Row],[N° Série]],N°série[#All],8,FALSE) -> 779 | L88: =IF($E88<>0,K88+SUMPRODUCT((T_entrée[N° Article Client]=$E88)*T_entrée[Quantité])-SUMPRODUCT((T_sortie[Référence]=T_stock[[#This Row],[N° Série]])*T_sortie[Quantité]),0) -> 779 | N88: Correct | P88: =T_stock[[#This Row],[Quantité]] -> 0 | Q88: =IF(T_stock[[#This Row],[Stock Réel]]=0,"",T_stock[[#This Row],[Stock Réel]]-T_stock[[#This Row],[Stock Actuel]]+T_stock[[#This Row],[Modif inventaire]]) ->  | R88: 0 | S88: =IFERROR(VLOOKUP(T_stock[[#This Row],[ Notre Référence]],[2]!T_Inventaire[#Data],MATCH(T_stock[[#Headers],[Quantité]],[2]!T_Inventaire[#Headers],0),FALSE),0) -> 0
E89: 73047 | F89: =VLOOKUP(T_stock[[#This Row],[N° Série]],N°série[#All],7,FALSE) -> SEC 15/313A AC904L TERM SPLE | G89: =VLOOKUP(T_stock[[#This Row],[N° Série]],N°série[#All],2,FALSE) -> 0 | J89: 0 | K89: =VLOOKUP(T_stock[[#This Row],[N° Série]],N°série[#All],8,FALSE) -> 516 | L89: =IF($E89<>0,K89+SUMPRODUCT((T_entrée[N° Article Client]=$E89)*T_entrée[Quantité])-SUMPRODUCT((T_sortie[Référence]=T_stock[[#This Row],[N° Série]])*T_sortie[Quantité]),0) -> 516 | N89: Correct | P89: =T_stock[[#This Row],[Quantité]] -> 0 | Q89: =IF(T_stock[[#This Row],[Stock Réel]]=0,"",T_stock[[#This Row],[Stock Réel]]-T_stock[[#This Row],[Stock Actuel]]+T_stock[[#This Row],[Modif inventaire]]) ->  | R89: 0 | S89: =IFERROR(VLOOKUP(T_stock[[#This Row],[ Notre Référence]],[2]!T_Inventaire[#Data],MATCH(T_stock[[#Headers],[Quantité]],[2]!T_Inventaire[#Headers],0),FALSE),0) -> 0
E90: 73042 | F90: =VLOOKUP(T_stock[[#This Row],[N° Série]],N°série[#All],7,FALSE) -> SEC 15/313A AC904L TERM SPLE | G90: =VLOOKUP(T_stock[[#This Row],[N° Série]],N°série[#All],2,FALSE) -> 32403 | J90: 0 | K90: =VLOOKUP(T_stock[[#This Row],[N° Série]],N°série[#All],8,FALSE) -> 516 | L90: =IF($E90<>0,K90+SUMPRODUCT((T_entrée[N° Article Client]=$E90)*T_entrée[Quantité])-SUMPRODUCT((T_sortie[Référence]=T_stock[[#This Row],[N° Série]])*T_sortie[Quantité]),0) -> 516 | N90: Correct | P90: =T_stock[[#This Row],[Quantité]] -> 0 | Q90: =IF(T_stock[[#This Row],[Stock Réel]]=0,"",T_stock[[#This Row],[Stock Réel]]-T_stock[[#This Row],[Stock Actuel]]+T_stock[[#This Row],[Modif inventaire]]) ->  | R90: 0 | S90: =IFERROR(VLOOKUP(T_stock[[#This Row],[ Notre Référence]],[2]!T_Inventaire[#Data],MATCH(T_stock[[#Headers],[Quantité]],[2]!T_Inventaire[#Headers],0),FALSE),0) -> 0
E91: 72990 | F91: =VLOOKUP(T_stock[[#This Row],[N° Série]],N°série[#All],7,FALSE) -> SEC ASS 15/313 RL18R-410 TERM | G91: =VLOOKUP(T_stock[[#This Row],[N° Série]],N°série[#All],2,FALSE) -> 0 | J91: 0 | K91: =VLOOKUP(T_stock[[#This Row],[N° Série]],N°série[#All],8,FALSE) -> 523 | L91: =IF($E91<>0,K91+SUMPRODUCT((T_entrée[N° Article Client]=$E91)*T_entrée[Quantité])-SUMPRODUCT((T_sortie[Référence]=T_stock[[#This Row],[N° Série]])*T_sortie[Quantité]),0) -> 523 | N91: Correct | P91: =T_stock[[#This Row],[Quantité]] -> 0 | Q91: =IF(T_stock[[#This Row],[Stock Réel]]=0,"",T_stock[[#This Row],[Stock Réel]]-T_stock[[#This Row],[Stock Actuel]]+T_stock[[#This Row],[Modif inventaire]]) ->  | R91: 0 | S91: =IFERROR(VLOOKUP(T_stock[[#This Row],[ Notre Référence]],[2]!T_Inventaire[#Data],MATCH(T_stock[[#Headers],[Quantité]],[2]!T_Inventaire[#Headers],0),FALSE),0) -> 0
E92: 73052 | F92: =VLOOKUP(T_stock[[#This Row],[N° Série]],N°série[#All],7,FALSE) -> SEC 15/313 AC904L TERM SPLE | G92: =VLOOKUP(T_stock[[#This Row],[N° Série]],N°série[#All],2,FALSE) -> 0 | J92: 0 | K92: =VLOOKUP(T_stock[[#This Row],[N° Série]],N°série[#All],8,FALSE) -> 1150 | L92: =IF($E92<>0,K92+SUMPRODUCT((T_entrée[N° Article Client]=$E92)*T_entrée[Quantité])-SUMPRODUCT((T_sortie[Référence]=T_stock[[#This Row],[N° Série]])*T_sortie[Quantité]),0) -> 1150 | N92: Correct | P92: =T_stock[[#This Row],[Quantité]] -> 0 | Q92: =IF(T_stock[[#This Row],[Stock Réel]]=0,"",T_stock[[#This Row],[Stock Réel]]-T_stock[[#This Row],[Stock Actuel]]+T_stock[[#This Row],[Modif inventaire]]) ->  | R92: 0 | S92: =IFERROR(VLOOKUP(T_stock[[#This Row],[ Notre Référence]],[2]!T_Inventaire[#Data],MATCH(T_stock[[#Headers],[Quantité]],[2]!T_Inventaire[#Headers],0),FALSE),0) -> 0
E93: 73050 | F93: =VLOOKUP(T_stock[[#This Row],[N° Série]],N°série[#All],7,FALSE) -> CVE ASS 15/313 RL18R-410 TERM | G93: =VLOOKUP(T_stock[[#This Row],[N° Série]],N°série[#All],2,FALSE) -> 0 | J93: 0 | K93: =VLOOKUP(T_stock[[#This Row],[N° Série]],N°série[#All],8,FALSE) -> 742 | L93: =IF($E93<>0,K93+SUMPRODUCT((T_entrée[N° Article Client]=$E93)*T_entrée[Quantité])-SUMPRODUCT((T_sortie[Référence]=T_stock[[#This Row],[N° Série]])*T_sortie[Quantité]),0) -> 742 | N93: Correct | P93: =T_stock[[#This Row],[Quantité]] -> 0 | Q93: =IF(T_stock[[#This Row],[Stock Réel]]=0,"",T_stock[[#This Row],[Stock Réel]]-T_stock[[#This Row],[Stock Actuel]]+T_stock[[#This Row],[Modif inventaire]]) ->  | R93: 0 | S93: =IFERROR(VLOOKUP(T_stock[[#This Row],[ Notre Référence]],[2]!T_Inventaire[#Data],MATCH(T_stock[[#Headers],[Quantité]],[2]!T_Inventaire[#Headers],0),FALSE),0) -> 0
E94: 73057 | F94: =VLOOKUP(T_stock[[#This Row],[N° Série]],N°série[#All],7,FALSE) -> CVE 15/313 AC904L SAT | G94: =VLOOKUP(T_stock[[#This Row],[N° Série]],N°série[#All],2,FALSE) -> 0 | J94: 0 | K94: =VLOOKUP(T_stock[[#This Row],[N° Série]],N°série[#All],8,FALSE) -> 496 | L94: =IF($E94<>0,K94+SUMPRODUCT((T_entrée[N° Article Client]=$E94)*T_entrée[Quantité])-SUMPRODUCT((T_sortie[Référence]=T_stock[[#This Row],[N° Série]])*T_sortie[Quantité]),0) -> 496 | N94: Correct | P94: =T_stock[[#This Row],[Quantité]] -> 0 | Q94: =IF(T_stock[[#This Row],[Stock Réel]]=0,"",T_stock[[#This Row],[Stock Réel]]-T_stock[[#This Row],[Stock Actuel]]+T_stock[[#This Row],[Modif inventaire]]) ->  | R94: 0 | S94: =IFERROR(VLOOKUP(T_stock[[#This Row],[ Notre Référence]],[2]!T_Inventaire[#Data],MATCH(T_stock[[#Headers],[Quantité]],[2]!T_Inventaire[#Headers],0),FALSE),0) -> 0
E95: 73056 | F95: =VLOOKUP(T_stock[[#This Row],[N° Série]],N°série[#All],7,FALSE) -> CVE ASS PLQ 14/423 RL18R-410 TERM | G95: =VLOOKUP(T_stock[[#This Row],[N° Série]],N°série[#All],2,FALSE) -> 0 | J95: 0 | K95: =VLOOKUP(T_stock[[#This Row],[N° Série]],N°série[#All],8,FALSE) -> 496 | L95: =IF($E95<>0,K95+SUMPRODUCT((T_entrée[N° Article Client]=$E95)*T_entrée[Quantité])-SUMPRODUCT((T_sortie[Référence]=T_stock[[#This Row],[N° Série]])*T_sortie[Quantité]),0) -> 496 | N95: Correct | P95: =T_stock[[#This Row],[Quantité]] -> 0 | Q95: =IF(T_stock[[#This Row],[Stock Réel]]=0,"",T_stock[[#This Row],[Stock Réel]]-T_stock[[#This Row],[Stock Actuel]]+T_stock[[#This Row],[Modif inventaire]]) ->  | R95: 0 | S95: =IFERROR(VLOOKUP(T_stock[[#This Row],[ Notre Référence]],[2]!T_Inventaire[#Data],MATCH(T_stock[[#Headers],[Quantité]],[2]!T_Inventaire[#Headers],0),FALSE),0) -> 0
E96: 73055 | F96: =VLOOKUP(T_stock[[#This Row],[N° Série]],N°série[#All],7,FALSE) -> SEC ASS 15/400 AC SAT | G96: =VLOOKUP(T_stock[[#This Row],[N° Série]],N°série[#All],2,FALSE) -> 0 | J96: 0 | K96: =VLOOKUP(T_stock[[#This Row],[N° Série]],N°série[#All],8,FALSE) -> 893 | L96: =IF($E96<>0,K96+SUMPRODUCT((T_entrée[N° Article Client]=$E96)*T_entrée[Quantité])-SUMPRODUCT((T_sortie[Référence]=T_stock[[#This Row],[N° Série]])*T_sortie[Quantité]),0) -> 893 | N96: Correct | P96: =T_stock[[#This Row],[Quantité]] -> 0 | Q96: =IF(T_stock[[#This Row],[Stock Réel]]=0,"",T_stock[[#This Row],[Stock Réel]]-T_stock[[#This Row],[Stock Actuel]]+T_stock[[#This Row],[Modif inventaire]]) ->  | R96: 0 | S96: =IFERROR(VLOOKUP(T_stock[[#This Row],[ Notre Référence]],[2]!T_Inventaire[#Data],MATCH(T_stock[[#Headers],[Quantité]],[2]!T_Inventaire[#Headers],0),FALSE),0) -> 0
E97: 73053 | F97: =VLOOKUP(T_stock[[#This Row],[N° Série]],N°série[#All],7,FALSE) -> SEC 15/313A AC904L TERM SPLE | G97: =VLOOKUP(T_stock[[#This Row],[N° Série]],N°série[#All],2,FALSE) -> 0 | J97: 0 | K97: =VLOOKUP(T_stock[[#This Row],[N° Série]],N°série[#All],8,FALSE) -> 518 | L97: =IF($E97<>0,K97+SUMPRODUCT((T_entrée[N° Article Client]=$E97)*T_entrée[Quantité])-SUMPRODUCT((T_sortie[Référence]=T_stock[[#This Row],[N° Série]])*T_sortie[Quantité]),0) -> 518 | N97: Correct | P97: =T_stock[[#This Row],[Quantité]] -> 0 | Q97: =IF(T_stock[[#This Row],[Stock Réel]]=0,"",T_stock[[#This Row],[Stock Réel]]-T_stock[[#This Row],[Stock Actuel]]+T_stock[[#This Row],[Modif inventaire]]) ->  | R97: 0 | S97: =IFERROR(VLOOKUP(T_stock[[#This Row],[ Notre Référence]],[2]!T_Inventaire[#Data],MATCH(T_stock[[#Headers],[Quantité]],[2]!T_Inventaire[#Headers],0),FALSE),0) -> 0
E98: 73051 | F98: =VLOOKUP(T_stock[[#This Row],[N° Série]],N°série[#All],7,FALSE) -> CVE ASS 15/313 RL18R-410 TERM | G98: =VLOOKUP(T_stock[[#This Row],[N° Série]],N°série[#All],2,FALSE) -> 0 | J98: 0 | K98: =VLOOKUP(T_stock[[#This Row],[N° Série]],N°série[#All],8,FALSE) -> 478 | L98: =IF($E98<>0,K98+SUMPRODUCT((T_entrée[N° Article Client]=$E98)*T_entrée[Quantité])-SUMPRODUCT((T_sortie[Référence]=T_stock[[#This Row],[N° Série]])*T_sortie[Quantité]),0) -> 478 | N98: Correct | P98: =T_stock[[#This Row],[Quantité]] -> 0 | Q98: =IF(T_stock[[#This Row],[Stock Réel]]=0,"",T_stock[[#This Row],[Stock Réel]]-T_stock[[#This Row],[Stock Actuel]]+T_stock[[#This Row],[Modif inventaire]]) ->  | R98: 0 | S98: =IFERROR(VLOOKUP(T_stock[[#This Row],[ Notre Référence]],[2]!T_Inventaire[#Data],MATCH(T_stock[[#Headers],[Quantité]],[2]!T_Inventaire[#Headers],0),FALSE),0) -> 0
E99: 73054 | F99: =VLOOKUP(T_stock[[#This Row],[N° Série]],N°série[#All],7,FALSE) -> SEC ASS 15/400 AC SAT | G99: =VLOOKUP(T_stock[[#This Row],[N° Série]],N°série[#All],2,FALSE) -> 0 | J99: 0 | K99: =VLOOKUP(T_stock[[#This Row],[N° Série]],N°série[#All],8,FALSE) -> 1000 | L99: =IF($E99<>0,K99+SUMPRODUCT((T_entrée[N° Article Client]=$E99)*T_entrée[Quantité])-SUMPRODUCT((T_sortie[Référence]=T_stock[[#This Row],[N° Série]])*T_sortie[Quantité]),0) -> 1000 | N99: Correct | P99: =T_stock[[#This Row],[Quantité]] -> 0 | Q99: =IF(T_stock[[#This Row],[Stock Réel]]=0,"",T_stock[[#This Row],[Stock Réel]]-T_stock[[#This Row],[Stock Actuel]]+T_stock[[#This Row],[Modif inventaire]]) ->  | R99: 0 | S99: =IFERROR(VLOOKUP(T_stock[[#This Row],[ Notre Référence]],[2]!T_Inventaire[#Data],MATCH(T_stock[[#Headers],[Quantité]],[2]!T_Inventaire[#Headers],0),FALSE),0) -> 0
E100: 73020 | F100: =VLOOKUP(T_stock[[#This Row],[N° Série]],N°série[#All],7,FALSE) -> SEC ASS 12/313 RL18R-410 TERM | G100: =VLOOKUP(T_stock[[#This Row],[N° Série]],N°série[#All],2,FALSE) -> 0 | J100: 0 | K100: =VLOOKUP(T_stock[[#This Row],[N° Série]],N°série[#All],8,FALSE) -> 203 | L100: =IF($E100<>0,K100+SUMPRODUCT((T_entrée[N° Article Client]=$E100)*T_entrée[Quantité])-SUMPRODUCT((T_sortie[Référence]=T_stock[[#This Row],[N° Série]])*T_sortie[Quantité]),0) -> 203 | N100: Correct | P100: =T_stock[[#This Row],[Quantité]] -> 0 | Q100: =IF(T_stock[[#This Row],[Stock Réel]]=0,"",T_stock[[#This Row],[Stock Réel]]-T_stock[[#This Row],[Stock Actuel]]+T_stock[[#This Row],[Modif inventaire]]) ->  | R100: 0 | S100: =IFERROR(VLOOKUP(T_stock[[#This Row],[ Notre Référence]],[2]!T_Inventaire[#Data],MATCH(T_stock[[#Headers],[Quantité]],[2]!T_Inventaire[#Headers],0),FALSE),0) -> 0
E101: 73021 | F101: =VLOOKUP(T_stock[[#This Row],[N° Série]],N°série[#All],7,FALSE) -> SEC ASS 15/400 RL18R-410 TERM | G101: =VLOOKUP(T_stock[[#This Row],[N° Série]],N°série[#All],2,FALSE) -> 0 | J101: 0 | K101: =VLOOKUP(T_stock[[#This Row],[N° Série]],N°série[#All],8,FALSE) -> 151 | L101: =IF($E101<>0,K101+SUMPRODUCT((T_entrée[N° Article Client]=$E101)*T_entrée[Quantité])-SUMPRODUCT((T_sortie[Référence]=T_stock[[#This Row],[N° Série]])*T_sortie[Quantité]),0) -> 151 | N101: Correct | P101: =T_stock[[#This Row],[Quantité]] -> 0 | Q101: =IF(T_stock[[#This Row],[Stock Réel]]=0,"",T_stock[[#This Row],[Stock Réel]]-T_stock[[#This Row],[Stock Actuel]]+T_stock[[#This Row],[Modif inventaire]]) ->  | R101: 0 | S101: =IFERROR(VLOOKUP(T_stock[[#This Row],[ Notre Référence]],[2]!T_Inventaire[#Data],MATCH(T_stock[[#Headers],[Quantité]],[2]!T_Inventaire[#Headers],0),FALSE),0) -> 0
E102: 73022 | F102: =VLOOKUP(T_stock[[#This Row],[N° Série]],N°série[#All],7,FALSE) -> SEC ASS 17/400 AC SAT | G102: =VLOOKUP(T_stock[[#This Row],[N° Série]],N°série[#All],2,FALSE) -> 0 | J102: 0 | K102: =VLOOKUP(T_stock[[#This Row],[N° Série]],N°série[#All],8,FALSE) -> 519 | L102: =IF($E102<>0,K102+SUMPRODUCT((T_entrée[N° Article Client]=$E102)*T_entrée[Quantité])-SUMPRODUCT((T_sortie[Référence]=T_stock[[#This Row],[N° Série]])*T_sortie[Quantité]),0) -> 519 | N102: Correct | P102: =T_stock[[#This Row],[Quantité]] -> 0 | Q102: =IF(T_stock[[#This Row],[Stock Réel]]=0,"",T_stock[[#This Row],[Stock Réel]]-T_stock[[#This Row],[Stock Actuel]]+T_stock[[#This Row],[Modif inventaire]]) ->  | R102: 0 | S102: =IFERROR(VLOOKUP(T_stock[[#This Row],[ Notre Référence]],[2]!T_Inventaire[#Data],MATCH(T_stock[[#Headers],[Quantité]],[2]!T_Inventaire[#Headers],0),FALSE),0) -> 0
E103: 73060 | F103: =VLOOKUP(T_stock[[#This Row],[N° Série]],N°série[#All],7,FALSE) -> CVE ASS 15/313 RL18R-65 TERM | G103: =VLOOKUP(T_stock[[#This Row],[N° Série]],N°série[#All],2,FALSE) -> 0 | J103: 0 | K103: =VLOOKUP(T_stock[[#This Row],[N° Série]],N°série[#All],8,FALSE) -> 200 | L103: =IF($E103<>0,K103+SUMPRODUCT((T_entrée[N° Article Client]=$E103)*T_entrée[Quantité])-SUMPRODUCT((T_sortie[Référence]=T_stock[[#This Row],[N° Série]])*T_sortie[Quantité]),0) -> 200 | N103: Correct | P103: =T_stock[[#This Row],[Quantité]] -> 0 | Q103: =IF(T_stock[[#This Row],[Stock Réel]]=0,"",T_stock[[#This Row],[Stock Réel]]-T_stock[[#This Row],[Stock Actuel]]+T_stock[[#This Row],[Modif inventaire]]) ->  | R103: 0 | S103: =IFERROR(VLOOKUP(T_stock[[#This Row],[ Notre Référence]],[2]!T_Inventaire[#Data],MATCH(T_stock[[#Headers],[Quantité]],[2]!T_Inventaire[#Headers],0),FALSE),0) -> 0
E104: 73063 | F104: =VLOOKUP(T_stock[[#This Row],[N° Série]],N°série[#All],7,FALSE) -> SEC ASS 14/400 AC904L TERM | G104: =VLOOKUP(T_stock[[#This Row],[N° Série]],N°série[#All],2,FALSE) -> 0 | J104: 0 | K104: =VLOOKUP(T_stock[[#This Row],[N° Série]],N°série[#All],8,FALSE) -> 159 | L104: =IF($E104<>0,K104+SUMPRODUCT((T_entrée[N° Article Client]=$E104)*T_entrée[Quantité])-SUMPRODUCT((T_sortie[Référence]=T_stock[[#This Row],[N° Série]])*T_sortie[Quantité]),0) -> 159 | N104: Correct | P104: =T_stock[[#This Row],[Quantité]] -> 0 | Q104: =IF(T_stock[[#This Row],[Stock Réel]]=0,"",T_stock[[#This Row],[Stock Réel]]-T_stock[[#This Row],[Stock Actuel]]+T_stock[[#This Row],[Modif inventaire]]) ->  | R104: 0 | S104: =IFERROR(VLOOKUP(T_stock[[#This Row],[ Notre Référence]],[2]!T_Inventaire[#Data],MATCH(T_stock[[#Headers],[Quantité]],[2]!T_Inventaire[#Headers],0),FALSE),0) -> 0
E105: 73064 | F105: =VLOOKUP(T_stock[[#This Row],[N° Série]],N°série[#All],7,FALSE) -> CVE 11/313A AC904L TERM | G105: =VLOOKUP(T_stock[[#This Row],[N° Série]],N°série[#All],2,FALSE) -> 0 | J105: 0 | K105: =VLOOKUP(T_stock[[#This Row],[N° Série]],N°série[#All],8,FALSE) -> 241 | L105: =IF($E105<>0,K105+SUMPRODUCT((T_entrée[N° Article Client]=$E105)*T_entrée[Quantité])-SUMPRODUCT((T_sortie[Référence]=T_stock[[#This Row],[N° Série]])*T_sortie[Quantité]),0) -> 241 | N105: Correct | P105: =T_stock[[#This Row],[Quantité]] -> 0 | Q105: =IF(T_stock[[#This Row],[Stock Réel]]=0,"",T_stock[[#This Row],[Stock Réel]]-T_stock[[#This Row],[Stock Actuel]]+T_stock[[#This Row],[Modif inventaire]]) ->  | R105: 0 | S105: =IFERROR(VLOOKUP(T_stock[[#This Row],[ Notre Référence]],[2]!T_Inventaire[#Data],MATCH(T_stock[[#Headers],[Quantité]],[2]!T_Inventaire[#Headers],0),FALSE),0) -> 0
E106: 73059 | F106: =VLOOKUP(T_stock[[#This Row],[N° Série]],N°série[#All],7,FALSE) -> CVE ASS 12/313 RL18R-410 TERM | G106: =VLOOKUP(T_stock[[#This Row],[N° Série]],N°série[#All],2,FALSE) -> 0 | J106: 0 | K106: =VLOOKUP(T_stock[[#This Row],[N° Série]],N°série[#All],8,FALSE) -> 248 | L106: =IF($E106<>0,K106+SUMPRODUCT((T_entrée[N° Article Client]=$E106)*T_entrée[Quantité])-SUMPRODUCT((T_sortie[Référence]=T_stock[[#This Row],[N° Série]])*T_sortie[Quantité]),0) -> 248 | N106: Correct | P106: =T_stock[[#This Row],[Quantité]] -> 0 | Q106: =IF(T_stock[[#This Row],[Stock Réel]]=0,"",T_stock[[#This Row],[Stock Réel]]-T_stock[[#This Row],[Stock Actuel]]+T_stock[[#This Row],[Modif inventaire]]) ->  | R106: 0 | S106: =IFERROR(VLOOKUP(T_stock[[#This Row],[ Notre Référence]],[2]!T_Inventaire[#Data],MATCH(T_stock[[#Headers],[Quantité]],[2]!T_Inventaire[#Headers],0),FALSE),0) -> 0
E107: 73058 | F107: =VLOOKUP(T_stock[[#This Row],[N° Série]],N°série[#All],7,FALSE) -> CVE ASS 15/313 RL18J TERM | G107: =VLOOKUP(T_stock[[#This Row],[N° Série]],N°série[#All],2,FALSE) -> 0 | J107: 0 | K107: =VLOOKUP(T_stock[[#This Row],[N° Série]],N°série[#All],8,FALSE) -> 841 | L107: =IF($E107<>0,K107+SUMPRODUCT((T_entrée[N° Article Client]=$E107)*T_entrée[Quantité])-SUMPRODUCT((T_sortie[Référence]=T_stock[[#This Row],[N° Série]])*T_sortie[Quantité]),0) -> 841 | N107: Correct | P107: =T_stock[[#This Row],[Quantité]] -> 0 | Q107: =IF(T_stock[[#This Row],[Stock Réel]]=0,"",T_stock[[#This Row],[Stock Réel]]-T_stock[[#This Row],[Stock Actuel]]+T_stock[[#This Row],[Modif inventaire]]) ->  | R107: 0 | S107: =IFERROR(VLOOKUP(T_stock[[#This Row],[ Notre Référence]],[2]!T_Inventaire[#Data],MATCH(T_stock[[#Headers],[Quantité]],[2]!T_Inventaire[#Headers],0),FALSE),0) -> 0
E108: 73061 | F108: =VLOOKUP(T_stock[[#This Row],[N° Série]],N°série[#All],7,FALSE) -> SEC 15/313 AC904L TERM SPLE | G108: =VLOOKUP(T_stock[[#This Row],[N° Série]],N°série[#All],2,FALSE) -> 0 | J108: 0 | K108: =VLOOKUP(T_stock[[#This Row],[N° Série]],N°série[#All],8,FALSE) -> 1150 | L108: =IF($E108<>0,K108+SUMPRODUCT((T_entrée[N° Article Client]=$E108)*T_entrée[Quantité])-SUMPRODUCT((T_sortie[Référence]=T_stock[[#This Row],[N° Série]])*T_sortie[Quantité]),0) -> 1150 | N108: Correct | P108: =T_stock[[#This Row],[Quantité]] -> 0 | Q108: =IF(T_stock[[#This Row],[Stock Réel]]=0,"",T_stock[[#This Row],[Stock Réel]]-T_stock[[#This Row],[Stock Actuel]]+T_stock[[#This Row],[Modif inventaire]]) ->  | R108: 0 | S108: =IFERROR(VLOOKUP(T_stock[[#This Row],[ Notre Référence]],[2]!T_Inventaire[#Data],MATCH(T_stock[[#Headers],[Quantité]],[2]!T_Inventaire[#Headers],0),FALSE),0) -> 0
E109: 73062 | F109: =VLOOKUP(T_stock[[#This Row],[N° Série]],N°série[#All],7,FALSE) -> SEC 15/313A AC904L TERM SPLE | G109: =VLOOKUP(T_stock[[#This Row],[N° Série]],N°série[#All],2,FALSE) -> 0 | J109: 0 | K109: =VLOOKUP(T_stock[[#This Row],[N° Série]],N°série[#All],8,FALSE) -> 516 | L109: =IF($E109<>0,K109+SUMPRODUCT((T_entrée[N° Article Client]=$E109)*T_entrée[Quantité])-SUMPRODUCT((T_sortie[Référence]=T_stock[[#This Row],[N° Série]])*T_sortie[Quantité]),0) -> 516 | N109: Correct | P109: =T_stock[[#This Row],[Quantité]] -> 0 | Q109: =IF(T_stock[[#This Row],[Stock Réel]]=0,"",T_stock[[#This Row],[Stock Réel]]-T_stock[[#This Row],[Stock Actuel]]+T_stock[[#This Row],[Modif inventaire]]) ->  | R109: 0 | S109: =IFERROR(VLOOKUP(T_stock[[#This Row],[ Notre Référence]],[2]!T_Inventaire[#Data],MATCH(T_stock[[#Headers],[Quantité]],[2]!T_Inventaire[#Headers],0),FALSE),0) -> 0
E110: 73065 | F110: =VLOOKUP(T_stock[[#This Row],[N° Série]],N°série[#All],7,FALSE) -> CVE ASS EBL 15/313 AC TERM | G110: =VLOOKUP(T_stock[[#This Row],[N° Série]],N°série[#All],2,FALSE) -> 0 | J110: 0 | K110: =VLOOKUP(T_stock[[#This Row],[N° Série]],N°série[#All],8,FALSE) -> 1000 | L110: =IF($E110<>0,K110+SUMPRODUCT((T_entrée[N° Article Client]=$E110)*T_entrée[Quantité])-SUMPRODUCT((T_sortie[Référence]=T_stock[[#This Row],[N° Série]])*T_sortie[Quantité]),0) -> 1000 | N110: Correct | P110: =T_stock[[#This Row],[Quantité]] -> 0 | Q110: =IF(T_stock[[#This Row],[Stock Réel]]=0,"",T_stock[[#This Row],[Stock Réel]]-T_stock[[#This Row],[Stock Actuel]]+T_stock[[#This Row],[Modif inventaire]]) ->  | R110: 0 | S110: =IFERROR(VLOOKUP(T_stock[[#This Row],[ Notre Référence]],[2]!T_Inventaire[#Data],MATCH(T_stock[[#Headers],[Quantité]],[2]!T_Inventaire[#Headers],0),FALSE),0) -> 0
E111: 73066 | F111: =VLOOKUP(T_stock[[#This Row],[N° Série]],N°série[#All],7,FALSE) -> SEC 15/313 AC904L TERM SPLE | G111: =VLOOKUP(T_stock[[#This Row],[N° Série]],N°série[#All],2,FALSE) -> 0 | J111: 0 | K111: =VLOOKUP(T_stock[[#This Row],[N° Série]],N°série[#All],8,FALSE) -> 1150 | L111: =IF($E111<>0,K111+SUMPRODUCT((T_entrée[N° Article Client]=$E111)*T_entrée[Quantité])-SUMPRODUCT((T_sortie[Référence]=T_stock[[#This Row],[N° Série]])*T_sortie[Quantité]),0) -> 1150 | N111: Correct | P111: =T_stock[[#This Row],[Quantité]] -> 0 | Q111: =IF(T_stock[[#This Row],[Stock Réel]]=0,"",T_stock[[#This Row],[Stock Réel]]-T_stock[[#This Row],[Stock Actuel]]+T_stock[[#This Row],[Modif inventaire]]) ->  | R111: 0 | S111: =IFERROR(VLOOKUP(T_stock[[#This Row],[ Notre Référence]],[2]!T_Inventaire[#Data],MATCH(T_stock[[#Headers],[Quantité]],[2]!T_Inventaire[#Headers],0),FALSE),0) -> 0
E112: 73067 | F112: =VLOOKUP(T_stock[[#This Row],[N° Série]],N°série[#All],7,FALSE) -> SEC 15/313A AC904L TERM SPLE | G112: =VLOOKUP(T_stock[[#This Row],[N° Série]],N°série[#All],2,FALSE) -> 0 | J112: 0 | K112: =VLOOKUP(T_stock[[#This Row],[N° Série]],N°série[#All],8,FALSE) -> 516 | L112: =IF($E112<>0,K112+SUMPRODUCT((T_entrée[N° Article Client]=$E112)*T_entrée[Quantité])-SUMPRODUCT((T_sortie[Référence]=T_stock[[#This Row],[N° Série]])*T_sortie[Quantité]),0) -> 516 | N112: Correct | P112: =T_stock[[#This Row],[Quantité]] -> 0 | Q112: =IF(T_stock[[#This Row],[Stock Réel]]=0,"",T_stock[[#This Row],[Stock Réel]]-T_stock[[#This Row],[Stock Actuel]]+T_stock[[#This Row],[Modif inventaire]]) ->  | R112: 0 | S112: =IFERROR(VLOOKUP(T_stock[[#This Row],[ Notre Référence]],[2]!T_Inventaire[#Data],MATCH(T_stock[[#Headers],[Quantité]],[2]!T_Inventaire[#Headers],0),FALSE),0) -> 0
E113: 73068 | F113: =VLOOKUP(T_stock[[#This Row],[N° Série]],N°série[#All],7,FALSE) -> CVE ASS EBL 15/313 AC TERM | G113: =VLOOKUP(T_stock[[#This Row],[N° Série]],N°série[#All],2,FALSE) -> 0 | J113: 0 | K113: =VLOOKUP(T_stock[[#This Row],[N° Série]],N°série[#All],8,FALSE) -> 1000 | L113: =IF($E113<>0,K113+SUMPRODUCT((T_entrée[N° Article Client]=$E113)*T_entrée[Quantité])-SUMPRODUCT((T_sortie[Référence]=T_stock[[#This Row],[N° Série]])*T_sortie[Quantité]),0) -> 1000 | N113: Correct | P113: =T_stock[[#This Row],[Quantité]] -> 0 | Q113: =IF(T_stock[[#This Row],[Stock Réel]]=0,"",T_stock[[#This Row],[Stock Réel]]-T_stock[[#This Row],[Stock Actuel]]+T_stock[[#This Row],[Modif inventaire]]) ->  | R113: 0 | S113: =IFERROR(VLOOKUP(T_stock[[#This Row],[ Notre Référence]],[2]!T_Inventaire[#Data],MATCH(T_stock[[#Headers],[Quantité]],[2]!T_Inventaire[#Headers],0),FALSE),0) -> 0
E114: 73071 | F114: =VLOOKUP(T_stock[[#This Row],[N° Série]],N°série[#All],7,FALSE) -> SEC 15/313A AC904L TERM SPLE | G114: =VLOOKUP(T_stock[[#This Row],[N° Série]],N°série[#All],2,FALSE) -> 0 | J114: 0 | K114: =VLOOKUP(T_stock[[#This Row],[N° Série]],N°série[#All],8,FALSE) -> 518 | L114: =IF($E114<>0,K114+SUMPRODUCT((T_entrée[N° Article Client]=$E114)*T_entrée[Quantité])-SUMPRODUCT((T_sortie[Référence]=T_stock[[#This Row],[N° Série]])*T_sortie[Quantité]),0) -> 518 | N114: Correct | P114: =T_stock[[#This Row],[Quantité]] -> 0 | Q114: =IF(T_stock[[#This Row],[Stock Réel]]=0,"",T_stock[[#This Row],[Stock Réel]]-T_stock[[#This Row],[Stock Actuel]]+T_stock[[#This Row],[Modif inventaire]]) ->  | R114: 0 | S114: =IFERROR(VLOOKUP(T_stock[[#This Row],[ Notre Référence]],[2]!T_Inventaire[#Data],MATCH(T_stock[[#Headers],[Quantité]],[2]!T_Inventaire[#Headers],0),FALSE),0) -> 0
E115: 73069 | F115: =VLOOKUP(T_stock[[#This Row],[N° Série]],N°série[#All],7,FALSE) -> CVE ASS EBL 15/313 AC TERM | G115: =VLOOKUP(T_stock[[#This Row],[N° Série]],N°série[#All],2,FALSE) -> 0 | J115: 0 | K115: =VLOOKUP(T_stock[[#This Row],[N° Série]],N°série[#All],8,FALSE) -> 518 | L115: =IF($E115<>0,K115+SUMPRODUCT((T_entrée[N° Article Client]=$E115)*T_entrée[Quantité])-SUMPRODUCT((T_sortie[Référence]=T_stock[[#This Row],[N° Série]])*T_sortie[Quantité]),0) -> 518 | N115: Correct | P115: =T_stock[[#This Row],[Quantité]] -> 0 | Q115: =IF(T_stock[[#This Row],[Stock Réel]]=0,"",T_stock[[#This Row],[Stock Réel]]-T_stock[[#This Row],[Stock Actuel]]+T_stock[[#This Row],[Modif inventaire]]) ->  | R115: 0 | S115: =IFERROR(VLOOKUP(T_stock[[#This Row],[ Notre Référence]],[2]!T_Inventaire[#Data],MATCH(T_stock[[#Headers],[Quantité]],[2]!T_Inventaire[#Headers],0),FALSE),0) -> 0
E116: 73070 | F116: =VLOOKUP(T_stock[[#This Row],[N° Série]],N°série[#All],7,FALSE) -> SEC 15/313 AC904L TERM SPLE | G116: =VLOOKUP(T_stock[[#This Row],[N° Série]],N°série[#All],2,FALSE) -> 0 | J116: 0 | K116: =VLOOKUP(T_stock[[#This Row],[N° Série]],N°série[#All],8,FALSE) -> 1150 | L116: =IF($E116<>0,K116+SUMPRODUCT((T_entrée[N° Article Client]=$E116)*T_entrée[Quantité])-SUMPRODUCT((T_sortie[Référence]=T_stock[[#This Row],[N° Série]])*T_sortie[Quantité]),0) -> 1150 | N116: Correct | P116: =T_stock[[#This Row],[Quantité]] -> 0 | Q116: =IF(T_stock[[#This Row],[Stock Réel]]=0,"",T_stock[[#This Row],[Stock Réel]]-T_stock[[#This Row],[Stock Actuel]]+T_stock[[#This Row],[Modif inventaire]]) ->  | R116: 0 | S116: =IFERROR(VLOOKUP(T_stock[[#This Row],[ Notre Référence]],[2]!T_Inventaire[#Data],MATCH(T_stock[[#Headers],[Quantité]],[2]!T_Inventaire[#Headers],0),FALSE),0) -> 0
E117: 73023 | F117: =VLOOKUP(T_stock[[#This Row],[N° Série]],N°série[#All],7,FALSE) -> CVE ASS 12/313 AC904L TERM | G117: =VLOOKUP(T_stock[[#This Row],[N° Série]],N°série[#All],2,FALSE) -> 0 | J117: 0 | K117: =VLOOKUP(T_stock[[#This Row],[N° Série]],N°série[#All],8,FALSE) -> 483 | L117: =IF($E117<>0,K117+SUMPRODUCT((T_entrée[N° Article Client]=$E117)*T_entrée[Quantité])-SUMPRODUCT((T_sortie[Référence]=T_stock[[#This Row],[N° Série]])*T_sortie[Quantité]),0) -> 483 | N117: Correct | P117: =T_stock[[#This Row],[Quantité]] -> 0 | Q117: =IF(T_stock[[#This Row],[Stock Réel]]=0,"",T_stock[[#This Row],[Stock Réel]]-T_stock[[#This Row],[Stock Actuel]]+T_stock[[#This Row],[Modif inventaire]]) ->  | R117: 0 | S117: =IFERROR(VLOOKUP(T_stock[[#This Row],[ Notre Référence]],[2]!T_Inventaire[#Data],MATCH(T_stock[[#Headers],[Quantité]],[2]!T_Inventaire[#Headers],0),FALSE),0) -> 0
E118: 73072 | F118: =VLOOKUP(T_stock[[#This Row],[N° Série]],N°série[#All],7,FALSE) -> CVE ASS EBL 15/313 AC TERM | G118: =VLOOKUP(T_stock[[#This Row],[N° Série]],N°série[#All],2,FALSE) -> 32750 | J118: 0 | K118: =VLOOKUP(T_stock[[#This Row],[N° Série]],N°série[#All],8,FALSE) -> 1000 | L118: =IF($E118<>0,K118+SUMPRODUCT((T_entrée[N° Article Client]=$E118)*T_entrée[Quantité])-SUMPRODUCT((T_sortie[Référence]=T_stock[[#This Row],[N° Série]])*T_sortie[Quantité]),0) -> 1000 | N118: Correct | P118: =T_stock[[#This Row],[Quantité]] -> 0 | Q118: =IF(T_stock[[#This Row],[Stock Réel]]=0,"",T_stock[[#This Row],[Stock Réel]]-T_stock[[#This Row],[Stock Actuel]]+T_stock[[#This Row],[Modif inventaire]]) ->  | R118: 0 | S118: =IFERROR(VLOOKUP(T_stock[[#This Row],[ Notre Référence]],[2]!T_Inventaire[#Data],MATCH(T_stock[[#Headers],[Quantité]],[2]!T_Inventaire[#Headers],0),FALSE),0) -> 0
E119: 73073 | F119: =VLOOKUP(T_stock[[#This Row],[N° Série]],N°série[#All],7,FALSE) -> CVE ASS EBL 15/313 AC TERM | G119: =VLOOKUP(T_stock[[#This Row],[N° Série]],N°série[#All],2,FALSE) -> 32750 | J119: 0 | K119: =VLOOKUP(T_stock[[#This Row],[N° Série]],N°série[#All],8,FALSE) -> 1000 | L119: =IF($E119<>0,K119+SUMPRODUCT((T_entrée[N° Article Client]=$E119)*T_entrée[Quantité])-SUMPRODUCT((T_sortie[Référence]=T_stock[[#This Row],[N° Série]])*T_sortie[Quantité]),0) -> 1000 | N119: Correct | P119: =T_stock[[#This Row],[Quantité]] -> 0 | Q119: =IF(T_stock[[#This Row],[Stock Réel]]=0,"",T_stock[[#This Row],[Stock Réel]]-T_stock[[#This Row],[Stock Actuel]]+T_stock[[#This Row],[Modif inventaire]]) ->  | R119: 0 | S119: =IFERROR(VLOOKUP(T_stock[[#This Row],[ Notre Référence]],[2]!T_Inventaire[#Data],MATCH(T_stock[[#Headers],[Quantité]],[2]!T_Inventaire[#Headers],0),FALSE),0) -> 0
E120: 73074 | F120: =VLOOKUP(T_stock[[#This Row],[N° Série]],N°série[#All],7,FALSE) -> SEC 15/313 AC904L TERM SPLE | G120: =VLOOKUP(T_stock[[#This Row],[N° Série]],N°série[#All],2,FALSE) -> 32305 | J120: 0 | K120: =VLOOKUP(T_stock[[#This Row],[N° Série]],N°série[#All],8,FALSE) -> 1150 | L120: =IF($E120<>0,K120+SUMPRODUCT((T_entrée[N° Article Client]=$E120)*T_entrée[Quantité])-SUMPRODUCT((T_sortie[Référence]=T_stock[[#This Row],[N° Série]])*T_sortie[Quantité]),0) -> 1150 | N120: Correct | P120: =T_stock[[#This Row],[Quantité]] -> 0 | Q120: =IF(T_stock[[#This Row],[Stock Réel]]=0,"",T_stock[[#This Row],[Stock Réel]]-T_stock[[#This Row],[Stock Actuel]]+T_stock[[#This Row],[Modif inventaire]]) ->  | R120: 0 | S120: =IFERROR(VLOOKUP(T_stock[[#This Row],[ Notre Référence]],[2]!T_Inventaire[#Data],MATCH(T_stock[[#Headers],[Quantité]],[2]!T_Inventaire[#Headers],0),FALSE),0) -> 0
E121: 71825 | F121: =VLOOKUP(T_stock[[#This Row],[N° Série]],N°série[#All],7,FALSE) -> ALL FER 97220 17 AC SAT MONO | G121: =VLOOKUP(T_stock[[#This Row],[N° Série]],N°série[#All],2,FALSE) -> 0 | J121: 0 | K121: =VLOOKUP(T_stock[[#This Row],[N° Série]],N°série[#All],8,FALSE) -> 50 | L121: =IF($E121<>0,K121+SUMPRODUCT((T_entrée[N° Article Client]=$E121)*T_entrée[Quantité])-SUMPRODUCT((T_sortie[Référence]=T_stock[[#This Row],[N° Série]])*T_sortie[Quantité]),0) -> 50 | N121: Correct | P121: =T_stock[[#This Row],[Quantité]] -> 0 | Q121: =IF(T_stock[[#This Row],[Stock Réel]]=0,"",T_stock[[#This Row],[Stock Réel]]-T_stock[[#This Row],[Stock Actuel]]+T_stock[[#This Row],[Modif inventaire]]) ->  | R121: 0 | S121: =IFERROR(VLOOKUP(T_stock[[#This Row],[ Notre Référence]],[2]!T_Inventaire[#Data],MATCH(T_stock[[#Headers],[Quantité]],[2]!T_Inventaire[#Headers],0),FALSE),0) -> 0
E122: 70717 | F122: =VLOOKUP(T_stock[[#This Row],[N° Série]],N°série[#All],7,FALSE) -> CVE ASS 15/313 RL18R-410 TERM | G122: =VLOOKUP(T_stock[[#This Row],[N° Série]],N°série[#All],2,FALSE) -> 0 | J122: 0 | K122: =VLOOKUP(T_stock[[#This Row],[N° Série]],N°série[#All],8,FALSE) -> 2 | L122: =IF($E122<>0,K122+SUMPRODUCT((T_entrée[N° Article Client]=$E122)*T_entrée[Quantité])-SUMPRODUCT((T_sortie[Référence]=T_stock[[#This Row],[N° Série]])*T_sortie[Quantité]),0) -> 2 | N122: Correct | P122: =T_stock[[#This Row],[Quantité]] -> 0 | Q122: =IF(T_stock[[#This Row],[Stock Réel]]=0,"",T_stock[[#This Row],[Stock Réel]]-T_stock[[#This Row],[Stock Actuel]]+T_stock[[#This Row],[Modif inventaire]]) ->  | R122: 0 | S122: =IFERROR(VLOOKUP(T_stock[[#This Row],[ Notre Référence]],[2]!T_Inventaire[#Data],MATCH(T_stock[[#Headers],[Quantité]],[2]!T_Inventaire[#Headers],0),FALSE),0) -> 0
F123: =VLOOKUP(T_stock[[#This Row],[N° Série]],N°série[#All],7,FALSE) ->  | G123: =VLOOKUP(T_stock[[#This Row],[N° Série]],N°série[#All],2,FALSE) ->  | K123: =VLOOKUP(T_stock[[#This Row],[N° Série]],N°série[#All],8,FALSE) ->  | L123: =IF($E123<>0,K123+SUMPRODUCT((T_entrée[N° Article Client]=$E123)*T_entrée[Quantité])-SUMPRODUCT((T_sortie[Référence]=T_stock[[#This Row],[N° Série]])*T_sortie[Quantité]),0) -> 0 | N123: Correct | P123: =T_stock[[#This Row],[Quantité]] -> 0 | Q123: =IF(T_stock[[#This Row],[Stock Réel]]=0,"",T_stock[[#This Row],[Stock Réel]]-T_stock[[#This Row],[Stock Actuel]]+T_stock[[#This Row],[Modif inventaire]]) ->  | R123: 0 | S123: =IFERROR(VLOOKUP(T_stock[[#This Row],[ Notre Référence]],[2]!T_Inventaire[#Data],MATCH(T_stock[[#Headers],[Quantité]],[2]!T_Inventaire[#Headers],0),FALSE),0) -> 0
F124: =VLOOKUP(T_stock[[#This Row],[N° Série]],N°série[#All],7,FALSE) ->  | G124: =VLOOKUP(T_stock[[#This Row],[N° Série]],N°série[#All],2,FALSE) ->  | K124: =VLOOKUP(T_stock[[#This Row],[N° Série]],N°série[#All],8,FALSE) ->  | L124: =IF($E124<>0,K124+SUMPRODUCT((T_entrée[N° Article Client]=$E124)*T_entrée[Quantité])-SUMPRODUCT((T_sortie[Référence]=T_stock[[#This Row],[N° Série]])*T_sortie[Quantité]),0) -> 0 | N124: Correct | P124: =T_stock[[#This Row],[Quantité]] -> 0 | Q124: =IF(T_stock[[#This Row],[Stock Réel]]=0,"",T_stock[[#This Row],[Stock Réel]]-T_stock[[#This Row],[Stock Actuel]]+T_stock[[#This Row],[Modif inventaire]]) ->  | R124: 0 | S124: =IFERROR(VLOOKUP(T_stock[[#This Row],[ Notre Référence]],[2]!T_Inventaire[#Data],MATCH(T_stock[[#Headers],[Quantité]],[2]!T_Inventaire[#Headers],0),FALSE),0) -> 0
E125: 73092 | F125: =VLOOKUP(T_stock[[#This Row],[N° Série]],N°série[#All],7,FALSE) ->  | G125: =VLOOKUP(T_stock[[#This Row],[N° Série]],N°série[#All],2,FALSE) -> 0 | K125: =VLOOKUP(T_stock[[#This Row],[N° Série]],N°série[#All],8,FALSE) -> 0 | L125: =IF($E125<>0,K125+SUMPRODUCT((T_entrée[N° Article Client]=$E125)*T_entrée[Quantité])-SUMPRODUCT((T_sortie[Référence]=T_stock[[#This Row],[N° Série]])*T_sortie[Quantité]),0) -> 0 | N125: Correct | P125: =T_stock[[#This Row],[Quantité]] -> 0 | Q125: =IF(T_stock[[#This Row],[Stock Réel]]=0,"",T_stock[[#This Row],[Stock Réel]]-T_stock[[#This Row],[Stock Actuel]]+T_stock[[#This Row],[Modif inventaire]]) ->  | R125: 0 | S125: =IFERROR(VLOOKUP(T_stock[[#This Row],[ Notre Référence]],[2]!T_Inventaire[#Data],MATCH(T_stock[[#Headers],[Quantité]],[2]!T_Inventaire[#Headers],0),FALSE),0) -> 0
F126: =VLOOKUP(T_stock[[#This Row],[N° Série]],N°série[#All],7,FALSE) ->  | G126: =VLOOKUP(T_stock[[#This Row],[N° Série]],N°série[#All],2,FALSE) ->  | K126: =VLOOKUP(T_stock[[#This Row],[N° Série]],N°série[#All],8,FALSE) ->  | L126: =IF($E126<>0,K126+SUMPRODUCT((T_entrée[N° Article Client]=$E126)*T_entrée[Quantité])-SUMPRODUCT((T_sortie[Référence]=T_stock[[#This Row],[N° Série]])*T_sortie[Quantité]),0) -> 0 | N126: Correct | P126: =T_stock[[#This Row],[Quantité]] -> 0 | Q126: =IF(T_stock[[#This Row],[Stock Réel]]=0,"",T_stock[[#This Row],[Stock Réel]]-T_stock[[#This Row],[Stock Actuel]]+T_stock[[#This Row],[Modif inventaire]]) ->  | R126: 0 | S126: =IFERROR(VLOOKUP(T_stock[[#This Row],[ Notre Référence]],[2]!T_Inventaire[#Data],MATCH(T_stock[[#Headers],[Quantité]],[2]!T_Inventaire[#Headers],0),FALSE),0) -> 0
E127: 1 | F127: =VLOOKUP(T_stock[[#This Row],[N° Série]],N°série[#All],7,FALSE) -> CVE 15/313 AC904L SAT | G127: =VLOOKUP(T_stock[[#This Row],[N° Série]],N°série[#All],2,FALSE) -> 32748 | J127: 0 | K127: =VLOOKUP(T_stock[[#This Row],[N° Série]],N°série[#All],8,FALSE) -> 763 | L127: =IF($E127<>0,K127+SUMPRODUCT((T_entrée[N° Article Client]=$E127)*T_entrée[Quantité])-SUMPRODUCT((T_sortie[Référence]=T_stock[[#This Row],[N° Série]])*T_sortie[Quantité]),0) -> 763 | N127: Correct | P127: =T_stock[[#This Row],[Quantité]] -> 0 | Q127: =IF(T_stock[[#This Row],[Stock Réel]]=0,"",T_stock[[#This Row],[Stock Réel]]-T_stock[[#This Row],[Stock Actuel]]+T_stock[[#This Row],[Modif inventaire]]) ->  | R127: 0 | S127: =IFERROR(VLOOKUP(T_stock[[#This Row],[ Notre Référence]],[2]!T_Inventaire[#Data],MATCH(T_stock[[#Headers],[Quantité]],[2]!T_Inventaire[#Headers],0),FALSE),0) -> 0
E128: 73093 | F128: =VLOOKUP(T_stock[[#This Row],[N° Série]],N°série[#All],7,FALSE) -> SEC ASS 15/313 RL18R-410 TERM | G128: =VLOOKUP(T_stock[[#This Row],[N° Série]],N°série[#All],2,FALSE) -> 32726 | J128: 0 | K128: =VLOOKUP(T_stock[[#This Row],[N° Série]],N°série[#All],8,FALSE) -> 263 | L128: =IF($E128<>0,K128+SUMPRODUCT((T_entrée[N° Article Client]=$E128)*T_entrée[Quantité])-SUMPRODUCT((T_sortie[Référence]=T_stock[[#This Row],[N° Série]])*T_sortie[Quantité]),0) -> 263 | N128: Correct | P128: =T_stock[[#This Row],[Quantité]] -> 0 | Q128: =IF(T_stock[[#This Row],[Stock Réel]]=0,"",T_stock[[#This Row],[Stock Réel]]-T_stock[[#This Row],[Stock Actuel]]+T_stock[[#This Row],[Modif inventaire]]) ->  | R128: 0 | S128: =IFERROR(VLOOKUP(T_stock[[#This Row],[ Notre Référence]],[2]!T_Inventaire[#Data],MATCH(T_stock[[#Headers],[Quantité]],[2]!T_Inventaire[#Headers],0),FALSE),0) -> 0
E129: 73098 | F129: =VLOOKUP(T_stock[[#This Row],[N° Série]],N°série[#All],7,FALSE) -> SEC 13/313 AC904L TERM | G129: =VLOOKUP(T_stock[[#This Row],[N° Série]],N°série[#All],2,FALSE) -> 32363 | J129: 0 | K129: =VLOOKUP(T_stock[[#This Row],[N° Série]],N°série[#All],8,FALSE) -> 500 | L129: =IF($E129<>0,K129+SUMPRODUCT((T_entrée[N° Article Client]=$E129)*T_entrée[Quantité])-SUMPRODUCT((T_sortie[Référence]=T_stock[[#This Row],[N° Série]])*T_sortie[Quantité]),0) -> 500 | N129: Correct | P129: =T_stock[[#This Row],[Quantité]] -> 0 | Q129: =IF(T_stock[[#This Row],[Stock Réel]]=0,"",T_stock[[#This Row],[Stock Réel]]-T_stock[[#This Row],[Stock Actuel]]+T_stock[[#This Row],[Modif inventaire]]) ->  | R129: 0 | S129: =IFERROR(VLOOKUP(T_stock[[#This Row],[ Notre Référence]],[2]!T_Inventaire[#Data],MATCH(T_stock[[#Headers],[Quantité]],[2]!T_Inventaire[#Headers],0),FALSE),0) -> 0
E130: 73097 | F130: =VLOOKUP(T_stock[[#This Row],[N° Série]],N°série[#All],7,FALSE) -> SEC 15/313A AC904L TERM SPLE | G130: =VLOOKUP(T_stock[[#This Row],[N° Série]],N°série[#All],2,FALSE) -> 32403 | J130: 0 | K130: =VLOOKUP(T_stock[[#This Row],[N° Série]],N°série[#All],8,FALSE) -> 1493 | L130: =IF($E130<>0,K130+SUMPRODUCT((T_entrée[N° Article Client]=$E130)*T_entrée[Quantité])-SUMPRODUCT((T_sortie[Référence]=T_stock[[#This Row],[N° Série]])*T_sortie[Quantité]),0) -> 1493 | N130: Correct | P130: =T_stock[[#This Row],[Quantité]] -> 0 | Q130: =IF(T_stock[[#This Row],[Stock Réel]]=0,"",T_stock[[#This Row],[Stock Réel]]-T_stock[[#This Row],[Stock Actuel]]+T_stock[[#This Row],[Modif inventaire]]) ->  | R130: 0 | S130: =IFERROR(VLOOKUP(T_stock[[#This Row],[ Notre Référence]],[2]!T_Inventaire[#Data],MATCH(T_stock[[#Headers],[Quantité]],[2]!T_Inventaire[#Headers],0),FALSE),0) -> 0
E131: 73096 | F131: =VLOOKUP(T_stock[[#This Row],[N° Série]],N°série[#All],7,FALSE) -> SEC 13/313A AC904L TERM | G131: =VLOOKUP(T_stock[[#This Row],[N° Série]],N°série[#All],2,FALSE) -> 32417 | J131: 0 | K131: =VLOOKUP(T_stock[[#This Row],[N° Série]],N°série[#All],8,FALSE) -> 135 | L131: =IF($E131<>0,K131+SUMPRODUCT((T_entrée[N° Article Client]=$E131)*T_entrée[Quantité])-SUMPRODUCT((T_sortie[Référence]=T_stock[[#This Row],[N° Série]])*T_sortie[Quantité]),0) -> 135 | N131: Correct | P131: =T_stock[[#This Row],[Quantité]] -> 0 | Q131: =IF(T_stock[[#This Row],[Stock Réel]]=0,"",T_stock[[#This Row],[Stock Réel]]-T_stock[[#This Row],[Stock Actuel]]+T_stock[[#This Row],[Modif inventaire]]) ->  | R131: 0 | S131: =IFERROR(VLOOKUP(T_stock[[#This Row],[ Notre Référence]],[2]!T_Inventaire[#Data],MATCH(T_stock[[#Headers],[Quantité]],[2]!T_Inventaire[#Headers],0),FALSE),0) -> 0
E132: 73095 | F132: =VLOOKUP(T_stock[[#This Row],[N° Série]],N°série[#All],7,FALSE) -> CVE ASS 12/313 AC904L TERM | G132: =VLOOKUP(T_stock[[#This Row],[N° Série]],N°série[#All],2,FALSE) -> 32752 | J132: 0 | K132: =VLOOKUP(T_stock[[#This Row],[N° Série]],N°série[#All],8,FALSE) -> 464 | L132: =IF($E132<>0,K132+SUMPRODUCT((T_entrée[N° Article Client]=$E132)*T_entrée[Quantité])-SUMPRODUCT((T_sortie[Référence]=T_stock[[#This Row],[N° Série]])*T_sortie[Quantité]),0) -> 464 | N132: Correct | P132: =T_stock[[#This Row],[Quantité]] -> 0 | Q132: =IF(T_stock[[#This Row],[Stock Réel]]=0,"",T_stock[[#This Row],[Stock Réel]]-T_stock[[#This Row],[Stock Actuel]]+T_stock[[#This Row],[Modif inventaire]]) ->  | R132: 0 | S132: =IFERROR(VLOOKUP(T_stock[[#This Row],[ Notre Référence]],[2]!T_Inventaire[#Data],MATCH(T_stock[[#Headers],[Quantité]],[2]!T_Inventaire[#Headers],0),FALSE),0) -> 0
E133: 73094 | F133: =VLOOKUP(T_stock[[#This Row],[N° Série]],N°série[#All],7,FALSE) -> CVE ASS EBL 15/313 AC TERM | G133: =VLOOKUP(T_stock[[#This Row],[N° Série]],N°série[#All],2,FALSE) -> 32750 | J133: 0 | K133: =VLOOKUP(T_stock[[#This Row],[N° Série]],N°série[#All],8,FALSE) -> 223 | L133: =IF($E133<>0,K133+SUMPRODUCT((T_entrée[N° Article Client]=$E133)*T_entrée[Quantité])-SUMPRODUCT((T_sortie[Référence]=T_stock[[#This Row],[N° Série]])*T_sortie[Quantité]),0) -> 223 | N133: Correct | P133: =T_stock[[#This Row],[Quantité]] -> 0 | Q133: =IF(T_stock[[#This Row],[Stock Réel]]=0,"",T_stock[[#This Row],[Stock Réel]]-T_stock[[#This Row],[Stock Actuel]]+T_stock[[#This Row],[Modif inventaire]]) ->  | R133: 0 | S133: =IFERROR(VLOOKUP(T_stock[[#This Row],[ Notre Référence]],[2]!T_Inventaire[#Data],MATCH(T_stock[[#Headers],[Quantité]],[2]!T_Inventaire[#Headers],0),FALSE),0) -> 0
E134: 73099 | F134: =VLOOKUP(T_stock[[#This Row],[N° Série]],N°série[#All],7,FALSE) -> CVE 15/313 AC904L SAT | G134: =VLOOKUP(T_stock[[#This Row],[N° Série]],N°série[#All],2,FALSE) -> 32748 | J134: 0 | K134: =VLOOKUP(T_stock[[#This Row],[N° Série]],N°série[#All],8,FALSE) -> 947 | L134: =IF($E134<>0,K134+SUMPRODUCT((T_entrée[N° Article Client]=$E134)*T_entrée[Quantité])-SUMPRODUCT((T_sortie[Référence]=T_stock[[#This Row],[N° Série]])*T_sortie[Quantité]),0) -> 947 | N134: Correct | P134: =T_stock[[#This Row],[Quantité]] -> 0 | Q134: =IF(T_stock[[#This Row],[Stock Réel]]=0,"",T_stock[[#This Row],[Stock Réel]]-T_stock[[#This Row],[Stock Actuel]]+T_stock[[#This Row],[Modif inventaire]]) ->  | R134: 0 | S134: =IFERROR(VLOOKUP(T_stock[[#This Row],[ Notre Référence]],[2]!T_Inventaire[#Data],MATCH(T_stock[[#Headers],[Quantité]],[2]!T_Inventaire[#Headers],0),FALSE),0) -> 0
E135: 73100 | F135: =VLOOKUP(T_stock[[#This Row],[N° Série]],N°série[#All],7,FALSE) -> CVE ASS EBL 15/313 AC TERM | G135: =VLOOKUP(T_stock[[#This Row],[N° Série]],N°série[#All],2,FALSE) -> 32750 | J135: 0 | K135: =VLOOKUP(T_stock[[#This Row],[N° Série]],N°série[#All],8,FALSE) -> 1000 | L135: =IF($E135<>0,K135+SUMPRODUCT((T_entrée[N° Article Client]=$E135)*T_entrée[Quantité])-SUMPRODUCT((T_sortie[Référence]=T_stock[[#This Row],[N° Série]])*T_sortie[Quantité]),0) -> 1000 | N135: Correct | P135: =T_stock[[#This Row],[Quantité]] -> 0 | Q135: =IF(T_stock[[#This Row],[Stock Réel]]=0,"",T_stock[[#This Row],[Stock Réel]]-T_stock[[#This Row],[Stock Actuel]]+T_stock[[#This Row],[Modif inventaire]]) ->  | R135: 0 | S135: =IFERROR(VLOOKUP(T_stock[[#This Row],[ Notre Référence]],[2]!T_Inventaire[#Data],MATCH(T_stock[[#Headers],[Quantité]],[2]!T_Inventaire[#Headers],0),FALSE),0) -> 0
E136: 73104 | F136: =VLOOKUP(T_stock[[#This Row],[N° Série]],N°série[#All],7,FALSE) -> CVE ASS EBL 15/313 AC TERM | G136: =VLOOKUP(T_stock[[#This Row],[N° Série]],N°série[#All],2,FALSE) -> 32750 | J136: 0 | K136: =VLOOKUP(T_stock[[#This Row],[N° Série]],N°série[#All],8,FALSE) -> 463 | L136: =IF($E136<>0,K136+SUMPRODUCT((T_entrée[N° Article Client]=$E136)*T_entrée[Quantité])-SUMPRODUCT((T_sortie[Référence]=T_stock[[#This Row],[N° Série]])*T_sortie[Quantité]),0) -> 463 | N136: Correct | P136: =T_stock[[#This Row],[Quantité]] -> 0 | Q136: =IF(T_stock[[#This Row],[Stock Réel]]=0,"",T_stock[[#This Row],[Stock Réel]]-T_stock[[#This Row],[Stock Actuel]]+T_stock[[#This Row],[Modif inventaire]]) ->  | R136: 0 | S136: =IFERROR(VLOOKUP(T_stock[[#This Row],[ Notre Référence]],[2]!T_Inventaire[#Data],MATCH(T_stock[[#Headers],[Quantité]],[2]!T_Inventaire[#Headers],0),FALSE),0) -> 0
E137: 73103 | F137: =VLOOKUP(T_stock[[#This Row],[N° Série]],N°série[#All],7,FALSE) -> CVE ASS EBL 15/313 AC TERM | G137: =VLOOKUP(T_stock[[#This Row],[N° Série]],N°série[#All],2,FALSE) -> 32750 | J137: 0 | K137: =VLOOKUP(T_stock[[#This Row],[N° Série]],N°série[#All],8,FALSE) -> 1000 | L137: =IF($E137<>0,K137+SUMPRODUCT((T_entrée[N° Article Client]=$E137)*T_entrée[Quantité])-SUMPRODUCT((T_sortie[Référence]=T_stock[[#This Row],[N° Série]])*T_sortie[Quantité]),0) -> 1000 | N137: Correct | P137: =T_stock[[#This Row],[Quantité]] -> 0 | Q137: =IF(T_stock[[#This Row],[Stock Réel]]=0,"",T_stock[[#This Row],[Stock Réel]]-T_stock[[#This Row],[Stock Actuel]]+T_stock[[#This Row],[Modif inventaire]]) ->  | R137: 0 | S137: =IFERROR(VLOOKUP(T_stock[[#This Row],[ Notre Référence]],[2]!T_Inventaire[#Data],MATCH(T_stock[[#Headers],[Quantité]],[2]!T_Inventaire[#Headers],0),FALSE),0) -> 0
E138: 73101 | F138: =VLOOKUP(T_stock[[#This Row],[N° Série]],N°série[#All],7,FALSE) -> SEC ASS 17/400 AC SAT | G138: =VLOOKUP(T_stock[[#This Row],[N° Série]],N°série[#All],2,FALSE) -> 32754 | K138: =VLOOKUP(T_stock[[#This Row],[N° Série]],N°série[#All],8,FALSE) -> 0 | L138: =IF($E138<>0,K138+SUMPRODUCT((T_entrée[N° Article Client]=$E138)*T_entrée[Quantité])-SUMPRODUCT((T_sortie[Référence]=T_stock[[#This Row],[N° Série]])*T_sortie[Quantité]),0) -> 0 | N138: Correct | P138: =T_stock[[#This Row],[Quantité]] -> 0 | Q138: =IF(T_stock[[#This Row],[Stock Réel]]=0,"",T_stock[[#This Row],[Stock Réel]]-T_stock[[#This Row],[Stock Actuel]]+T_stock[[#This Row],[Modif inventaire]]) ->  | R138: 0 | S138: =IFERROR(VLOOKUP(T_stock[[#This Row],[ Notre Référence]],[2]!T_Inventaire[#Data],MATCH(T_stock[[#Headers],[Quantité]],[2]!T_Inventaire[#Headers],0),FALSE),0) -> 0
E139: 73052 | F139: =VLOOKUP(T_stock[[#This Row],[N° Série]],N°série[#All],7,FALSE) -> SEC 15/313 AC904L TERM SPLE | G139: =VLOOKUP(T_stock[[#This Row],[N° Série]],N°série[#All],2,FALSE) -> 0 | J139: 0 | K139: =VLOOKUP(T_stock[[#This Row],[N° Série]],N°série[#All],8,FALSE) -> 1150 | L139: =IF($E139<>0,K139+SUMPRODUCT((T_entrée[N° Article Client]=$E139)*T_entrée[Quantité])-SUMPRODUCT((T_sortie[Référence]=T_stock[[#This Row],[N° Série]])*T_sortie[Quantité]),0) -> 1150 | N139: Correct | P139: =T_stock[[#This Row],[Quantité]] -> 0 | Q139: =IF(T_stock[[#This Row],[Stock Réel]]=0,"",T_stock[[#This Row],[Stock Réel]]-T_stock[[#This Row],[Stock Actuel]]+T_stock[[#This Row],[Modif inventaire]]) ->  | R139: 0 | S139: =IFERROR(VLOOKUP(T_stock[[#This Row],[ Notre Référence]],[2]!T_Inventaire[#Data],MATCH(T_stock[[#Headers],[Quantité]],[2]!T_Inventaire[#Headers],0),FALSE),0) -> 0
E140: 73053 | F140: =VLOOKUP(T_stock[[#This Row],[N° Série]],N°série[#All],7,FALSE) -> SEC 15/313A AC904L TERM SPLE | G140: =VLOOKUP(T_stock[[#This Row],[N° Série]],N°série[#All],2,FALSE) -> 0 | J140: 0 | K140: =VLOOKUP(T_stock[[#This Row],[N° Série]],N°série[#All],8,FALSE) -> 518 | L140: =IF($E140<>0,K140+SUMPRODUCT((T_entrée[N° Article Client]=$E140)*T_entrée[Quantité])-SUMPRODUCT((T_sortie[Référence]=T_stock[[#This Row],[N° Série]])*T_sortie[Quantité]),0) -> 518 | N140: Correct | P140: =T_stock[[#This Row],[Quantité]] -> 0 | Q140: =IF(T_stock[[#This Row],[Stock Réel]]=0,"",T_stock[[#This Row],[Stock Réel]]-T_stock[[#This Row],[Stock Actuel]]+T_stock[[#This Row],[Modif inventaire]]) ->  | R140: 0 | S140: =IFERROR(VLOOKUP(T_stock[[#This Row],[ Notre Référence]],[2]!T_Inventaire[#Data],MATCH(T_stock[[#Headers],[Quantité]],[2]!T_Inventaire[#Headers],0),FALSE),0) -> 0
E141: 73054 | F141: =VLOOKUP(T_stock[[#This Row],[N° Série]],N°série[#All],7,FALSE) -> SEC ASS 15/400 AC SAT | G141: =VLOOKUP(T_stock[[#This Row],[N° Série]],N°série[#All],2,FALSE) -> 0 | J141: 0 | K141: =VLOOKUP(T_stock[[#This Row],[N° Série]],N°série[#All],8,FALSE) -> 1000 | L141: =IF($E141<>0,K141+SUMPRODUCT((T_entrée[N° Article Client]=$E141)*T_entrée[Quantité])-SUMPRODUCT((T_sortie[Référence]=T_stock[[#This Row],[N° Série]])*T_sortie[Quantité]),0) -> 1000 | N141: Correct | P141: =T_stock[[#This Row],[Quantité]] -> 0 | Q141: =IF(T_stock[[#This Row],[Stock Réel]]=0,"",T_stock[[#This Row],[Stock Réel]]-T_stock[[#This Row],[Stock Actuel]]+T_stock[[#This Row],[Modif inventaire]]) ->  | R141: 0 | S141: =IFERROR(VLOOKUP(T_stock[[#This Row],[ Notre Référence]],[2]!T_Inventaire[#Data],MATCH(T_stock[[#Headers],[Quantité]],[2]!T_Inventaire[#Headers],0),FALSE),0) -> 0
E142: 73055 | F142: =VLOOKUP(T_stock[[#This Row],[N° Série]],N°série[#All],7,FALSE) -> SEC ASS 15/400 AC SAT | G142: =VLOOKUP(T_stock[[#This Row],[N° Série]],N°série[#All],2,FALSE) -> 0 | J142: 0 | K142: =VLOOKUP(T_stock[[#This Row],[N° Série]],N°série[#All],8,FALSE) -> 893 | L142: =IF($E142<>0,K142+SUMPRODUCT((T_entrée[N° Article Client]=$E142)*T_entrée[Quantité])-SUMPRODUCT((T_sortie[Référence]=T_stock[[#This Row],[N° Série]])*T_sortie[Quantité]),0) -> 893 | N142: Correct | P142: =T_stock[[#This Row],[Quantité]] -> 0 | Q142: =IF(T_stock[[#This Row],[Stock Réel]]=0,"",T_stock[[#This Row],[Stock Réel]]-T_stock[[#This Row],[Stock Actuel]]+T_stock[[#This Row],[Modif inventaire]]) ->  | R142: 0 | S142: =IFERROR(VLOOKUP(T_stock[[#This Row],[ Notre Référence]],[2]!T_Inventaire[#Data],MATCH(T_stock[[#Headers],[Quantité]],[2]!T_Inventaire[#Headers],0),FALSE),0) -> 0
E143: 73056 | F143: =VLOOKUP(T_stock[[#This Row],[N° Série]],N°série[#All],7,FALSE) -> CVE ASS PLQ 14/423 RL18R-410 TERM | G143: =VLOOKUP(T_stock[[#This Row],[N° Série]],N°série[#All],2,FALSE) -> 0 | J143: 0 | K143: =VLOOKUP(T_stock[[#This Row],[N° Série]],N°série[#All],8,FALSE) -> 496 | L143: =IF($E143<>0,K143+SUMPRODUCT((T_entrée[N° Article Client]=$E143)*T_entrée[Quantité])-SUMPRODUCT((T_sortie[Référence]=T_stock[[#This Row],[N° Série]])*T_sortie[Quantité]),0) -> 496 | N143: Correct | P143: =T_stock[[#This Row],[Quantité]] -> 0 | Q143: =IF(T_stock[[#This Row],[Stock Réel]]=0,"",T_stock[[#This Row],[Stock Réel]]-T_stock[[#This Row],[Stock Actuel]]+T_stock[[#This Row],[Modif inventaire]]) ->  | R143: 0 | S143: =IFERROR(VLOOKUP(T_stock[[#This Row],[ Notre Référence]],[2]!T_Inventaire[#Data],MATCH(T_stock[[#Headers],[Quantité]],[2]!T_Inventaire[#Headers],0),FALSE),0) -> 0
E144: 73088 | F144: =VLOOKUP(T_stock[[#This Row],[N° Série]],N°série[#All],7,FALSE) -> CVE 15/423 AC904L SAT | G144: =VLOOKUP(T_stock[[#This Row],[N° Série]],N°série[#All],2,FALSE) -> 32576 | J144: 0 | K144: =VLOOKUP(T_stock[[#This Row],[N° Série]],N°série[#All],8,FALSE) -> 900 | L144: =IF($E144<>0,K144+SUMPRODUCT((T_entrée[N° Article Client]=$E144)*T_entrée[Quantité])-SUMPRODUCT((T_sortie[Référence]=T_stock[[#This Row],[N° Série]])*T_sortie[Quantité]),0) -> 900 | N144: Correct | P144: =T_stock[[#This Row],[Quantité]] -> 0 | Q144: =IF(T_stock[[#This Row],[Stock Réel]]=0,"",T_stock[[#This Row],[Stock Réel]]-T_stock[[#This Row],[Stock Actuel]]+T_stock[[#This Row],[Modif inventaire]]) ->  | R144: 0 | S144: =IFERROR(VLOOKUP(T_stock[[#This Row],[ Notre Référence]],[2]!T_Inventaire[#Data],MATCH(T_stock[[#Headers],[Quantité]],[2]!T_Inventaire[#Headers],0),FALSE),0) -> 0
E145: 73023 | F145: =VLOOKUP(T_stock[[#This Row],[N° Série]],N°série[#All],7,FALSE) -> CVE ASS 12/313 AC904L TERM | G145: =VLOOKUP(T_stock[[#This Row],[N° Série]],N°série[#All],2,FALSE) -> 0 | J145: 0 | K145: =VLOOKUP(T_stock[[#This Row],[N° Série]],N°série[#All],8,FALSE) -> 483 | L145: =IF($E145<>0,K145+SUMPRODUCT((T_entrée[N° Article Client]=$E145)*T_entrée[Quantité])-SUMPRODUCT((T_sortie[Référence]=T_stock[[#This Row],[N° Série]])*T_sortie[Quantité]),0) -> 483 | N145: Correct | P145: =T_stock[[#This Row],[Quantité]] -> 0 | Q145: =IF(T_stock[[#This Row],[Stock Réel]]=0,"",T_stock[[#This Row],[Stock Réel]]-T_stock[[#This Row],[Stock Actuel]]+T_stock[[#This Row],[Modif inventaire]]) ->  | R145: 0 | S145: =IFERROR(VLOOKUP(T_stock[[#This Row],[ Notre Référence]],[2]!T_Inventaire[#Data],MATCH(T_stock[[#Headers],[Quantité]],[2]!T_Inventaire[#Headers],0),FALSE),0) -> 0
E146: 73058 | F146: =VLOOKUP(T_stock[[#This Row],[N° Série]],N°série[#All],7,FALSE) -> CVE ASS 15/313 RL18J TERM | G146: =VLOOKUP(T_stock[[#This Row],[N° Série]],N°série[#All],2,FALSE) -> 0 | J146: 0 | K146: =VLOOKUP(T_stock[[#This Row],[N° Série]],N°série[#All],8,FALSE) -> 841 | L146: =IF($E146<>0,K146+SUMPRODUCT((T_entrée[N° Article Client]=$E146)*T_entrée[Quantité])-SUMPRODUCT((T_sortie[Référence]=T_stock[[#This Row],[N° Série]])*T_sortie[Quantité]),0) -> 841 | N146: Correct | P146: =T_stock[[#This Row],[Quantité]] -> 0 | Q146: =IF(T_stock[[#This Row],[Stock Réel]]=0,"",T_stock[[#This Row],[Stock Réel]]-T_stock[[#This Row],[Stock Actuel]]+T_stock[[#This Row],[Modif inventaire]]) ->  | R146: 0 | S146: =IFERROR(VLOOKUP(T_stock[[#This Row],[ Notre Référence]],[2]!T_Inventaire[#Data],MATCH(T_stock[[#Headers],[Quantité]],[2]!T_Inventaire[#Headers],0),FALSE),0) -> 0
E147: 73059 | F147: =VLOOKUP(T_stock[[#This Row],[N° Série]],N°série[#All],7,FALSE) -> CVE ASS 12/313 RL18R-410 TERM | G147: =VLOOKUP(T_stock[[#This Row],[N° Série]],N°série[#All],2,FALSE) -> 0 | J147: 0 | K147: =VLOOKUP(T_stock[[#This Row],[N° Série]],N°série[#All],8,FALSE) -> 248 | L147: =IF($E147<>0,K147+SUMPRODUCT((T_entrée[N° Article Client]=$E147)*T_entrée[Quantité])-SUMPRODUCT((T_sortie[Référence]=T_stock[[#This Row],[N° Série]])*T_sortie[Quantité]),0) -> 248 | N147: Correct | P147: =T_stock[[#This Row],[Quantité]] -> 0 | Q147: =IF(T_stock[[#This Row],[Stock Réel]]=0,"",T_stock[[#This Row],[Stock Réel]]-T_stock[[#This Row],[Stock Actuel]]+T_stock[[#This Row],[Modif inventaire]]) ->  | R147: 0 | S147: =IFERROR(VLOOKUP(T_stock[[#This Row],[ Notre Référence]],[2]!T_Inventaire[#Data],MATCH(T_stock[[#Headers],[Quantité]],[2]!T_Inventaire[#Headers],0),FALSE),0) -> 0
E148: 73060 | F148: =VLOOKUP(T_stock[[#This Row],[N° Série]],N°série[#All],7,FALSE) -> CVE ASS 15/313 RL18R-65 TERM | G148: =VLOOKUP(T_stock[[#This Row],[N° Série]],N°série[#All],2,FALSE) -> 0 | J148: =IF(L148<=0,"",L148*I148) -> 0 | K148: =VLOOKUP(T_stock[[#This Row],[N° Série]],N°série[#All],8,FALSE) -> 200 | L148: =IF($E148<>0,K148+SUMPRODUCT((T_entrée[N° Article Client]=$E148)*T_entrée[Quantité])-SUMPRODUCT((T_sortie[Référence]=T_stock[[#This Row],[N° Série]])*T_sortie[Quantité]),0) -> 200 | N148: =IF(L148<M148,"ALERTE","Correct") -> Correct | P148: =T_stock[[#This Row],[Quantité]] -> 0 | Q148: =IF(T_stock[[#This Row],[Stock Réel]]=0,"",T_stock[[#This Row],[Stock Réel]]-T_stock[[#This Row],[Stock Actuel]]+T_stock[[#This Row],[Modif inventaire]]) ->  | R148: =B148 -> 0 | S148: =IFERROR(VLOOKUP(T_stock[[#This Row],[ Notre Référence]],[2]!T_Inventaire[#Data],MATCH(T_stock[[#Headers],[Quantité]],[2]!T_Inventaire[#Headers],0),FALSE),0) -> 0
E149: 73090 | F149: =VLOOKUP(T_stock[[#This Row],[N° Série]],N°série[#All],7,FALSE) -> CVE ASS PLQ 15/443 RL18J TERM | G149: =VLOOKUP(T_stock[[#This Row],[N° Série]],N°série[#All],2,FALSE) -> 32622 | J149: 0 | K149: =VLOOKUP(T_stock[[#This Row],[N° Série]],N°série[#All],8,FALSE) -> 999 | L149: =IF($E149<>0,K149+SUMPRODUCT((T_entrée[N° Article Client]=$E149)*T_entrée[Quantité])-SUMPRODUCT((T_sortie[Référence]=T_stock[[#This Row],[N° Série]])*T_sortie[Quantité]),0) -> 999 | N149: Correct | P149: =T_stock[[#This Row],[Quantité]] -> 0 | Q149: =IF(T_stock[[#This Row],[Stock Réel]]=0,"",T_stock[[#This Row],[Stock Réel]]-T_stock[[#This Row],[Stock Actuel]]+T_stock[[#This Row],[Modif inventaire]]) ->  | R149: 0 | S149: =IFERROR(VLOOKUP(T_stock[[#This Row],[ Notre Référence]],[2]!T_Inventaire[#Data],MATCH(T_stock[[#Headers],[Quantité]],[2]!T_Inventaire[#Headers],0),FALSE),0) -> 0
E150: 73140 | F150: =VLOOKUP(T_stock[[#This Row],[N° Série]],N°série[#All],7,FALSE) -> CVE 17/443 AC904L SAT | G150: =VLOOKUP(T_stock[[#This Row],[N° Série]],N°série[#All],2,FALSE) -> 32755 | J150: 0 | K150: =VLOOKUP(T_stock[[#This Row],[N° Série]],N°série[#All],8,FALSE) -> 500 | L150: =IF($E150<>0,K150+SUMPRODUCT((T_entrée[N° Article Client]=$E150)*T_entrée[Quantité])-SUMPRODUCT((T_sortie[Référence]=T_stock[[#This Row],[N° Série]])*T_sortie[Quantité]),0) -> 500 | N150: Correct | P150: =T_stock[[#This Row],[Quantité]] -> 0 | Q150: =IF(T_stock[[#This Row],[Stock Réel]]=0,"",T_stock[[#This Row],[Stock Réel]]-T_stock[[#This Row],[Stock Actuel]]+T_stock[[#This Row],[Modif inventaire]]) ->  | R150: 0 | S150: =IFERROR(VLOOKUP(T_stock[[#This Row],[ Notre Référence]],[2]!T_Inventaire[#Data],MATCH(T_stock[[#Headers],[Quantité]],[2]!T_Inventaire[#Headers],0),FALSE),0) -> 0
E151: 73141 | F151: =VLOOKUP(T_stock[[#This Row],[N° Série]],N°série[#All],7,FALSE) -> CVE 17/443 AC904L SAT | G151: =VLOOKUP(T_stock[[#This Row],[N° Série]],N°série[#All],2,FALSE) -> 32755 | J151: 0 | K151: =VLOOKUP(T_stock[[#This Row],[N° Série]],N°série[#All],8,FALSE) -> 500 | L151: =IF($E151<>0,K151+SUMPRODUCT((T_entrée[N° Article Client]=$E151)*T_entrée[Quantité])-SUMPRODUCT((T_sortie[Référence]=T_stock[[#This Row],[N° Série]])*T_sortie[Quantité]),0) -> 500 | N151: Correct | P151: =T_stock[[#This Row],[Quantité]] -> 0 | Q151: =IF(T_stock[[#This Row],[Stock Réel]]=0,"",T_stock[[#This Row],[Stock Réel]]-T_stock[[#This Row],[Stock Actuel]]+T_stock[[#This Row],[Modif inventaire]]) ->  | R151: 0 | S151: =IFERROR(VLOOKUP(T_stock[[#This Row],[ Notre Référence]],[2]!T_Inventaire[#Data],MATCH(T_stock[[#Headers],[Quantité]],[2]!T_Inventaire[#Headers],0),FALSE),0) -> 0
E152: 73142 | F152: =VLOOKUP(T_stock[[#This Row],[N° Série]],N°série[#All],7,FALSE) -> CVE 17/443 AC904L SAT | G152: =VLOOKUP(T_stock[[#This Row],[N° Série]],N°série[#All],2,FALSE) -> 32755 | J152: 0 | K152: =VLOOKUP(T_stock[[#This Row],[N° Série]],N°série[#All],8,FALSE) -> 500 | L152: =IF($E152<>0,K152+SUMPRODUCT((T_entrée[N° Article Client]=$E152)*T_entrée[Quantité])-SUMPRODUCT((T_sortie[Référence]=T_stock[[#This Row],[N° Série]])*T_sortie[Quantité]),0) -> 500 | N152: Correct | P152: =T_stock[[#This Row],[Quantité]] -> 0 | Q152: =IF(T_stock[[#This Row],[Stock Réel]]=0,"",T_stock[[#This Row],[Stock Réel]]-T_stock[[#This Row],[Stock Actuel]]+T_stock[[#This Row],[Modif inventaire]]) ->  | R152: 0 | S152: =IFERROR(VLOOKUP(T_stock[[#This Row],[ Notre Référence]],[2]!T_Inventaire[#Data],MATCH(T_stock[[#Headers],[Quantité]],[2]!T_Inventaire[#Headers],0),FALSE),0) -> 0
E153: 73143 | F153: =VLOOKUP(T_stock[[#This Row],[N° Série]],N°série[#All],7,FALSE) -> CVE 17/443 AC904L SAT | G153: =VLOOKUP(T_stock[[#This Row],[N° Série]],N°série[#All],2,FALSE) -> 32755 | J153: 0 | K153: =VLOOKUP(T_stock[[#This Row],[N° Série]],N°série[#All],8,FALSE) -> 500 | L153: =IF($E153<>0,K153+SUMPRODUCT((T_entrée[N° Article Client]=$E153)*T_entrée[Quantité])-SUMPRODUCT((T_sortie[Référence]=T_stock[[#This Row],[N° Série]])*T_sortie[Quantité]),0) -> 500 | N153: Correct | P153: =T_stock[[#This Row],[Quantité]] -> 0 | Q153: =IF(T_stock[[#This Row],[Stock Réel]]=0,"",T_stock[[#This Row],[Stock Réel]]-T_stock[[#This Row],[Stock Actuel]]+T_stock[[#This Row],[Modif inventaire]]) ->  | R153: 0 | S153: =IFERROR(VLOOKUP(T_stock[[#This Row],[ Notre Référence]],[2]!T_Inventaire[#Data],MATCH(T_stock[[#Headers],[Quantité]],[2]!T_Inventaire[#Headers],0),FALSE),0) -> 0
E154: 73144 | F154: =VLOOKUP(T_stock[[#This Row],[N° Série]],N°série[#All],7,FALSE) -> CVE 17/443 AC904L SAT | G154: =VLOOKUP(T_stock[[#This Row],[N° Série]],N°série[#All],2,FALSE) -> 32755 | J154: 0 | K154: =VLOOKUP(T_stock[[#This Row],[N° Série]],N°série[#All],8,FALSE) -> 389 | L154: =IF($E154<>0,K154+SUMPRODUCT((T_entrée[N° Article Client]=$E154)*T_entrée[Quantité])-SUMPRODUCT((T_sortie[Référence]=T_stock[[#This Row],[N° Série]])*T_sortie[Quantité]),0) -> 389 | N154: Correct | P154: =T_stock[[#This Row],[Quantité]] -> 0 | Q154: =IF(T_stock[[#This Row],[Stock Réel]]=0,"",T_stock[[#This Row],[Stock Réel]]-T_stock[[#This Row],[Stock Actuel]]+T_stock[[#This Row],[Modif inventaire]]) ->  | R154: 0 | S154: =IFERROR(VLOOKUP(T_stock[[#This Row],[ Notre Référence]],[2]!T_Inventaire[#Data],MATCH(T_stock[[#Headers],[Quantité]],[2]!T_Inventaire[#Headers],0),FALSE),0) -> 0
E155: 73061 | F155: =VLOOKUP(T_stock[[#This Row],[N° Série]],N°série[#All],7,FALSE) -> SEC 15/313 AC904L TERM SPLE | G155: =VLOOKUP(T_stock[[#This Row],[N° Série]],N°série[#All],2,FALSE) -> 0 | J155: 0 | K155: =VLOOKUP(T_stock[[#This Row],[N° Série]],N°série[#All],8,FALSE) -> 1150 | L155: =IF($E155<>0,K155+SUMPRODUCT((T_entrée[N° Article Client]=$E155)*T_entrée[Quantité])-SUMPRODUCT((T_sortie[Référence]=T_stock[[#This Row],[N° Série]])*T_sortie[Quantité]),0) -> 1150 | N155: Correct | P155: =T_stock[[#This Row],[Quantité]] -> 0 | Q155: =IF(T_stock[[#This Row],[Stock Réel]]=0,"",T_stock[[#This Row],[Stock Réel]]-T_stock[[#This Row],[Stock Actuel]]+T_stock[[#This Row],[Modif inventaire]]) ->  | R155: 0 | S155: =IFERROR(VLOOKUP(T_stock[[#This Row],[ Notre Référence]],[2]!T_Inventaire[#Data],MATCH(T_stock[[#Headers],[Quantité]],[2]!T_Inventaire[#Headers],0),FALSE),0) -> 0
E156: 73062 | F156: =VLOOKUP(T_stock[[#This Row],[N° Série]],N°série[#All],7,FALSE) -> SEC 15/313A AC904L TERM SPLE | G156: =VLOOKUP(T_stock[[#This Row],[N° Série]],N°série[#All],2,FALSE) -> 0 | J156: 0 | K156: =VLOOKUP(T_stock[[#This Row],[N° Série]],N°série[#All],8,FALSE) -> 516 | L156: =IF($E156<>0,K156+SUMPRODUCT((T_entrée[N° Article Client]=$E156)*T_entrée[Quantité])-SUMPRODUCT((T_sortie[Référence]=T_stock[[#This Row],[N° Série]])*T_sortie[Quantité]),0) -> 516 | N156: Correct | P156: =T_stock[[#This Row],[Quantité]] -> 0 | Q156: =IF(T_stock[[#This Row],[Stock Réel]]=0,"",T_stock[[#This Row],[Stock Réel]]-T_stock[[#This Row],[Stock Actuel]]+T_stock[[#This Row],[Modif inventaire]]) ->  | R156: 0 | S156: =IFERROR(VLOOKUP(T_stock[[#This Row],[ Notre Référence]],[2]!T_Inventaire[#Data],MATCH(T_stock[[#Headers],[Quantité]],[2]!T_Inventaire[#Headers],0),FALSE),0) -> 0
E157: 73063 | F157: =VLOOKUP(T_stock[[#This Row],[N° Série]],N°série[#All],7,FALSE) -> SEC ASS 14/400 AC904L TERM | G157: =VLOOKUP(T_stock[[#This Row],[N° Série]],N°série[#All],2,FALSE) -> 0 | J157: 0 | K157: =VLOOKUP(T_stock[[#This Row],[N° Série]],N°série[#All],8,FALSE) -> 159 | L157: =IF($E157<>0,K157+SUMPRODUCT((T_entrée[N° Article Client]=$E157)*T_entrée[Quantité])-SUMPRODUCT((T_sortie[Référence]=T_stock[[#This Row],[N° Série]])*T_sortie[Quantité]),0) -> 159 | N157: Correct | P157: =T_stock[[#This Row],[Quantité]] -> 0 | Q157: =IF(T_stock[[#This Row],[Stock Réel]]=0,"",T_stock[[#This Row],[Stock Réel]]-T_stock[[#This Row],[Stock Actuel]]+T_stock[[#This Row],[Modif inventaire]]) ->  | R157: 0 | S157: =IFERROR(VLOOKUP(T_stock[[#This Row],[ Notre Référence]],[2]!T_Inventaire[#Data],MATCH(T_stock[[#Headers],[Quantité]],[2]!T_Inventaire[#Headers],0),FALSE),0) -> 0
E158: 73064 | F158: =VLOOKUP(T_stock[[#This Row],[N° Série]],N°série[#All],7,FALSE) -> CVE 11/313A AC904L TERM | G158: =VLOOKUP(T_stock[[#This Row],[N° Série]],N°série[#All],2,FALSE) -> 0 | J158: 0 | K158: =VLOOKUP(T_stock[[#This Row],[N° Série]],N°série[#All],8,FALSE) -> 241 | L158: =IF($E158<>0,K158+SUMPRODUCT((T_entrée[N° Article Client]=$E158)*T_entrée[Quantité])-SUMPRODUCT((T_sortie[Référence]=T_stock[[#This Row],[N° Série]])*T_sortie[Quantité]),0) -> 241 | N158: Correct | P158: =T_stock[[#This Row],[Quantité]] -> 0 | Q158: =IF(T_stock[[#This Row],[Stock Réel]]=0,"",T_stock[[#This Row],[Stock Réel]]-T_stock[[#This Row],[Stock Actuel]]+T_stock[[#This Row],[Modif inventaire]]) ->  | R158: 0 | S158: =IFERROR(VLOOKUP(T_stock[[#This Row],[ Notre Référence]],[2]!T_Inventaire[#Data],MATCH(T_stock[[#Headers],[Quantité]],[2]!T_Inventaire[#Headers],0),FALSE),0) -> 0
E159: 73089 | F159: =VLOOKUP(T_stock[[#This Row],[N° Série]],N°série[#All],7,FALSE) -> CVE 15/423 AC904L SAT | G159: =VLOOKUP(T_stock[[#This Row],[N° Série]],N°série[#All],2,FALSE) -> 32576 | J159: 0 | K159: =VLOOKUP(T_stock[[#This Row],[N° Série]],N°série[#All],8,FALSE) -> 400 | L159: =IF($E159<>0,K159+SUMPRODUCT((T_entrée[N° Article Client]=$E159)*T_entrée[Quantité])-SUMPRODUCT((T_sortie[Référence]=T_stock[[#This Row],[N° Série]])*T_sortie[Quantité]),0) -> 400 | N159: Correct | P159: =T_stock[[#This Row],[Quantité]] -> 0 | Q159: =IF(T_stock[[#This Row],[Stock Réel]]=0,"",T_stock[[#This Row],[Stock Réel]]-T_stock[[#This Row],[Stock Actuel]]+T_stock[[#This Row],[Modif inventaire]]) ->  | R159: 0 | S159: =IFERROR(VLOOKUP(T_stock[[#This Row],[ Notre Référence]],[2]!T_Inventaire[#Data],MATCH(T_stock[[#Headers],[Quantité]],[2]!T_Inventaire[#Headers],0),FALSE),0) -> 0
E160: 73123 | F160: =VLOOKUP(T_stock[[#This Row],[N° Série]],N°série[#All],7,FALSE) -> ALL FER 97200 16 AC SAT MONO V0 | G160: =VLOOKUP(T_stock[[#This Row],[N° Série]],N°série[#All],2,FALSE) -> 32695 | J160: 0 | K160: =VLOOKUP(T_stock[[#This Row],[N° Série]],N°série[#All],8,FALSE) -> 900 | L160: =IF($E160<>0,K160+SUMPRODUCT((T_entrée[N° Article Client]=$E160)*T_entrée[Quantité])-SUMPRODUCT((T_sortie[Référence]=T_stock[[#This Row],[N° Série]])*T_sortie[Quantité]),0) -> 900 | N160: Correct | P160: =T_stock[[#This Row],[Quantité]] -> 0 | Q160: =IF(T_stock[[#This Row],[Stock Réel]]=0,"",T_stock[[#This Row],[Stock Réel]]-T_stock[[#This Row],[Stock Actuel]]+T_stock[[#This Row],[Modif inventaire]]) ->  | R160: 0 | S160: =IFERROR(VLOOKUP(T_stock[[#This Row],[ Notre Référence]],[2]!T_Inventaire[#Data],MATCH(T_stock[[#Headers],[Quantité]],[2]!T_Inventaire[#Headers],0),FALSE),0) -> 0
E161: 73065 | F161: =VLOOKUP(T_stock[[#This Row],[N° Série]],N°série[#All],7,FALSE) -> CVE ASS EBL 15/313 AC TERM | G161: =VLOOKUP(T_stock[[#This Row],[N° Série]],N°série[#All],2,FALSE) -> 0 | J161: 0 | K161: =VLOOKUP(T_stock[[#This Row],[N° Série]],N°série[#All],8,FALSE) -> 1000 | L161: =IF($E161<>0,K161+SUMPRODUCT((T_entrée[N° Article Client]=$E161)*T_entrée[Quantité])-SUMPRODUCT((T_sortie[Référence]=T_stock[[#This Row],[N° Série]])*T_sortie[Quantité]),0) -> 1000 | N161: Correct | P161: =T_stock[[#This Row],[Quantité]] -> 0 | Q161: =IF(T_stock[[#This Row],[Stock Réel]]=0,"",T_stock[[#This Row],[Stock Réel]]-T_stock[[#This Row],[Stock Actuel]]+T_stock[[#This Row],[Modif inventaire]]) ->  | R161: 0 | S161: =IFERROR(VLOOKUP(T_stock[[#This Row],[ Notre Référence]],[2]!T_Inventaire[#Data],MATCH(T_stock[[#Headers],[Quantité]],[2]!T_Inventaire[#Headers],0),FALSE),0) -> 0
E162: 73066 | F162: =VLOOKUP(T_stock[[#This Row],[N° Série]],N°série[#All],7,FALSE) -> SEC 15/313 AC904L TERM SPLE | G162: =VLOOKUP(T_stock[[#This Row],[N° Série]],N°série[#All],2,FALSE) -> 0 | J162: 0 | K162: =VLOOKUP(T_stock[[#This Row],[N° Série]],N°série[#All],8,FALSE) -> 1150 | L162: =IF($E162<>0,K162+SUMPRODUCT((T_entrée[N° Article Client]=$E162)*T_entrée[Quantité])-SUMPRODUCT((T_sortie[Référence]=T_stock[[#This Row],[N° Série]])*T_sortie[Quantité]),0) -> 1150 | N162: Correct | P162: =T_stock[[#This Row],[Quantité]] -> 0 | Q162: =IF(T_stock[[#This Row],[Stock Réel]]=0,"",T_stock[[#This Row],[Stock Réel]]-T_stock[[#This Row],[Stock Actuel]]+T_stock[[#This Row],[Modif inventaire]]) ->  | R162: 0 | S162: =IFERROR(VLOOKUP(T_stock[[#This Row],[ Notre Référence]],[2]!T_Inventaire[#Data],MATCH(T_stock[[#Headers],[Quantité]],[2]!T_Inventaire[#Headers],0),FALSE),0) -> 0
E163: 73067 | F163: =VLOOKUP(T_stock[[#This Row],[N° Série]],N°série[#All],7,FALSE) -> SEC 15/313A AC904L TERM SPLE | G163: =VLOOKUP(T_stock[[#This Row],[N° Série]],N°série[#All],2,FALSE) -> 0 | J163: 0 | K163: =VLOOKUP(T_stock[[#This Row],[N° Série]],N°série[#All],8,FALSE) -> 516 | L163: =IF($E163<>0,K163+SUMPRODUCT((T_entrée[N° Article Client]=$E163)*T_entrée[Quantité])-SUMPRODUCT((T_sortie[Référence]=T_stock[[#This Row],[N° Série]])*T_sortie[Quantité]),0) -> 516 | N163: Correct | P163: =T_stock[[#This Row],[Quantité]] -> 0 | Q163: =IF(T_stock[[#This Row],[Stock Réel]]=0,"",T_stock[[#This Row],[Stock Réel]]-T_stock[[#This Row],[Stock Actuel]]+T_stock[[#This Row],[Modif inventaire]]) ->  | R163: 0 | S163: =IFERROR(VLOOKUP(T_stock[[#This Row],[ Notre Référence]],[2]!T_Inventaire[#Data],MATCH(T_stock[[#Headers],[Quantité]],[2]!T_Inventaire[#Headers],0),FALSE),0) -> 0
E164: 73091 | F164: =VLOOKUP(T_stock[[#This Row],[N° Série]],N°série[#All],7,FALSE) -> SEC ASS 12/313 RL18R-410 TERM | G164: =VLOOKUP(T_stock[[#This Row],[N° Série]],N°série[#All],2,FALSE) -> 32741 | J164: 0 | K164: =VLOOKUP(T_stock[[#This Row],[N° Série]],N°série[#All],8,FALSE) -> 524 | L164: =IF($E164<>0,K164+SUMPRODUCT((T_entrée[N° Article Client]=$E164)*T_entrée[Quantité])-SUMPRODUCT((T_sortie[Référence]=T_stock[[#This Row],[N° Série]])*T_sortie[Quantité]),0) -> 524 | N164: Correct | P164: =T_stock[[#This Row],[Quantité]] -> 0 | Q164: =IF(T_stock[[#This Row],[Stock Réel]]=0,"",T_stock[[#This Row],[Stock Réel]]-T_stock[[#This Row],[Stock Actuel]]+T_stock[[#This Row],[Modif inventaire]]) ->  | R164: 0 | S164: =IFERROR(VLOOKUP(T_stock[[#This Row],[ Notre Référence]],[2]!T_Inventaire[#Data],MATCH(T_stock[[#Headers],[Quantité]],[2]!T_Inventaire[#Headers],0),FALSE),0) -> 0
E165: 73068 | F165: =VLOOKUP(T_stock[[#This Row],[N° Série]],N°série[#All],7,FALSE) -> CVE ASS EBL 15/313 AC TERM | G165: =VLOOKUP(T_stock[[#This Row],[N° Série]],N°série[#All],2,FALSE) -> 0 | J165: 0 | K165: =VLOOKUP(T_stock[[#This Row],[N° Série]],N°série[#All],8,FALSE) -> 1000 | L165: =IF($E165<>0,K165+SUMPRODUCT((T_entrée[N° Article Client]=$E165)*T_entrée[Quantité])-SUMPRODUCT((T_sortie[Référence]=T_stock[[#This Row],[N° Série]])*T_sortie[Quantité]),0) -> 1000 | N165: Correct | P165: =T_stock[[#This Row],[Quantité]] -> 0 | Q165: =IF(T_stock[[#This Row],[Stock Réel]]=0,"",T_stock[[#This Row],[Stock Réel]]-T_stock[[#This Row],[Stock Actuel]]+T_stock[[#This Row],[Modif inventaire]]) ->  | R165: 0 | S165: =IFERROR(VLOOKUP(T_stock[[#This Row],[ Notre Référence]],[2]!T_Inventaire[#Data],MATCH(T_stock[[#Headers],[Quantité]],[2]!T_Inventaire[#Headers],0),FALSE),0) -> 0
E166: 73069 | F166: =VLOOKUP(T_stock[[#This Row],[N° Série]],N°série[#All],7,FALSE) -> CVE ASS EBL 15/313 AC TERM | G166: =VLOOKUP(T_stock[[#This Row],[N° Série]],N°série[#All],2,FALSE) -> 0 | J166: 0 | K166: =VLOOKUP(T_stock[[#This Row],[N° Série]],N°série[#All],8,FALSE) -> 518 | L166: =IF($E166<>0,K166+SUMPRODUCT((T_entrée[N° Article Client]=$E166)*T_entrée[Quantité])-SUMPRODUCT((T_sortie[Référence]=T_stock[[#This Row],[N° Série]])*T_sortie[Quantité]),0) -> 518 | N166: Correct | P166: =T_stock[[#This Row],[Quantité]] -> 0 | Q166: =IF(T_stock[[#This Row],[Stock Réel]]=0,"",T_stock[[#This Row],[Stock Réel]]-T_stock[[#This Row],[Stock Actuel]]+T_stock[[#This Row],[Modif inventaire]]) ->  | R166: 0 | S166: =IFERROR(VLOOKUP(T_stock[[#This Row],[ Notre Référence]],[2]!T_Inventaire[#Data],MATCH(T_stock[[#Headers],[Quantité]],[2]!T_Inventaire[#Headers],0),FALSE),0) -> 0
E167: 73070 | F167: =VLOOKUP(T_stock[[#This Row],[N° Série]],N°série[#All],7,FALSE) -> SEC 15/313 AC904L TERM SPLE | G167: =VLOOKUP(T_stock[[#This Row],[N° Série]],N°série[#All],2,FALSE) -> 0 | J167: 0 | K167: =VLOOKUP(T_stock[[#This Row],[N° Série]],N°série[#All],8,FALSE) -> 1150 | L167: =IF($E167<>0,K167+SUMPRODUCT((T_entrée[N° Article Client]=$E167)*T_entrée[Quantité])-SUMPRODUCT((T_sortie[Référence]=T_stock[[#This Row],[N° Série]])*T_sortie[Quantité]),0) -> 1150 | N167: Correct | P167: =T_stock[[#This Row],[Quantité]] -> 0 | Q167: =IF(T_stock[[#This Row],[Stock Réel]]=0,"",T_stock[[#This Row],[Stock Réel]]-T_stock[[#This Row],[Stock Actuel]]+T_stock[[#This Row],[Modif inventaire]]) ->  | R167: 0 | S167: =IFERROR(VLOOKUP(T_stock[[#This Row],[ Notre Référence]],[2]!T_Inventaire[#Data],MATCH(T_stock[[#Headers],[Quantité]],[2]!T_Inventaire[#Headers],0),FALSE),0) -> 0
E168: 73071 | F168: =VLOOKUP(T_stock[[#This Row],[N° Série]],N°série[#All],7,FALSE) -> SEC 15/313A AC904L TERM SPLE | G168: =VLOOKUP(T_stock[[#This Row],[N° Série]],N°série[#All],2,FALSE) -> 0 | J168: 0 | K168: =VLOOKUP(T_stock[[#This Row],[N° Série]],N°série[#All],8,FALSE) -> 518 | L168: =IF($E168<>0,K168+SUMPRODUCT((T_entrée[N° Article Client]=$E168)*T_entrée[Quantité])-SUMPRODUCT((T_sortie[Référence]=T_stock[[#This Row],[N° Série]])*T_sortie[Quantité]),0) -> 518 | N168: Correct | P168: =T_stock[[#This Row],[Quantité]] -> 0 | Q168: =IF(T_stock[[#This Row],[Stock Réel]]=0,"",T_stock[[#This Row],[Stock Réel]]-T_stock[[#This Row],[Stock Actuel]]+T_stock[[#This Row],[Modif inventaire]]) ->  | R168: 0 | S168: =IFERROR(VLOOKUP(T_stock[[#This Row],[ Notre Référence]],[2]!T_Inventaire[#Data],MATCH(T_stock[[#Headers],[Quantité]],[2]!T_Inventaire[#Headers],0),FALSE),0) -> 0
E169: 73102 | F169: =VLOOKUP(T_stock[[#This Row],[N° Série]],N°série[#All],7,FALSE) -> SEC ASS 17/400 AC SAT | G169: =VLOOKUP(T_stock[[#This Row],[N° Série]],N°série[#All],2,FALSE) -> 32754 | J169: 0 | K169: =VLOOKUP(T_stock[[#This Row],[N° Série]],N°série[#All],8,FALSE) -> 700 | L169: =IF($E169<>0,K169+SUMPRODUCT((T_entrée[N° Article Client]=$E169)*T_entrée[Quantité])-SUMPRODUCT((T_sortie[Référence]=T_stock[[#This Row],[N° Série]])*T_sortie[Quantité]),0) -> 700 | N169: Correct | P169: =T_stock[[#This Row],[Quantité]] -> 0 | Q169: =IF(T_stock[[#This Row],[Stock Réel]]=0,"",T_stock[[#This Row],[Stock Réel]]-T_stock[[#This Row],[Stock Actuel]]+T_stock[[#This Row],[Modif inventaire]]) ->  | R169: 0 | S169: =IFERROR(VLOOKUP(T_stock[[#This Row],[ Notre Référence]],[2]!T_Inventaire[#Data],MATCH(T_stock[[#Headers],[Quantité]],[2]!T_Inventaire[#Headers],0),FALSE),0) -> 0
E170: 73156 | F170: =VLOOKUP(T_stock[[#This Row],[N° Série]],N°série[#All],7,FALSE) -> CVE 15/443 AC904L SAT | G170: =VLOOKUP(T_stock[[#This Row],[N° Série]],N°série[#All],2,FALSE) -> 32655 | J170: 0 | K170: =VLOOKUP(T_stock[[#This Row],[N° Série]],N°série[#All],8,FALSE) -> 426 | L170: =IF($E170<>0,K170+SUMPRODUCT((T_entrée[N° Article Client]=$E170)*T_entrée[Quantité])-SUMPRODUCT((T_sortie[Référence]=T_stock[[#This Row],[N° Série]])*T_sortie[Quantité]),0) -> 426 | N170: Correct | P170: =T_stock[[#This Row],[Quantité]] -> 0 | Q170: =IF(T_stock[[#This Row],[Stock Réel]]=0,"",T_stock[[#This Row],[Stock Réel]]-T_stock[[#This Row],[Stock Actuel]]+T_stock[[#This Row],[Modif inventaire]]) ->  | R170: 0 | S170: =IFERROR(VLOOKUP(T_stock[[#This Row],[ Notre Référence]],[2]!T_Inventaire[#Data],MATCH(T_stock[[#Headers],[Quantité]],[2]!T_Inventaire[#Headers],0),FALSE),0) -> 0
E171: 73164 | F171: =VLOOKUP(T_stock[[#This Row],[N° Série]],N°série[#All],7,FALSE) -> ALL FER 97200 16 AC SAT MONO V0 | G171: =VLOOKUP(T_stock[[#This Row],[N° Série]],N°série[#All],2,FALSE) -> 32695 | J171: 0 | K171: =VLOOKUP(T_stock[[#This Row],[N° Série]],N°série[#All],8,FALSE) -> 880 | L171: =IF($E171<>0,K171+SUMPRODUCT((T_entrée[N° Article Client]=$E171)*T_entrée[Quantité])-SUMPRODUCT((T_sortie[Référence]=T_stock[[#This Row],[N° Série]])*T_sortie[Quantité]),0) -> 880 | N171: Correct | P171: =T_stock[[#This Row],[Quantité]] -> 0 | Q171: =IF(T_stock[[#This Row],[Stock Réel]]=0,"",T_stock[[#This Row],[Stock Réel]]-T_stock[[#This Row],[Stock Actuel]]+T_stock[[#This Row],[Modif inventaire]]) ->  | R171: 0 | S171: =IFERROR(VLOOKUP(T_stock[[#This Row],[ Notre Référence]],[2]!T_Inventaire[#Data],MATCH(T_stock[[#Headers],[Quantité]],[2]!T_Inventaire[#Headers],0),FALSE),0) -> 0
E172: 73092 | F172: =VLOOKUP(T_stock[[#This Row],[N° Série]],N°série[#All],7,FALSE) ->  | G172: =VLOOKUP(T_stock[[#This Row],[N° Série]],N°série[#All],2,FALSE) -> 0 | K172: =VLOOKUP(T_stock[[#This Row],[N° Série]],N°série[#All],8,FALSE) -> 0 | L172: =IF($E172<>0,K172+SUMPRODUCT((T_entrée[N° Article Client]=$E172)*T_entrée[Quantité])-SUMPRODUCT((T_sortie[Référence]=T_stock[[#This Row],[N° Série]])*T_sortie[Quantité]),0) -> 0 | N172: Correct | P172: =T_stock[[#This Row],[Quantité]] -> 0 | Q172: =IF(T_stock[[#This Row],[Stock Réel]]=0,"",T_stock[[#This Row],[Stock Réel]]-T_stock[[#This Row],[Stock Actuel]]+T_stock[[#This Row],[Modif inventaire]]) ->  | R172: 0 | S172: =IFERROR(VLOOKUP(T_stock[[#This Row],[ Notre Référence]],[2]!T_Inventaire[#Data],MATCH(T_stock[[#Headers],[Quantité]],[2]!T_Inventaire[#Headers],0),FALSE),0) -> 0
E173: 73093 | F173: =VLOOKUP(T_stock[[#This Row],[N° Série]],N°série[#All],7,FALSE) -> SEC ASS 15/313 RL18R-410 TERM | G173: =VLOOKUP(T_stock[[#This Row],[N° Série]],N°série[#All],2,FALSE) -> 32726 | J173: 0 | K173: =VLOOKUP(T_stock[[#This Row],[N° Série]],N°série[#All],8,FALSE) -> 263 | L173: =IF($E173<>0,K173+SUMPRODUCT((T_entrée[N° Article Client]=$E173)*T_entrée[Quantité])-SUMPRODUCT((T_sortie[Référence]=T_stock[[#This Row],[N° Série]])*T_sortie[Quantité]),0) -> 263 | N173: Correct | P173: =T_stock[[#This Row],[Quantité]] -> 0 | Q173: =IF(T_stock[[#This Row],[Stock Réel]]=0,"",T_stock[[#This Row],[Stock Réel]]-T_stock[[#This Row],[Stock Actuel]]+T_stock[[#This Row],[Modif inventaire]]) ->  | R173: 0 | S173: =IFERROR(VLOOKUP(T_stock[[#This Row],[ Notre Référence]],[2]!T_Inventaire[#Data],MATCH(T_stock[[#Headers],[Quantité]],[2]!T_Inventaire[#Headers],0),FALSE),0) -> 0
E174: 73147 | F174: =VLOOKUP(T_stock[[#This Row],[N° Série]],N°série[#All],7,FALSE) -> SEC ASS 15/313 RL18R-410 TERM | G174: =VLOOKUP(T_stock[[#This Row],[N° Série]],N°série[#All],2,FALSE) -> 32726 | J174: 0 | K174: =VLOOKUP(T_stock[[#This Row],[N° Série]],N°série[#All],8,FALSE) -> 260 | L174: =IF($E174<>0,K174+SUMPRODUCT((T_entrée[N° Article Client]=$E174)*T_entrée[Quantité])-SUMPRODUCT((T_sortie[Référence]=T_stock[[#This Row],[N° Série]])*T_sortie[Quantité]),0) -> 260 | N174: Correct | P174: =T_stock[[#This Row],[Quantité]] -> 0 | Q174: =IF(T_stock[[#This Row],[Stock Réel]]=0,"",T_stock[[#This Row],[Stock Réel]]-T_stock[[#This Row],[Stock Actuel]]+T_stock[[#This Row],[Modif inventaire]]) ->  | R174: 0 | S174: =IFERROR(VLOOKUP(T_stock[[#This Row],[ Notre Référence]],[2]!T_Inventaire[#Data],MATCH(T_stock[[#Headers],[Quantité]],[2]!T_Inventaire[#Headers],0),FALSE),0) -> 0
E175: 73148 | F175: =VLOOKUP(T_stock[[#This Row],[N° Série]],N°série[#All],7,FALSE) -> SEC ASS 15/313 RL18R-410 TERM | G175: =VLOOKUP(T_stock[[#This Row],[N° Série]],N°série[#All],2,FALSE) -> 32726 | J175: 0 | K175: =VLOOKUP(T_stock[[#This Row],[N° Série]],N°série[#All],8,FALSE) -> 792 | L175: =IF($E175<>0,K175+SUMPRODUCT((T_entrée[N° Article Client]=$E175)*T_entrée[Quantité])-SUMPRODUCT((T_sortie[Référence]=T_stock[[#This Row],[N° Série]])*T_sortie[Quantité]),0) -> 792 | N175: Correct | P175: =T_stock[[#This Row],[Quantité]] -> 0 | Q175: =IF(T_stock[[#This Row],[Stock Réel]]=0,"",T_stock[[#This Row],[Stock Réel]]-T_stock[[#This Row],[Stock Actuel]]+T_stock[[#This Row],[Modif inventaire]]) ->  | R175: 0 | S175: =IFERROR(VLOOKUP(T_stock[[#This Row],[ Notre Référence]],[2]!T_Inventaire[#Data],MATCH(T_stock[[#Headers],[Quantité]],[2]!T_Inventaire[#Headers],0),FALSE),0) -> 0
E176: 73145 | F176: =VLOOKUP(T_stock[[#This Row],[N° Série]],N°série[#All],7,FALSE) -> SEC ASS 15/423 AC TERM | G176: =VLOOKUP(T_stock[[#This Row],[N° Série]],N°série[#All],2,FALSE) -> 32438 | J176: 0 | K176: =VLOOKUP(T_stock[[#This Row],[N° Série]],N°série[#All],8,FALSE) -> 1000 | L176: =IF($E176<>0,K176+SUMPRODUCT((T_entrée[N° Article Client]=$E176)*T_entrée[Quantité])-SUMPRODUCT((T_sortie[Référence]=T_stock[[#This Row],[N° Série]])*T_sortie[Quantité]),0) -> 1000 | N176: Correct | P176: =T_stock[[#This Row],[Quantité]] -> 0 | Q176: =IF(T_stock[[#This Row],[Stock Réel]]=0,"",T_stock[[#This Row],[Stock Réel]]-T_stock[[#This Row],[Stock Actuel]]+T_stock[[#This Row],[Modif inventaire]]) ->  | R176: 0 | S176: =IFERROR(VLOOKUP(T_stock[[#This Row],[ Notre Référence]],[2]!T_Inventaire[#Data],MATCH(T_stock[[#Headers],[Quantité]],[2]!T_Inventaire[#Headers],0),FALSE),0) -> 0
E177: 73146 | F177: =VLOOKUP(T_stock[[#This Row],[N° Série]],N°série[#All],7,FALSE) -> SEC ASS 15/423 AC TERM | G177: =VLOOKUP(T_stock[[#This Row],[N° Série]],N°série[#All],2,FALSE) -> 32438 | J177: 0 | K177: =VLOOKUP(T_stock[[#This Row],[N° Série]],N°série[#All],8,FALSE) -> 1313 | L177: =IF($E177<>0,K177+SUMPRODUCT((T_entrée[N° Article Client]=$E177)*T_entrée[Quantité])-SUMPRODUCT((T_sortie[Référence]=T_stock[[#This Row],[N° Série]])*T_sortie[Quantité]),0) -> 1313 | N177: Correct | P177: =T_stock[[#This Row],[Quantité]] -> 0 | Q177: =IF(T_stock[[#This Row],[Stock Réel]]=0,"",T_stock[[#This Row],[Stock Réel]]-T_stock[[#This Row],[Stock Actuel]]+T_stock[[#This Row],[Modif inventaire]]) ->  | R177: 0 | S177: =IFERROR(VLOOKUP(T_stock[[#This Row],[ Notre Référence]],[2]!T_Inventaire[#Data],MATCH(T_stock[[#Headers],[Quantité]],[2]!T_Inventaire[#Headers],0),FALSE),0) -> 0
E178: 73165 | F178: =VLOOKUP(T_stock[[#This Row],[N° Série]],N°série[#All],7,FALSE) -> SEC ASS 15/423 AC TERM | G178: =VLOOKUP(T_stock[[#This Row],[N° Série]],N°série[#All],2,FALSE) -> 32438 | J178: 0 | K178: =VLOOKUP(T_stock[[#This Row],[N° Série]],N°série[#All],8,FALSE) -> 565 | L178: =IF($E178<>0,K178+SUMPRODUCT((T_entrée[N° Article Client]=$E178)*T_entrée[Quantité])-SUMPRODUCT((T_sortie[Référence]=T_stock[[#This Row],[N° Série]])*T_sortie[Quantité]),0) -> 565 | N178: Correct | P178: =T_stock[[#This Row],[Quantité]] -> 0 | Q178: =IF(T_stock[[#This Row],[Stock Réel]]=0,"",T_stock[[#This Row],[Stock Réel]]-T_stock[[#This Row],[Stock Actuel]]+T_stock[[#This Row],[Modif inventaire]]) ->  | R178: 0 | S178: =IFERROR(VLOOKUP(T_stock[[#This Row],[ Notre Référence]],[2]!T_Inventaire[#Data],MATCH(T_stock[[#Headers],[Quantité]],[2]!T_Inventaire[#Headers],0),FALSE),0) -> 0
E179: 73072 | F179: =VLOOKUP(T_stock[[#This Row],[N° Série]],N°série[#All],7,FALSE) -> CVE ASS EBL 15/313 AC TERM | G179: =VLOOKUP(T_stock[[#This Row],[N° Série]],N°série[#All],2,FALSE) -> 32750 | J179: 0 | K179: =VLOOKUP(T_stock[[#This Row],[N° Série]],N°série[#All],8,FALSE) -> 1000 | L179: =IF($E179<>0,K179+SUMPRODUCT((T_entrée[N° Article Client]=$E179)*T_entrée[Quantité])-SUMPRODUCT((T_sortie[Référence]=T_stock[[#This Row],[N° Série]])*T_sortie[Quantité]),0) -> 1000 | N179: Correct | P179: =T_stock[[#This Row],[Quantité]] -> 0 | Q179: =IF(T_stock[[#This Row],[Stock Réel]]=0,"",T_stock[[#This Row],[Stock Réel]]-T_stock[[#This Row],[Stock Actuel]]+T_stock[[#This Row],[Modif inventaire]]) ->  | R179: 0 | S179: =IFERROR(VLOOKUP(T_stock[[#This Row],[ Notre Référence]],[2]!T_Inventaire[#Data],MATCH(T_stock[[#Headers],[Quantité]],[2]!T_Inventaire[#Headers],0),FALSE),0) -> 0
E180: 73174 | F180: =VLOOKUP(T_stock[[#This Row],[N° Série]],N°série[#All],7,FALSE) -> CVE ASS 13/313 RL18R-65 TERM | G180: =VLOOKUP(T_stock[[#This Row],[N° Série]],N°série[#All],2,FALSE) -> 32539 | J180: 0 | K180: =VLOOKUP(T_stock[[#This Row],[N° Série]],N°série[#All],8,FALSE) -> 92 | L180: =IF($E180<>0,K180+SUMPRODUCT((T_entrée[N° Article Client]=$E180)*T_entrée[Quantité])-SUMPRODUCT((T_sortie[Référence]=T_stock[[#This Row],[N° Série]])*T_sortie[Quantité]),0) -> 92 | N180: Correct | P180: =T_stock[[#This Row],[Quantité]] -> 0 | Q180: =IF(T_stock[[#This Row],[Stock Réel]]=0,"",T_stock[[#This Row],[Stock Réel]]-T_stock[[#This Row],[Stock Actuel]]+T_stock[[#This Row],[Modif inventaire]]) ->  | R180: 0 | S180: =IFERROR(VLOOKUP(T_stock[[#This Row],[ Notre Référence]],[2]!T_Inventaire[#Data],MATCH(T_stock[[#Headers],[Quantité]],[2]!T_Inventaire[#Headers],0),FALSE),0) -> 0
E181: 73175 | F181: =VLOOKUP(T_stock[[#This Row],[N° Série]],N°série[#All],7,FALSE) -> CVE ASS 15/313 RL18R-410 TERM | G181: =VLOOKUP(T_stock[[#This Row],[N° Série]],N°série[#All],2,FALSE) -> 32729 | J181: 0 | K181: =VLOOKUP(T_stock[[#This Row],[N° Série]],N°série[#All],8,FALSE) -> 814 | L181: =IF($E181<>0,K181+SUMPRODUCT((T_entrée[N° Article Client]=$E181)*T_entrée[Quantité])-SUMPRODUCT((T_sortie[Référence]=T_stock[[#This Row],[N° Série]])*T_sortie[Quantité]),0) -> 814 | N181: Correct | P181: =T_stock[[#This Row],[Quantité]] -> 0 | Q181: =IF(T_stock[[#This Row],[Stock Réel]]=0,"",T_stock[[#This Row],[Stock Réel]]-T_stock[[#This Row],[Stock Actuel]]+T_stock[[#This Row],[Modif inventaire]]) ->  | R181: 0 | S181: =IFERROR(VLOOKUP(T_stock[[#This Row],[ Notre Référence]],[2]!T_Inventaire[#Data],MATCH(T_stock[[#Headers],[Quantité]],[2]!T_Inventaire[#Headers],0),FALSE),0) -> 0
E182: 73187 | F182: =VLOOKUP(T_stock[[#This Row],[N° Série]],N°série[#All],7,FALSE) -> SEC ASS 17/400 AC SAT | G182: =VLOOKUP(T_stock[[#This Row],[N° Série]],N°série[#All],2,FALSE) -> 32754 | J182: 0 | K182: =VLOOKUP(T_stock[[#This Row],[N° Série]],N°série[#All],8,FALSE) -> 26 | L182: =IF($E182<>0,K182+SUMPRODUCT((T_entrée[N° Article Client]=$E182)*T_entrée[Quantité])-SUMPRODUCT((T_sortie[Référence]=T_stock[[#This Row],[N° Série]])*T_sortie[Quantité]),0) -> 26 | N182: Correct | P182: =T_stock[[#This Row],[Quantité]] -> 0 | Q182: =IF(T_stock[[#This Row],[Stock Réel]]=0,"",T_stock[[#This Row],[Stock Réel]]-T_stock[[#This Row],[Stock Actuel]]+T_stock[[#This Row],[Modif inventaire]]) ->  | R182: 0 | S182: =IFERROR(VLOOKUP(T_stock[[#This Row],[ Notre Référence]],[2]!T_Inventaire[#Data],MATCH(T_stock[[#Headers],[Quantité]],[2]!T_Inventaire[#Headers],0),FALSE),0) -> 0
E183: 73178 | F183: =VLOOKUP(T_stock[[#This Row],[N° Série]],N°série[#All],7,FALSE) -> SEC ASS 17/400 AC SAT | G183: =VLOOKUP(T_stock[[#This Row],[N° Série]],N°série[#All],2,FALSE) -> 32754 | J183: 0 | K183: =VLOOKUP(T_stock[[#This Row],[N° Série]],N°série[#All],8,FALSE) -> 50 | L183: =IF($E183<>0,K183+SUMPRODUCT((T_entrée[N° Article Client]=$E183)*T_entrée[Quantité])-SUMPRODUCT((T_sortie[Référence]=T_stock[[#This Row],[N° Série]])*T_sortie[Quantité]),0) -> 50 | N183: Correct | P183: =T_stock[[#This Row],[Quantité]] -> 0 | Q183: =IF(T_stock[[#This Row],[Stock Réel]]=0,"",T_stock[[#This Row],[Stock Réel]]-T_stock[[#This Row],[Stock Actuel]]+T_stock[[#This Row],[Modif inventaire]]) ->  | R183: 0 | S183: =IFERROR(VLOOKUP(T_stock[[#This Row],[ Notre Référence]],[2]!T_Inventaire[#Data],MATCH(T_stock[[#Headers],[Quantité]],[2]!T_Inventaire[#Headers],0),FALSE),0) -> 0
E184: 73073 | F184: =VLOOKUP(T_stock[[#This Row],[N° Série]],N°série[#All],7,FALSE) -> CVE ASS EBL 15/313 AC TERM | G184: =VLOOKUP(T_stock[[#This Row],[N° Série]],N°série[#All],2,FALSE) -> 32750 | J184: 0 | K184: =VLOOKUP(T_stock[[#This Row],[N° Série]],N°série[#All],8,FALSE) -> 1000 | L184: =IF($E184<>0,K184+SUMPRODUCT((T_entrée[N° Article Client]=$E184)*T_entrée[Quantité])-SUMPRODUCT((T_sortie[Référence]=T_stock[[#This Row],[N° Série]])*T_sortie[Quantité]),0) -> 1000 | N184: Correct | P184: =T_stock[[#This Row],[Quantité]] -> 0 | Q184: =IF(T_stock[[#This Row],[Stock Réel]]=0,"",T_stock[[#This Row],[Stock Réel]]-T_stock[[#This Row],[Stock Actuel]]+T_stock[[#This Row],[Modif inventaire]]) ->  | R184: 0 | S184: =IFERROR(VLOOKUP(T_stock[[#This Row],[ Notre Référence]],[2]!T_Inventaire[#Data],MATCH(T_stock[[#Headers],[Quantité]],[2]!T_Inventaire[#Headers],0),FALSE),0) -> 0
E185: 73074 | F185: =VLOOKUP(T_stock[[#This Row],[N° Série]],N°série[#All],7,FALSE) -> SEC 15/313 AC904L TERM SPLE | G185: =VLOOKUP(T_stock[[#This Row],[N° Série]],N°série[#All],2,FALSE) -> 32305 | J185: 0 | K185: =VLOOKUP(T_stock[[#This Row],[N° Série]],N°série[#All],8,FALSE) -> 1150 | L185: =IF($E185<>0,K185+SUMPRODUCT((T_entrée[N° Article Client]=$E185)*T_entrée[Quantité])-SUMPRODUCT((T_sortie[Référence]=T_stock[[#This Row],[N° Série]])*T_sortie[Quantité]),0) -> 1150 | N185: Correct | P185: =T_stock[[#This Row],[Quantité]] -> 0 | Q185: =IF(T_stock[[#This Row],[Stock Réel]]=0,"",T_stock[[#This Row],[Stock Réel]]-T_stock[[#This Row],[Stock Actuel]]+T_stock[[#This Row],[Modif inventaire]]) ->  | R185: 0 | S185: =IFERROR(VLOOKUP(T_stock[[#This Row],[ Notre Référence]],[2]!T_Inventaire[#Data],MATCH(T_stock[[#Headers],[Quantité]],[2]!T_Inventaire[#Headers],0),FALSE),0) -> 0
E186: 73128 | F186: =VLOOKUP(T_stock[[#This Row],[N° Série]],N°série[#All],7,FALSE) -> CVE 15/313 AC904L SAT | G186: =VLOOKUP(T_stock[[#This Row],[N° Série]],N°série[#All],2,FALSE) -> 32748 | J186: 0 | K186: =VLOOKUP(T_stock[[#This Row],[N° Série]],N°série[#All],8,FALSE) -> 495 | L186: =IF($E186<>0,K186+SUMPRODUCT((T_entrée[N° Article Client]=$E186)*T_entrée[Quantité])-SUMPRODUCT((T_sortie[Référence]=T_stock[[#This Row],[N° Série]])*T_sortie[Quantité]),0) -> 495 | N186: Correct | P186: =T_stock[[#This Row],[Quantité]] -> 0 | Q186: =IF(T_stock[[#This Row],[Stock Réel]]=0,"",T_stock[[#This Row],[Stock Réel]]-T_stock[[#This Row],[Stock Actuel]]+T_stock[[#This Row],[Modif inventaire]]) ->  | R186: 0 | S186: =IFERROR(VLOOKUP(T_stock[[#This Row],[ Notre Référence]],[2]!T_Inventaire[#Data],MATCH(T_stock[[#Headers],[Quantité]],[2]!T_Inventaire[#Headers],0),FALSE),0) -> 0
E187: 73094 | F187: =VLOOKUP(T_stock[[#This Row],[N° Série]],N°série[#All],7,FALSE) -> CVE ASS EBL 15/313 AC TERM | G187: =VLOOKUP(T_stock[[#This Row],[N° Série]],N°série[#All],2,FALSE) -> 32750 | J187: 0 | K187: =VLOOKUP(T_stock[[#This Row],[N° Série]],N°série[#All],8,FALSE) -> 223 | L187: =IF($E187<>0,K187+SUMPRODUCT((T_entrée[N° Article Client]=$E187)*T_entrée[Quantité])-SUMPRODUCT((T_sortie[Référence]=T_stock[[#This Row],[N° Série]])*T_sortie[Quantité]),0) -> 223 | N187: Correct | P187: =T_stock[[#This Row],[Quantité]] -> 0 | Q187: =IF(T_stock[[#This Row],[Stock Réel]]=0,"",T_stock[[#This Row],[Stock Réel]]-T_stock[[#This Row],[Stock Actuel]]+T_stock[[#This Row],[Modif inventaire]]) ->  | R187: 0 | S187: =IFERROR(VLOOKUP(T_stock[[#This Row],[ Notre Référence]],[2]!T_Inventaire[#Data],MATCH(T_stock[[#Headers],[Quantité]],[2]!T_Inventaire[#Headers],0),FALSE),0) -> 0
E188: 73195 | F188: =VLOOKUP(T_stock[[#This Row],[N° Série]],N°série[#All],7,FALSE) -> SEC ASS 15/400 RL18J TERM | G188: =VLOOKUP(T_stock[[#This Row],[N° Série]],N°série[#All],2,FALSE) -> 32494 | J188: 0 | K188: =VLOOKUP(T_stock[[#This Row],[N° Série]],N°série[#All],8,FALSE) -> 266 | L188: =IF($E188<>0,K188+SUMPRODUCT((T_entrée[N° Article Client]=$E188)*T_entrée[Quantité])-SUMPRODUCT((T_sortie[Référence]=T_stock[[#This Row],[N° Série]])*T_sortie[Quantité]),0) -> 266 | N188: Correct | P188: =T_stock[[#This Row],[Quantité]] -> 0 | Q188: =IF(T_stock[[#This Row],[Stock Réel]]=0,"",T_stock[[#This Row],[Stock Réel]]-T_stock[[#This Row],[Stock Actuel]]+T_stock[[#This Row],[Modif inventaire]]) ->  | R188: 0 | S188: =IFERROR(VLOOKUP(T_stock[[#This Row],[ Notre Référence]],[2]!T_Inventaire[#Data],MATCH(T_stock[[#Headers],[Quantité]],[2]!T_Inventaire[#Headers],0),FALSE),0) -> 0
E189: 73095 | F189: =VLOOKUP(T_stock[[#This Row],[N° Série]],N°série[#All],7,FALSE) -> CVE ASS 12/313 AC904L TERM | G189: =VLOOKUP(T_stock[[#This Row],[N° Série]],N°série[#All],2,FALSE) -> 32752 | J189: 0 | K189: =VLOOKUP(T_stock[[#This Row],[N° Série]],N°série[#All],8,FALSE) -> 464 | L189: =IF($E189<>0,K189+SUMPRODUCT((T_entrée[N° Article Client]=$E189)*T_entrée[Quantité])-SUMPRODUCT((T_sortie[Référence]=T_stock[[#This Row],[N° Série]])*T_sortie[Quantité]),0) -> 464 | N189: Correct | P189: =T_stock[[#This Row],[Quantité]] -> 0 | Q189: =IF(T_stock[[#This Row],[Stock Réel]]=0,"",T_stock[[#This Row],[Stock Réel]]-T_stock[[#This Row],[Stock Actuel]]+T_stock[[#This Row],[Modif inventaire]]) ->  | R189: 0 | S189: =IFERROR(VLOOKUP(T_stock[[#This Row],[ Notre Référence]],[2]!T_Inventaire[#Data],MATCH(T_stock[[#Headers],[Quantité]],[2]!T_Inventaire[#Headers],0),FALSE),0) -> 0
E190: 73095 | F190: =VLOOKUP(T_stock[[#This Row],[N° Série]],N°série[#All],7,FALSE) -> CVE ASS 12/313 AC904L TERM | G190: =VLOOKUP(T_stock[[#This Row],[N° Série]],N°série[#All],2,FALSE) -> 32752 | J190: 0 | K190: =VLOOKUP(T_stock[[#This Row],[N° Série]],N°série[#All],8,FALSE) -> 464 | L190: =IF($E190<>0,K190+SUMPRODUCT((T_entrée[N° Article Client]=$E190)*T_entrée[Quantité])-SUMPRODUCT((T_sortie[Référence]=T_stock[[#This Row],[N° Série]])*T_sortie[Quantité]),0) -> 464 | N190: Correct | P190: =T_stock[[#This Row],[Quantité]] -> 0 | Q190: =IF(T_stock[[#This Row],[Stock Réel]]=0,"",T_stock[[#This Row],[Stock Réel]]-T_stock[[#This Row],[Stock Actuel]]+T_stock[[#This Row],[Modif inventaire]]) ->  | R190: 0 | S190: =IFERROR(VLOOKUP(T_stock[[#This Row],[ Notre Référence]],[2]!T_Inventaire[#Data],MATCH(T_stock[[#Headers],[Quantité]],[2]!T_Inventaire[#Headers],0),FALSE),0) -> 0
E191: 73097 | F191: =VLOOKUP(T_stock[[#This Row],[N° Série]],N°série[#All],7,FALSE) -> SEC 15/313A AC904L TERM SPLE | G191: =VLOOKUP(T_stock[[#This Row],[N° Série]],N°série[#All],2,FALSE) -> 32403 | J191: 0 | K191: =VLOOKUP(T_stock[[#This Row],[N° Série]],N°série[#All],8,FALSE) -> 1493 | L191: =IF($E191<>0,K191+SUMPRODUCT((T_entrée[N° Article Client]=$E191)*T_entrée[Quantité])-SUMPRODUCT((T_sortie[Référence]=T_stock[[#This Row],[N° Série]])*T_sortie[Quantité]),0) -> 1493 | N191: Correct | P191: =T_stock[[#This Row],[Quantité]] -> 0 | Q191: =IF(T_stock[[#This Row],[Stock Réel]]=0,"",T_stock[[#This Row],[Stock Réel]]-T_stock[[#This Row],[Stock Actuel]]+T_stock[[#This Row],[Modif inventaire]]) ->  | R191: 0 | S191: =IFERROR(VLOOKUP(T_stock[[#This Row],[ Notre Référence]],[2]!T_Inventaire[#Data],MATCH(T_stock[[#Headers],[Quantité]],[2]!T_Inventaire[#Headers],0),FALSE),0) -> 0
E192: 73196 | F192: =VLOOKUP(T_stock[[#This Row],[N° Série]],N°série[#All],7,FALSE) -> MCE PLAT FER 9.6.2.5 AC904L 15.3 USI | G192: =VLOOKUP(T_stock[[#This Row],[N° Série]],N°série[#All],2,FALSE) -> 32761 | J192: 0 | K192: =VLOOKUP(T_stock[[#This Row],[N° Série]],N°série[#All],8,FALSE) -> 30 | L192: =IF($E192<>0,K192+SUMPRODUCT((T_entrée[N° Article Client]=$E192)*T_entrée[Quantité])-SUMPRODUCT((T_sortie[Référence]=T_stock[[#This Row],[N° Série]])*T_sortie[Quantité]),0) -> 30 | N192: Correct | P192: =T_stock[[#This Row],[Quantité]] -> 0 | Q192: =IF(T_stock[[#This Row],[Stock Réel]]=0,"",T_stock[[#This Row],[Stock Réel]]-T_stock[[#This Row],[Stock Actuel]]+T_stock[[#This Row],[Modif inventaire]]) ->  | R192: 0 | S192: =IFERROR(VLOOKUP(T_stock[[#This Row],[ Notre Référence]],[2]!T_Inventaire[#Data],MATCH(T_stock[[#Headers],[Quantité]],[2]!T_Inventaire[#Headers],0),FALSE),0) -> 0
E193: 73098 | F193: =VLOOKUP(T_stock[[#This Row],[N° Série]],N°série[#All],7,FALSE) -> SEC 13/313 AC904L TERM | G193: =VLOOKUP(T_stock[[#This Row],[N° Série]],N°série[#All],2,FALSE) -> 32363 | J193: 0 | K193: =VLOOKUP(T_stock[[#This Row],[N° Série]],N°série[#All],8,FALSE) -> 500 | L193: =IF($E193<>0,K193+SUMPRODUCT((T_entrée[N° Article Client]=$E193)*T_entrée[Quantité])-SUMPRODUCT((T_sortie[Référence]=T_stock[[#This Row],[N° Série]])*T_sortie[Quantité]),0) -> 500 | N193: Correct | P193: =T_stock[[#This Row],[Quantité]] -> 0 | Q193: =IF(T_stock[[#This Row],[Stock Réel]]=0,"",T_stock[[#This Row],[Stock Réel]]-T_stock[[#This Row],[Stock Actuel]]+T_stock[[#This Row],[Modif inventaire]]) ->  | R193: 0 | S193: =IFERROR(VLOOKUP(T_stock[[#This Row],[ Notre Référence]],[2]!T_Inventaire[#Data],MATCH(T_stock[[#Headers],[Quantité]],[2]!T_Inventaire[#Headers],0),FALSE),0) -> 0
E194: 73099 | F194: =VLOOKUP(T_stock[[#This Row],[N° Série]],N°série[#All],7,FALSE) -> CVE 15/313 AC904L SAT | G194: =VLOOKUP(T_stock[[#This Row],[N° Série]],N°série[#All],2,FALSE) -> 32748 | J194: 0 | K194: =VLOOKUP(T_stock[[#This Row],[N° Série]],N°série[#All],8,FALSE) -> 947 | L194: =IF($E194<>0,K194+SUMPRODUCT((T_entrée[N° Article Client]=$E194)*T_entrée[Quantité])-SUMPRODUCT((T_sortie[Référence]=T_stock[[#This Row],[N° Série]])*T_sortie[Quantité]),0) -> 947 | N194: Correct | P194: =T_stock[[#This Row],[Quantité]] -> 0 | Q194: =IF(T_stock[[#This Row],[Stock Réel]]=0,"",T_stock[[#This Row],[Stock Réel]]-T_stock[[#This Row],[Stock Actuel]]+T_stock[[#This Row],[Modif inventaire]]) ->  | R194: 0 | S194: =IFERROR(VLOOKUP(T_stock[[#This Row],[ Notre Référence]],[2]!T_Inventaire[#Data],MATCH(T_stock[[#Headers],[Quantité]],[2]!T_Inventaire[#Headers],0),FALSE),0) -> 0
E195: 73166 | F195: =VLOOKUP(T_stock[[#This Row],[N° Série]],N°série[#All],7,FALSE) -> SEC ASS 15/423 AC TERM | G195: =VLOOKUP(T_stock[[#This Row],[N° Série]],N°série[#All],2,FALSE) -> 32438 | J195: 0 | K195: =VLOOKUP(T_stock[[#This Row],[N° Série]],N°série[#All],8,FALSE) -> 1000 | L195: =IF($E195<>0,K195+SUMPRODUCT((T_entrée[N° Article Client]=$E195)*T_entrée[Quantité])-SUMPRODUCT((T_sortie[Référence]=T_stock[[#This Row],[N° Série]])*T_sortie[Quantité]),0) -> 1000 | N195: Correct | P195: =T_stock[[#This Row],[Quantité]] -> 0 | Q195: =IF(T_stock[[#This Row],[Stock Réel]]=0,"",T_stock[[#This Row],[Stock Réel]]-T_stock[[#This Row],[Stock Actuel]]+T_stock[[#This Row],[Modif inventaire]]) ->  | R195: 0 | S195: =IFERROR(VLOOKUP(T_stock[[#This Row],[ Notre Référence]],[2]!T_Inventaire[#Data],MATCH(T_stock[[#Headers],[Quantité]],[2]!T_Inventaire[#Headers],0),FALSE),0) -> 0
E196: 73167 | F196: =VLOOKUP(T_stock[[#This Row],[N° Série]],N°série[#All],7,FALSE) -> SEC ASS 15/400 AC SAT | G196: =VLOOKUP(T_stock[[#This Row],[N° Série]],N°série[#All],2,FALSE) -> 32537 | J196: 0 | K196: =VLOOKUP(T_stock[[#This Row],[N° Série]],N°série[#All],8,FALSE) -> 1165 | L196: =IF($E196<>0,K196+SUMPRODUCT((T_entrée[N° Article Client]=$E196)*T_entrée[Quantité])-SUMPRODUCT((T_sortie[Référence]=T_stock[[#This Row],[N° Série]])*T_sortie[Quantité]),0) -> 1165 | N196: Correct | P196: =T_stock[[#This Row],[Quantité]] -> 0 | Q196: =IF(T_stock[[#This Row],[Stock Réel]]=0,"",T_stock[[#This Row],[Stock Réel]]-T_stock[[#This Row],[Stock Actuel]]+T_stock[[#This Row],[Modif inventaire]]) ->  | R196: 0 | S196: =IFERROR(VLOOKUP(T_stock[[#This Row],[ Notre Référence]],[2]!T_Inventaire[#Data],MATCH(T_stock[[#Headers],[Quantité]],[2]!T_Inventaire[#Headers],0),FALSE),0) -> 0
E197: 73100 | F197: =VLOOKUP(T_stock[[#This Row],[N° Série]],N°série[#All],7,FALSE) -> CVE ASS EBL 15/313 AC TERM | G197: =VLOOKUP(T_stock[[#This Row],[N° Série]],N°série[#All],2,FALSE) -> 32750 | J197: 0 | K197: =VLOOKUP(T_stock[[#This Row],[N° Série]],N°série[#All],8,FALSE) -> 1000 | L197: =IF($E197<>0,K197+SUMPRODUCT((T_entrée[N° Article Client]=$E197)*T_entrée[Quantité])-SUMPRODUCT((T_sortie[Référence]=T_stock[[#This Row],[N° Série]])*T_sortie[Quantité]),0) -> 1000 | N197: Correct | P197: =T_stock[[#This Row],[Quantité]] -> 0 | Q197: =IF(T_stock[[#This Row],[Stock Réel]]=0,"",T_stock[[#This Row],[Stock Réel]]-T_stock[[#This Row],[Stock Actuel]]+T_stock[[#This Row],[Modif inventaire]]) ->  | R197: 0 | S197: =IFERROR(VLOOKUP(T_stock[[#This Row],[ Notre Référence]],[2]!T_Inventaire[#Data],MATCH(T_stock[[#Headers],[Quantité]],[2]!T_Inventaire[#Headers],0),FALSE),0) -> 0
E198: 73149 | F198: =VLOOKUP(T_stock[[#This Row],[N° Série]],N°série[#All],7,FALSE) -> CVE 15/313 AC904L SAT | G198: =VLOOKUP(T_stock[[#This Row],[N° Série]],N°série[#All],2,FALSE) -> 32748 | J198: 0 | K198: =VLOOKUP(T_stock[[#This Row],[N° Série]],N°série[#All],8,FALSE) -> 241 | L198: =IF($E198<>0,K198+SUMPRODUCT((T_entrée[N° Article Client]=$E198)*T_entrée[Quantité])-SUMPRODUCT((T_sortie[Référence]=T_stock[[#This Row],[N° Série]])*T_sortie[Quantité]),0) -> 241 | N198: Correct | P198: =T_stock[[#This Row],[Quantité]] -> 0 | Q198: =IF(T_stock[[#This Row],[Stock Réel]]=0,"",T_stock[[#This Row],[Stock Réel]]-T_stock[[#This Row],[Stock Actuel]]+T_stock[[#This Row],[Modif inventaire]]) ->  | R198: 0 | S198: =IFERROR(VLOOKUP(T_stock[[#This Row],[ Notre Référence]],[2]!T_Inventaire[#Data],MATCH(T_stock[[#Headers],[Quantité]],[2]!T_Inventaire[#Headers],0),FALSE),0) -> 0
E199: 73177 | F199: =VLOOKUP(T_stock[[#This Row],[N° Série]],N°série[#All],7,FALSE) -> SEC ASS 15/423 AC TERM | G199: =VLOOKUP(T_stock[[#This Row],[N° Série]],N°série[#All],2,FALSE) -> 32438 | J199: 0 | K199: =VLOOKUP(T_stock[[#This Row],[N° Série]],N°série[#All],8,FALSE) -> 1036 | L199: =IF($E199<>0,K199+SUMPRODUCT((T_entrée[N° Article Client]=$E199)*T_entrée[Quantité])-SUMPRODUCT((T_sortie[Référence]=T_stock[[#This Row],[N° Série]])*T_sortie[Quantité]),0) -> 1036 | N199: Correct | P199: =T_stock[[#This Row],[Quantité]] -> 0 | Q199: =IF(T_stock[[#This Row],[Stock Réel]]=0,"",T_stock[[#This Row],[Stock Réel]]-T_stock[[#This Row],[Stock Actuel]]+T_stock[[#This Row],[Modif inventaire]]) ->  | R199: 0 | S199: =IFERROR(VLOOKUP(T_stock[[#This Row],[ Notre Référence]],[2]!T_Inventaire[#Data],MATCH(T_stock[[#Headers],[Quantité]],[2]!T_Inventaire[#Headers],0),FALSE),0) -> 0
E200: 73103 | F200: =VLOOKUP(T_stock[[#This Row],[N° Série]],N°série[#All],7,FALSE) -> CVE ASS EBL 15/313 AC TERM | G200: =VLOOKUP(T_stock[[#This Row],[N° Série]],N°série[#All],2,FALSE) -> 32750 | J200: 0 | K200: =VLOOKUP(T_stock[[#This Row],[N° Série]],N°série[#All],8,FALSE) -> 1000 | L200: =IF($E200<>0,K200+SUMPRODUCT((T_entrée[N° Article Client]=$E200)*T_entrée[Quantité])-SUMPRODUCT((T_sortie[Référence]=T_stock[[#This Row],[N° Série]])*T_sortie[Quantité]),0) -> 1000 | N200: Correct | P200: =T_stock[[#This Row],[Quantité]] -> 0 | Q200: =IF(T_stock[[#This Row],[Stock Réel]]=0,"",T_stock[[#This Row],[Stock Réel]]-T_stock[[#This Row],[Stock Actuel]]+T_stock[[#This Row],[Modif inventaire]]) ->  | R200: 0 | S200: =IFERROR(VLOOKUP(T_stock[[#This Row],[ Notre Référence]],[2]!T_Inventaire[#Data],MATCH(T_stock[[#Headers],[Quantité]],[2]!T_Inventaire[#Headers],0),FALSE),0) -> 0
E201: 73104 | F201: =VLOOKUP(T_stock[[#This Row],[N° Série]],N°série[#All],7,FALSE) -> CVE ASS EBL 15/313 AC TERM | G201: =VLOOKUP(T_stock[[#This Row],[N° Série]],N°série[#All],2,FALSE) -> 32750 | J201: 0 | K201: =VLOOKUP(T_stock[[#This Row],[N° Série]],N°série[#All],8,FALSE) -> 463 | L201: =IF($E201<>0,K201+SUMPRODUCT((T_entrée[N° Article Client]=$E201)*T_entrée[Quantité])-SUMPRODUCT((T_sortie[Référence]=T_stock[[#This Row],[N° Série]])*T_sortie[Quantité]),0) -> 463 | N201: Correct | P201: =T_stock[[#This Row],[Quantité]] -> 0 | Q201: =IF(T_stock[[#This Row],[Stock Réel]]=0,"",T_stock[[#This Row],[Stock Réel]]-T_stock[[#This Row],[Stock Actuel]]+T_stock[[#This Row],[Modif inventaire]]) ->  | R201: 0 | S201: =IFERROR(VLOOKUP(T_stock[[#This Row],[ Notre Référence]],[2]!T_Inventaire[#Data],MATCH(T_stock[[#Headers],[Quantité]],[2]!T_Inventaire[#Headers],0),FALSE),0) -> 0
... 459 more rows

Sheet Entrée (hidden)
B2: Entrée de stock
A4: noms | B4: Notre Référence | C4: Fournisseur | D4: N° Article Client | E4: Désignation | F4: Taille | G4: Achat HT | H4: Prix Vente | I4: Quantité | J4: Date | K4: Bulletin de livraison
A5: 1 | C5: =IF($B5<>"",VLOOKUP($B5,[2]!T_stock[#Data],COLUMN()-1,FALSE),"") ->  | E5: =IF($D5<>"",VLOOKUP($D5,[2]Stock!$E$5:$P$99772,2,FALSE),"") ->  | F5: =IF($D5<>"",VLOOKUP($D5,[2]Stock!$E$5:$P$99772,4,FALSE),"") ->  | G5: =IF($D5<>"",VLOOKUP($D5,[2]Stock!$E$5:$P$99772,5,FALSE),"") ->  | I5: 0

Sheet Sortie
A4: N° | B4: Référence | C4: Désignation | D4: Taille | E4: Grain | F4: Quantité | G4: Date | H4: Descriptif
B5: 74145 | C5: =IF(B5<>"",VLOOKUP(T_sortie[[#This Row],[Référence]],N°série[],7,FALSE),"") -> CVE 11/313A AC904L TERM | D5: =IF(B5<>"",VLOOKUP(B5,[2]!T_stock[#Data],7,FALSE),"") ->  | E5: =IF($B5<>"",VLOOKUP($B5,[2]!T_stock[#Data],6,FALSE),"") ->  | F5: 100 | G5: =IF(F5<>"",TODAY(),"") -> 2017-04-27
B6: 74145 | C6: =IF(B6<>"",VLOOKUP(T_sortie[[#This Row],[Référence]],N°série[],7,FALSE),"") -> CVE 11/313A AC904L TERM | D6: =IF(B6<>"",VLOOKUP(B6,[2]!T_stock[#Data],7,FALSE),"") ->  | E6: =IF($B6<>"",VLOOKUP($B6,[2]!T_stock[#Data],6,FALSE),"") ->  | F6: 109 | G6: =IF(F6<>"",TODAY(),"") -> 2017-04-27
B7: 74145 | C7: =IF(B7<>"",VLOOKUP(T_sortie[[#This Row],[Référence]],N°série[],7,FALSE),"") -> CVE 11/313A AC904L TERM | D7: =IF(B7<>"",VLOOKUP(B7,[2]!T_stock[#Data],7,FALSE),"") ->  | E7: =IF($B7<>"",VLOOKUP($B7,[2]!T_stock[#Data],6,FALSE),"") ->  | F7: 100 | G7: =IF(F7<>"",TODAY(),"") -> 2017-04-27
B8: 72887 | C8: =IF(B8<>"",VLOOKUP(T_sortie[[#This Row],[Référence]],N°série[],7,FALSE),"") -> CVE ASS 15/313 RL18R-410 TERM | D8: =IF(B8<>"",VLOOKUP(B8,[2]!T_stock[#Data],7,FALSE),"") ->  | E8: =IF($B8<>"",VLOOKUP($B8,[2]!T_stock[#Data],6,FALSE),"") ->  | F8: 0 | G8: =IF(F8<>"",TODAY(),"") -> 2017-04-27

Sheet Commande
C1: 74145
A6: Série | C6: 72886
A7: Ref | C7: =IFERROR(VLOOKUP($C$6,A$9:P100005,2,FALSE),"") -> 0
A8: Désignation article | C8: =IFERROR(VLOOKUP($C$6,A$9:P100006,7,FALSE),"") -> CVE ASS 15/313 RL18J TERM
A9: Quantité | C9: =IFERROR(VLOOKUP($C$6,N°série[#All],8,FALSE),"") -> 500 | D9: Solde | E9: =IFERROR(VLOOKUP(C6,T_stock[[#All],[N° Série]:[Correction stock]],8,FALSE),"") -> 500 | F9: =IFERROR(E9-S15+R43,"") -> 500
B10: Date | C10: =NOW() -> 2017-04-27T10:08:29.630 | F10: =IFERROR(E9-F9,"") -> 0
C11: =IFERROR(VLOOKUP($C$6,A$9:P100007,12,FALSE),"") -> 
B12: Qté restante | C12: =IFERROR(VLOOKUP(C6,N°série[],MATCH('Commande '!C6,T_stock[[N° Série]:[Stock Actuel]],0),FALSE),0) -> 0
A14: N° Serie | B14: Ref | C14: N° Art Brut | D14: N° Colis | E14: BL | F14: N°Article | G14: Désignation article | H14: Quantité | I14: Unité | J14: N°Commande | K14: Poste commande | L14: Classe | M14: Modif inventaire | N14: Solde Actuel | O14: Solde Réel | P14: Correction | Q14: Colonne1 | R14: Colonne2 | S14: 100
A15: 72887 | C15: =IF($B15<>"",VLOOKUP($B15,'[5]Liste 2'!$A$2:$F$168,2,FALSE),"") ->  | F15: 4307954 | G15: CVE ASS 15/313 RL18R-410 TERM | H15: 904 | I15: PCE | J15: 4501015860 | K15: 3 | L15: =IF(B15="","",VLOOKUP(B15,'[6]Liste 2'!A$1:F31,5,FALSE)) ->  | Q15: txt1
A16: 72886 | C16: =IF($B16<>"",VLOOKUP($B16,'[5]Liste 2'!$A$2:$F$168,2,FALSE),"") ->  | F16: 4306985 | G16: CVE ASS 15/313 RL18J TERM | H16: 500 | I16: PCE | J16: 4501015860 | K16: 1 | L16: =IF(B16="","",VLOOKUP(B16,'[6]Liste 2'!A$1:F32,5,FALSE)) ->  | Q16: txt2
A17: 72896 | C17: =IF($B17<>"",VLOOKUP($B17,'[5]Liste 2'!$A$2:$F$168,2,FALSE),"") ->  | F17: 4012687 | G17: SEC 15/313 AC904L TERM SPLE | H17: 950 | I17: PCE | J17: 4501015861 | K17: 4 | L17: =IF(B17="","",VLOOKUP(B17,'[6]Liste 2'!A$1:F33,5,FALSE)) ->  | Q17: txt3
A18: 72894 | C18: =IF($B18<>"",VLOOKUP($B18,'[5]Liste 2'!$A$2:$F$168,2,FALSE),"") ->  | F18: 4307947 | G18: SEC ASS 15/313 RL18R-410 TERM | H18: 500 | I18: PCE | J18: 4501015860 | K18: 7 | L18: =IF(B18="","",VLOOKUP(B18,'[6]Liste 2'!A$1:F34,5,FALSE)) ->  | Q18: txt4
A19: 72899 | C19: =IF($B19<>"",VLOOKUP($B19,'[5]Liste 2'!$A$2:$F$168,2,FALSE),"") ->  | F19: 4106514 | G19: SEC ASS 15/400 AC SAT | H19: 1260 | I19: PCE | J19: 4501017042 | K19: 4 | L19: =IF(B19="","",VLOOKUP(B19,'[6]Liste 2'!A$1:F35,5,FALSE)) ->  | Q19: txt5
A20: 72901 | C20: =IF($B20<>"",VLOOKUP($B20,'[5]Liste 2'!$A$2:$F$168,2,FALSE),"") ->  | F20: 4326329 | G20: CVE 17/443 AC904L SAT | H20: 696 | I20: PCE | J20: 4501017057 | K20: 1 | L20: =IF(B20="","",VLOOKUP(B20,'[6]Liste 2'!A$1:F36,5,FALSE)) ->  | Q20: txt6
A21: 72902 | C21: =IF($B21<>"",VLOOKUP($B21,'[5]Liste 2'!$A$2:$F$168,2,FALSE),"") ->  | F21: 4185813 | G21: CVE ASS PLQ 15/443 RL18J TERM | H21: 397 | I21: PCE | J21: 4501017086 | K21: 2 | L21: =IF(B21="","",VLOOKUP(B21,'[6]Liste 2'!A$1:F37,5,FALSE)) ->  | Q21: txt7
A22: 72900 | C22: =IF($B22<>"",VLOOKUP($B22,'[5]Liste 2'!$A$2:$F$168,2,FALSE),"") ->  | F22: 4185813 | G22: CVE ASS PLQ 15/443 RL18J TERM | H22: 604 | I22: PCE | J22: 4501017052 | K22: 2 | L22: =IF(B22="","",VLOOKUP(B22,'[6]Liste 2'!A$1:F38,5,FALSE)) ->  | Q22: txt8
A23: 72895 | C23: =IF($B23<>"",VLOOKUP($B23,'[5]Liste 2'!$A$2:$F$168,2,FALSE),"") ->  | F23: 4323350 | G23: CVE ASS EBL 15/313 AC TERM | H23: 1117 | I23: PCE | J23: 4501015861 | K23: 1 | L23: =IF(B23="","",VLOOKUP(B23,'[6]Liste 2'!A$1:F39,5,FALSE)) ->  | Q23: txt9
A24: 72897 | C24: =IF($B24<>"",VLOOKUP($B24,'[5]Liste 2'!$A$2:$F$168,2,FALSE),"") ->  | F24: 4328247 | G24: CVE 15/313 AC904L SAT | H24: 988 | I24: PCE | J24: 4501015865 | K24: 2 | L24: =IF(B24="","",VLOOKUP(B24,'[6]Liste 2'!A$1:F40,5,FALSE)) ->  | Q24: txt10
A25: 72914 | C25: =IF($B25<>"",VLOOKUP($B25,'[5]Liste 2'!$A$2:$F$168,2,FALSE),"") ->  | F25: 4078326 | G25: SEC ASS 15/423 AC TERM | H25: 1000 | I25: PCE | J25: 4501017337 | K25: 1 | L25: =IF(B25="","",VLOOKUP(B25,'[6]Liste 2'!A$1:F41,5,FALSE)) ->  | Q25: txt11
A26: 72911 | C26: =IF($B26<>"",VLOOKUP($B26,'[5]Liste 2'!$A$2:$F$168,2,FALSE),"") ->  | F26: 4090256 | G26: SEC 15/313A AC904L TERM SPLE | H26: 516 | I26: PCE | J26: 4501017042 | K26: 9 | L26: =IF(B26="","",VLOOKUP(B26,'[6]Liste 2'!A$1:F42,5,FALSE)) ->  | Q26: txt12
A27: 72940 | C27: =IF($B27<>"",VLOOKUP($B27,'[5]Liste 2'!$A$2:$F$168,2,FALSE),"") ->  | F27: 4237284 | G27: ALL FER 97200 16 AC SAT MONO V0 | H27: 900 | I27: PCE | J27: 4501017810 | K27: 1 | L27: =IF(B27="","",VLOOKUP(B27,'[6]Liste 2'!A$1:F43,5,FALSE)) ->  | Q27: txt13
A28: 72903 | C28: =IF($B28<>"",VLOOKUP($B28,'[5]Liste 2'!$A$2:$F$168,2,FALSE),"") ->  | F28: 4326035 | G28: CVE ASS 12/313 AC904L TERM | H28: 500 | I28: PCE | J28: 4501016894 | K28: 1 | L28: =IF(B28="","",VLOOKUP(B28,'[6]Liste 2'!A$1:F44,5,FALSE)) ->  | Q28: txt14
A29: 72904 | C29: =IF($B29<>"",VLOOKUP($B29,'[5]Liste 2'!$A$2:$F$168,2,FALSE),"") ->  | F29: 4012687 | G29: SEC 15/313 AC904L TERM SPLE | H29: 1000 | I29: PCE | J29: 4501017042 | K29: 1 | L29: =IF(B29="","",VLOOKUP(B29,'[6]Liste 2'!A$1:F45,5,FALSE)) ->  | Q29: txt15
A30: 72910 | C30: =IF($B30<>"",VLOOKUP($B30,'[5]Liste 2'!$A$2:$F$168,2,FALSE),"") ->  | F30: 4328247 | G30: CVE 15/313 AC904L SAT | H30: 526 | I30: PCE | J30: 4501017042 | K30: 7 | L30: =IF(B30="","",VLOOKUP(B30,'[6]Liste 2'!A$1:F46,5,FALSE)) ->  | Q30: txt16
A31: 72913 | C31: =IF($B31<>"",VLOOKUP($B31,'[5]Liste 2'!$A$2:$F$168,2,FALSE),"") ->  | F31: 4240028 | G31: CVE ASS PLQ 15/423 RL18J TERM | H31: 248 | I31: PCE | J31: 4501017052 | K31: 3 | L31: =IF(B31="","",VLOOKUP(B31,'[6]Liste 2'!A$1:F47,5,FALSE)) ->  | Q31: txt17
A32: 72912 | C32: =IF($B32<>"",VLOOKUP($B32,'[5]Liste 2'!$A$2:$F$168,2,FALSE),"") ->  | F32: 4307947 | G32: SEC ASS 15/313 RL18R-410 TERM | H32: 764 | I32: PCE | J32: 4501017044 | K32: 1 | L32: =IF(B32="","",VLOOKUP(B32,'[6]Liste 2'!A$1:F48,5,FALSE)) ->  | Q32: txt18
A33: 72941 | C33: =IF($B33<>"",VLOOKUP($B33,'[5]Liste 2'!$A$2:$F$168,2,FALSE),"") ->  | F33: 4180304 | G33: CVE 15/423 AC904L SAT | H33: 500 | I33: PCE | J33: 4501018066 | K33: 4 | L33: =IF(B33="","",VLOOKUP(B33,'[6]Liste 2'!A$1:F49,5,FALSE)) ->  | Q33: txt19
A34: 72915 | C34: =IF($B34<>"",VLOOKUP($B34,'[5]Liste 2'!$A$2:$F$168,2,FALSE),"") ->  | F34: 4306985 | G34: CVE ASS 15/313 RL18J TERM | H34: 1300 | I34: PCE | J34: 4501016893 | K34: 1 | L34: =IF(B34="","",VLOOKUP(B34,'[6]Liste 2'!A$1:F50,5,FALSE)) ->  | Q34: txt20
A35: 72942 | C35: =IF($B35<>"",VLOOKUP($B35,'[5]Liste 2'!$A$2:$F$168,2,FALSE),"") ->  | F35: 4237284 | G35: ALL FER 97200 16 AC SAT MONO V0 | H35: 880 | I35: PCE | J35: 4501017810 | K35: 2 | L35: =IF(B35="","",VLOOKUP(B35,'[6]Liste 2'!A$1:F51,5,FALSE)) ->  | Q35: txt21
A36: 72918 | C36: =IF($B36<>"",VLOOKUP($B36,'[5]Liste 2'!$A$2:$F$168,2,FALSE),"") ->  | F36: 4090256 | G36: SEC 15/313A AC904L TERM SPLE | H36: 516 | I36: PCE | J36: 4501017042 | K36: 10 | L36: =IF(B36="","",VLOOKUP(B36,'[6]Liste 2'!A$1:F52,5,FALSE)) ->  | Q36: txt22
A37: 72917 | C37: =IF($B37<>"",VLOOKUP($B37,'[5]Liste 2'!$A$2:$F$168,2,FALSE),"") ->  | F37: 4100346 | G37: CVE 13/313A AC904L TERM | H37: 141 | I37: PCE | J37: 4501017042 | K37: 8 | L37: =IF(B37="","",VLOOKUP(B37,'[6]Liste 2'!A$1:F53,5,FALSE)) ->  | Q37: txt23
A38: 72916 | C38: =IF($B38<>"",VLOOKUP($B38,'[5]Liste 2'!$A$2:$F$168,2,FALSE),"") ->  | F38: 4012687 | G38: SEC 15/313 AC904L TERM SPLE | H38: 1000 | I38: PCE | J38: 4501017042 | K38: 2 | L38: =IF(B38="","",VLOOKUP(B38,'[6]Liste 2'!A$1:F54,5,FALSE)) ->  | Q38: txt24
A39: 72943 | C39: =IF($B39<>"",VLOOKUP($B39,'[5]Liste 2'!$A$2:$F$168,2,FALSE),"") ->  | F39: 4240028 | G39: CVE ASS PLQ 15/423 RL18J TERM | H39: 741 | I39: PCE | J39: 4501018065 | K39: 3 | L39: =IF(B39="","",VLOOKUP(B39,'[6]Liste 2'!A$1:F55,5,FALSE)) ->  | Q39: txt25
A40: 72950 | C40: =IF($B40<>"",VLOOKUP($B40,'[5]Liste 2'!$A$2:$F$168,2,FALSE),"") ->  | F40: 4210872 | G40: CVE 15/443 AC904L SAT | H40: 400 | I40: PCE | J40: 4501019010 | K40: 1 | L40: =IF(B40="","",VLOOKUP(B40,'[6]Liste 2'!A$1:F56,5,FALSE)) ->  | Q40: txt26
A41: 72920 | C41: =IF($B41<>"",VLOOKUP($B41,'[5]Liste 2'!$A$2:$F$168,2,FALSE),"") ->  | F41: 4323350 | G41: CVE ASS EBL 15/313 AC TERM | H41: 1000 | I41: PCE | J41: 4501016894 | K41: 2 | L41: =IF(B41="","",VLOOKUP(B41,'[6]Liste 2'!A$1:F57,5,FALSE)) ->  | Q41: txt27
A42: 72921 | C42: =IF($B42<>"",VLOOKUP($B42,'[5]Liste 2'!$A$2:$F$168,2,FALSE),"") ->  | F42: 4323350 | G42: CVE ASS EBL 15/313 AC TERM | H42: 772 | I42: PCE | J42: 4501016894 | K42: 3 | L42: =IF(B42="","",VLOOKUP(B42,'[6]Liste 2'!A$1:F58,5,FALSE)) ->  | Q42: txt28
A43: 72930 | C43: =IF($B43<>"",VLOOKUP($B43,'[5]Liste 2'!$A$2:$F$168,2,FALSE),"") ->  | F43: 4346602 | G43: CVE ASS EBL 17/413 AC TERM | H43: 75 | I43: PCE | J43: 4501013584 | K43: 1 | L43: =IF(B43="","",VLOOKUP(B43,'[6]Liste 2'!A$1:F59,5,FALSE)) ->  | Q43: Total | R43: =SUBTOTAL(109,R15:R42) -> 0
A44: 72922 | C44: =IF($B44<>"",VLOOKUP($B44,'[5]Liste 2'!$A$2:$F$168,2,FALSE),"") ->  | F44: 4012687 | G44: SEC 15/313 AC904L TERM SPLE | H44: 880 | I44: PCE | J44: 4501017042 | K44: 3 | L44: =IF(B44="","",VLOOKUP(B44,'[6]Liste 2'!A$1:F60,5,FALSE)) ->  | Q44: % | R44: =IF(S15="","",R43/S15*100) -> 
A45: 72923 | C45: =IF($B45<>"",VLOOKUP($B45,'[5]Liste 2'!$A$2:$F$168,2,FALSE),"") ->  | F45: 4090256 | G45: SEC 15/313A AC904L TERM SPLE | H45: 518 | I45: PCE | J45: 4501017042 | K45: 11 | L45: =IF(B45="","",VLOOKUP(B45,'[6]Liste 2'!A$1:F61,5,FALSE)) -> 
A46: 72951 | C46: =IF($B46<>"",VLOOKUP($B46,'[5]Liste 2'!$A$2:$F$168,2,FALSE),"") ->  | F46: 4210872 | G46: CVE 15/443 AC904L SAT | H46: 400 | I46: PCE | J46: 4501019010 | K46: 2 | L46: =IF(B46="","",VLOOKUP(B46,'[6]Liste 2'!A$1:F62,5,FALSE)) -> 
A47: 72945 | C47: =IF($B47<>"",VLOOKUP($B47,'[5]Liste 2'!$A$2:$F$168,2,FALSE),"") ->  | F47: 4100346 | G47: CVE 13/313A AC904L TERM | H47: 159 | I47: PCE | J47: 4501018066 | K47: 1 | L47: =IF(B47="","",VLOOKUP(B47,'[6]Liste 2'!A$1:F63,5,FALSE)) -> 
A48: 72946 | C48: =IF($B48<>"",VLOOKUP($B48,'[5]Liste 2'!$A$2:$F$168,2,FALSE),"") ->  | F48: 4328247 | G48: CVE 15/313 AC904L SAT | H48: 186 | I48: PCE | J48: 4501018066 | K48: 2 | L48: =IF(B48="","",VLOOKUP(B48,'[6]Liste 2'!A$1:F64,5,FALSE)) -> 
A49: 72925 | C49: =IF($B49<>"",VLOOKUP($B49,'[5]Liste 2'!$A$2:$F$168,2,FALSE),"") ->  | F49: 4078326 | G49: SEC ASS 15/423 AC TERM | H49: 646 | I49: PCE | J49: 4501017337 | K49: 4 | L49: =IF(B49="","",VLOOKUP(B49,'[6]Liste 2'!A$1:F65,5,FALSE)) -> 
A50: 72944 | C50: =IF($B50<>"",VLOOKUP($B50,'[5]Liste 2'!$A$2:$F$168,2,FALSE),"") ->  | F50: 4297560 | G50: CVE ASS PLQ 15/423 RL18R-410 TERM | H50: 361 | I50: PCE | J50: 4501018065 | K50: 4 | L50: =IF(B50="","",VLOOKUP(B50,'[6]Liste 2'!A$1:F66,5,FALSE)) -> 
A51: 72947 | C51: =IF($B51<>"",VLOOKUP($B51,'[5]Liste 2'!$A$2:$F$168,2,FALSE),"") ->  | F51: 4326332 | G51: ALL FER 97220 17 AC SAT MONO | H51: 900 | I51: PCE | J51: 4501017815 | K51: 1 | L51: =IF(B51="","",VLOOKUP(B51,'[6]Liste 2'!A$1:F67,5,FALSE)) -> 
A52: 72948 | C52: =IF($B52<>"",VLOOKUP($B52,'[5]Liste 2'!$A$2:$F$168,2,FALSE),"") ->  | F52: 4307947 | G52: SEC ASS 15/313 RL18R-410 TERM | H52: 1053 | I52: PCE | J52: 4501018065 | K52: 1 | L52: =IF(B52="","",VLOOKUP(B52,'[6]Liste 2'!A$1:F68,5,FALSE)) -> 
A53: 72968 | C53: =IF($B53<>"",VLOOKUP($B53,'[5]Liste 2'!$A$2:$F$168,2,FALSE),"") ->  | F53: 4106514 | G53: SEC ASS 15/400 AC SAT | H53: 500 | I53: PCE | J53: 4501019711 | K53: 2 | L53: =IF(B53="","",VLOOKUP(B53,'[6]Liste 2'!A$1:F69,5,FALSE)) -> 
A54: 72966 | C54: =IF($B54<>"",VLOOKUP($B54,'[5]Liste 2'!$A$2:$F$168,2,FALSE),"") ->  | F54: 4323350 | G54: CVE ASS EBL 15/313 AC TERM | H54: 1000 | I54: PCE | J54: 4501019689 | K54: 1 | L54: =IF(B54="","",VLOOKUP(B54,'[6]Liste 2'!A$1:F70,5,FALSE)) -> 
A55: 72967 | C55: =IF($B55<>"",VLOOKUP($B55,'[5]Liste 2'!$A$2:$F$168,2,FALSE),"") ->  | F55: 4012687 | G55: SEC 15/313 AC904L TERM SPLE | H55: 269 | I55: PCE | J55: 4501019711 | K55: 1 | L55: =IF(B55="","",VLOOKUP(B55,'[6]Liste 2'!A$1:F71,5,FALSE)) -> 
A56: 72971 | C56: =IF($B56<>"",VLOOKUP($B56,'[5]Liste 2'!$A$2:$F$168,2,FALSE),"") ->  | F56: 4185813 | G56: CVE ASS PLQ 15/443 RL18J TERM | H56: 592 | I56: PCE | J56: 4501019742 | K56: 1 | L56: =IF(B56="","",VLOOKUP(B56,'[6]Liste 2'!A$1:F72,5,FALSE)) -> 
A57: 72972 | C57: =IF($B57<>"",VLOOKUP($B57,'[5]Liste 2'!$A$2:$F$168,2,FALSE),"") ->  | F57: 4328247 | G57: CVE 15/313 AC904L SAT | H57: 250 | I57: PCE | J57: 4501019752 | K57: 1 | L57: =IF(B57="","",VLOOKUP(B57,'[6]Liste 2'!A$1:F73,5,FALSE)) -> 
A58: 72973 | C58: =IF($B58<>"",VLOOKUP($B58,'[5]Liste 2'!$A$2:$F$168,2,FALSE),"") ->  | F58: 4180304 | G58: CVE 15/423 AC904L SAT | H58: 400 | I58: PCE | J58: 4501019767 | K58: 1 | L58: =IF(B58="","",VLOOKUP(B58,'[6]Liste 2'!A$1:F74,5,FALSE)) -> 
A59: 72970 | C59: =IF($B59<>"",VLOOKUP($B59,'[5]Liste 2'!$A$2:$F$168,2,FALSE),"") ->  | F59: 4301404 | G59: SEC ASS 14/400 RL18R-410 TERM | H59: 144 | I59: PCE | J59: 4501019714 | K59: 1 | L59: =IF(B59="","",VLOOKUP(B59,'[6]Liste 2'!A$1:F75,5,FALSE)) -> 
A60: 72969 | C60: =IF($B60<>"",VLOOKUP($B60,'[5]Liste 2'!$A$2:$F$168,2,FALSE),"") ->  | F60: 4316548 | G60: SEC ASS 17/400 AC SAT | H60: 515 | I60: PCE | J60: 4501019713 | K60: 1 | L60: =IF(B60="","",VLOOKUP(B60,'[6]Liste 2'!A$1:F76,5,FALSE)) -> 
A61: 72924 | C61: =IF($B61<>"",VLOOKUP($B61,'[5]Liste 2'!$A$2:$F$168,2,FALSE),"") ->  | F61: 4106514 | G61: SEC ASS 15/400 AC SAT | H61: 989 | I61: PCE | J61: 4501017337 | K61: 3 | L61: =IF(B61="","",VLOOKUP(B61,'[6]Liste 2'!A$1:F77,5,FALSE)) -> 
A62: 72919 | C62: =IF($B62<>"",VLOOKUP($B62,'[5]Liste 2'!$A$2:$F$168,2,FALSE),"") ->  | F62: 4078326 | G62: SEC ASS 15/423 AC TERM | H62: 1029 | I62: PCE | J62: 4501017337 | K62: 2 | L62: =IF(B62="","",VLOOKUP(B62,'[6]Liste 2'!A$1:F78,5,FALSE)) -> 
A63: 72978 | C63: =IF($B63<>"",VLOOKUP($B63,'[5]Liste 2'!$A$2:$F$168,2,FALSE),"") ->  | F63: 4240028 | G63: CVE ASS PLQ 15/423 RL18J TERM | H63: 248 | I63: PCE | J63: 4501019742 | K63: 3 | L63: =IF(B63="","",VLOOKUP(B63,'[6]Liste 2'!A$1:F79,5,FALSE)) -> 
A64: 72949 | C64: =IF($B64<>"",VLOOKUP($B64,'[5]Liste 2'!$A$2:$F$168,2,FALSE),"") ->  | F64: 4307740 | G64: SEC ASS 12/313 RL18J TERM | H64: 311 | I64: PCE | J64: 4501018065 | K64: 2 | L64: =IF(B64="","",VLOOKUP(B64,'[6]Liste 2'!A$1:F80,5,FALSE)) -> 
A65: 72981 | C65: =IF($B65<>"",VLOOKUP($B65,'[5]Liste 2'!$A$2:$F$168,2,FALSE),"") ->  | F65: 4012687 | G65: SEC 15/313 AC904L TERM SPLE | H65: 1000 | I65: PCE | J65: 4501020007 | K65: 1 | L65: =IF(B65="","",VLOOKUP(B65,'[6]Liste 2'!A$1:F81,5,FALSE)) -> 
A66: 72979 | B66: 32748 | C66: =IF($B66<>"",VLOOKUP($B66,'[5]Liste 2'!$A$2:$F$168,2,FALSE),"") -> 4328246 | F66: 4328247 | G66: CVE 15/313 AC904L SAT | H66: 250 | I66: PCE | J66: 4501019752 | K66: 2 | L66: =IF(B66="","",VLOOKUP(B66,'[6]Liste 2'!A$1:F82,5,FALSE)) -> 
A67: 72976 | C67: =IF($B67<>"",VLOOKUP($B67,'[5]Liste 2'!$A$2:$F$168,2,FALSE),"") ->  | F67: 4106514 | G67: SEC ASS 15/400 AC SAT | H67: 1000 | I67: PCE | J67: 4501019711 | K67: 3 | L67: =IF(B67="","",VLOOKUP(B67,'[6]Liste 2'!A$1:F83,5,FALSE)) -> 
A68: 72977 | C68: =IF($B68<>"",VLOOKUP($B68,'[5]Liste 2'!$A$2:$F$168,2,FALSE),"") ->  | F68: 4240028 | G68: CVE ASS PLQ 15/423 RL18J TERM | H68: 248 | I68: PCE | J68: 4501019742 | K68: 2 | L68: =IF(B68="","",VLOOKUP(B68,'[6]Liste 2'!A$1:F84,5,FALSE)) -> 
A69: 72974 | C69: =IF($B69<>"",VLOOKUP($B69,'[5]Liste 2'!$A$2:$F$168,2,FALSE),"") ->  | F69: 4323350 | G69: CVE ASS EBL 15/313 AC TERM | H69: 1000 | I69: PCE | J69: 4501019689 | K69: 2 | L69: =IF(B69="","",VLOOKUP(B69,'[6]Liste 2'!A$1:F85,5,FALSE)) -> 
A70: 72975 | C70: =IF($B70<>"",VLOOKUP($B70,'[5]Liste 2'!$A$2:$F$168,2,FALSE),"") ->  | F70: 4308203 | G70: CVE ASS 12/313 RL18R-410 TERM | H70: 492 | I70: PCE | J70: 4501019690 | K70: 1 | L70: =IF(B70="","",VLOOKUP(B70,'[6]Liste 2'!A$1:F86,5,FALSE)) -> 
A71: 72980 | C71: =IF($B71<>"",VLOOKUP($B71,'[5]Liste 2'!$A$2:$F$168,2,FALSE),"") ->  | F71: 4180304 | G71: CVE 15/423 AC904L SAT | H71: 400 | I71: PCE | J71: 4501019767 | K71: 2 | L71: =IF(B71="","",VLOOKUP(B71,'[6]Liste 2'!A$1:F87,5,FALSE)) -> 
A72: 73014 | C72: =IF($B72<>"",VLOOKUP($B72,'[5]Liste 2'!$A$2:$F$168,2,FALSE),"") ->  | F72: 4326332 | G72: ALL FER 97220 17 AC SAT MONO | H72: 880 | I72: PCE | J72: 4501020947 | K72: 1 | L72: =IF(B72="","",VLOOKUP(B72,'[6]Liste 2'!A$1:F88,5,FALSE)) -> 
A73: 73034 | C73: =IF($B73<>"",VLOOKUP($B73,'[5]Liste 2'!$A$2:$F$168,2,FALSE),"") ->  | F73: 4090256 | G73: SEC 15/313A AC904L TERM SPLE | H73: 516 | I73: PCE | J73: 4501021399 | K73: 2 | L73: =IF(B73="","",VLOOKUP(B73,'[6]Liste 2'!A$1:F89,5,FALSE)) -> 
A74: 72985 | C74: =IF($B74<>"",VLOOKUP($B74,'[5]Liste 2'!$A$2:$F$168,2,FALSE),"") ->  | F74: 4328247 | G74: CVE 15/313 AC904L SAT | H74: 500 | I74: PCE | J74: 4501019752 | K74: 3 | L74: =IF(B74="","",VLOOKUP(B74,'[6]Liste 2'!A$1:F90,5,FALSE)) -> 
A75: 72982 | C75: =IF($B75<>"",VLOOKUP($B75,'[5]Liste 2'!$A$2:$F$168,2,FALSE),"") ->  | F75: 4307731 | G75: CVE ASS 12/313 RL18J TERM | H75: 652 | I75: PCE | J75: 4501019690 | K75: 2 | L75: =IF(B75="","",VLOOKUP(B75,'[6]Liste 2'!A$1:F91,5,FALSE)) -> 
A76: 72984 | C76: =IF($B76<>"",VLOOKUP($B76,'[5]Liste 2'!$A$2:$F$168,2,FALSE),"") ->  | F76: 4297560 | G76: CVE ASS PLQ 15/423 RL18R-410 TERM | H76: 312 | I76: PCE | J76: 4501019742 | K76: 4 | L76: =IF(B76="","",VLOOKUP(B76,'[6]Liste 2'!A$1:F92,5,FALSE)) -> 
A77: 72986 | C77: =IF($B77<>"",VLOOKUP($B77,'[5]Liste 2'!$A$2:$F$168,2,FALSE),"") ->  | F77: 4210872 | G77: CVE 15/443 AC904L SAT | H77: 500 | I77: PCE | J77: 4501019767 | K77: 3 | L77: =IF(B77="","",VLOOKUP(B77,'[6]Liste 2'!A$1:F93,5,FALSE)) -> 
A78: 72987 | C78: =IF($B78<>"",VLOOKUP($B78,'[5]Liste 2'!$A$2:$F$168,2,FALSE),"") ->  | F78: 4012687 | G78: SEC 15/313 AC904L TERM SPLE | H78: 1107 | I78: PCE | J78: 4501020007 | K78: 2 | L78: =IF(B78="","",VLOOKUP(B78,'[6]Liste 2'!A$1:F94,5,FALSE)) -> 
A79: 72983 | C79: =IF($B79<>"",VLOOKUP($B79,'[5]Liste 2'!$A$2:$F$168,2,FALSE),"") ->  | F79: 4106514 | G79: SEC ASS 15/400 AC SAT | H79: 1333 | I79: PCE | J79: 4501019711 | K79: 4 | L79: =IF(B79="","",VLOOKUP(B79,'[6]Liste 2'!A$1:F95,5,FALSE)) -> 
A80: 73038 | C80: =IF($B80<>"",VLOOKUP($B80,'[5]Liste 2'!$A$2:$F$168,2,FALSE),"") ->  | F80: 4090256 | G80: SEC 15/313A AC904L TERM SPLE | H80: 518 | I80: PCE | J80: 4501021399 | K80: 3 | L80: =IF(B80="","",VLOOKUP(B80,'[6]Liste 2'!A$1:F96,5,FALSE)) -> 
A81: 73037 | C81: =IF($B81<>"",VLOOKUP($B81,'[5]Liste 2'!$A$2:$F$168,2,FALSE),"") ->  | F81: 4090256 | G81: SEC 15/313A AC904L TERM SPLE | H81: 516 | I81: PCE | J81: 4501021399 | K81: 1 | L81: =IF(B81="","",VLOOKUP(B81,'[6]Liste 2'!A$1:F97,5,FALSE)) -> 
A82: 73036 | C82: =IF($B82<>"",VLOOKUP($B82,'[5]Liste 2'!$A$2:$F$168,2,FALSE),"") ->  | F82: 4012687 | G82: SEC 15/313 AC904L TERM SPLE | H82: 569 | I82: PCE | J82: 4501021398 | K82: 1 | L82: =IF(B82="","",VLOOKUP(B82,'[6]Liste 2'!A$1:F98,5,FALSE)) -> 
A83: 73035 | C83: =IF($B83<>"",VLOOKUP($B83,'[5]Liste 2'!$A$2:$F$168,2,FALSE),"") ->  | F83: 4306985 | G83: CVE ASS 15/313 RL18J TERM | H83: 541 | I83: PCE | J83: 4501021380 | K83: 1 | L83: =IF(B83="","",VLOOKUP(B83,'[6]Liste 2'!A$1:F99,5,FALSE)) -> 
A84: 72962 | C84: =IF($B84<>"",VLOOKUP($B84,'[5]Liste 2'!$A$2:$F$168,2,FALSE),"") ->  | F84: 4307947 | G84: SEC ASS 15/313 RL18R-410 TERM | H84: 261 | I84: PCE | J84: 4501019697 | K84: 1 | L84: =IF(B84="","",VLOOKUP(B84,'[6]Liste 2'!A$1:F100,5,FALSE)) -> 
A85: 73018 | C85: =IF($B85<>"",VLOOKUP($B85,'[5]Liste 2'!$A$2:$F$168,2,FALSE),"") ->  | F85: 4077848 | G85: SEC ASS 15/400 RL18J TERM | H85: 785 | I85: PCE | J85: 4501021424 | K85: 3 | L85: =IF(B85="","",VLOOKUP(B85,'[6]Liste 2'!A$1:F101,5,FALSE)) -> 
A86: 73039 | C86: =IF($B86<>"",VLOOKUP($B86,'[5]Liste 2'!$A$2:$F$168,2,FALSE),"") ->  | F86: 4306985 | G86: CVE ASS 15/313 RL18J TERM | H86: 1000 | I86: PCE | J86: 4501021380 | K86: 2 | L86: =IF(B86="","",VLOOKUP(B86,'[6]Liste 2'!A$1:F102,5,FALSE)) -> 
A87: 73019 | C87: =IF($B87<>"",VLOOKUP($B87,'[5]Liste 2'!$A$2:$F$168,2,FALSE),"") ->  | F87: 4301404 | G87: SEC ASS 14/400 RL18R-410 TERM | H87: 310 | I87: PCE | J87: 4501021426 | K87: 1 | L87: =IF(B87="","",VLOOKUP(B87,'[6]Liste 2'!A$1:F103,5,FALSE)) -> 
A88: 72988 | C88: =IF($B88<>"",VLOOKUP($B88,'[5]Liste 2'!$A$2:$F$168,2,FALSE),"") ->  | F88: 4328247 | G88: CVE 15/313 AC904L SAT | H88: 250 | I88: PCE | J88: 4501019752 | K88: 4 | L88: =IF(B88="","",VLOOKUP(B88,'[6]Liste 2'!A$1:F104,5,FALSE)) -> 
A89: 73044 | C89: =IF($B89<>"",VLOOKUP($B89,'[5]Liste 2'!$A$2:$F$168,2,FALSE),"") ->  | F89: 4180304 | G89: CVE 15/423 AC904L SAT | H89: 400 | I89: PCE | J89: 4501021435 | K89: 3 | L89: =IF(B89="","",VLOOKUP(B89,'[6]Liste 2'!A$1:F105,5,FALSE)) -> 
A90: 73041 | C90: =IF($B90<>"",VLOOKUP($B90,'[5]Liste 2'!$A$2:$F$168,2,FALSE),"") ->  | F90: 4012687 | G90: SEC 15/313 AC904L TERM SPLE | H90: 1150 | I90: PCE | J90: 4501021398 | K90: 2 | L90: =IF(B90="","",VLOOKUP(B90,'[6]Liste 2'!A$1:F106,5,FALSE)) -> 
A91: 73040 | C91: =IF($B91<>"",VLOOKUP($B91,'[5]Liste 2'!$A$2:$F$168,2,FALSE),"") ->  | F91: 4307731 | G91: CVE ASS 12/313 RL18J TERM | H91: 400 | I91: PCE | J91: 4501021380 | K91: 4 | L91: =IF(B91="","",VLOOKUP(B91,'[6]Liste 2'!A$1:F107,5,FALSE)) -> 
A92: 73043 | C92: =IF($B92<>"",VLOOKUP($B92,'[5]Liste 2'!$A$2:$F$168,2,FALSE),"") ->  | F92: 4185813 | G92: CVE ASS PLQ 15/443 RL18J TERM | H92: 597 | I92: PCE | J92: 4501021433 | K92: 1 | L92: =IF(B92="","",VLOOKUP(B92,'[6]Liste 2'!A$1:F108,5,FALSE)) -> 
A93: 73075 | C93: =IF($B93<>"",VLOOKUP($B93,'[5]Liste 2'!$A$2:$F$168,2,FALSE),"") ->  | F93: 4326332 | G93: ALL FER 97220 17 AC SAT MONO | H93: 900 | I93: PCE | J93: 4501022259 | K93: 1 | L93: =IF(B93="","",VLOOKUP(B93,'[6]Liste 2'!A$1:F109,5,FALSE)) -> 
A94: 72989 | C94: =IF($B94<>"",VLOOKUP($B94,'[5]Liste 2'!$A$2:$F$168,2,FALSE),"") ->  | F94: 4328247 | G94: CVE 15/313 AC904L SAT | H94: 258 | I94: PCE | J94: 4501019752 | K94: 5 | L94: =IF(B94="","",VLOOKUP(B94,'[6]Liste 2'!A$1:F110,5,FALSE)) -> 
A95: 73045 | C95: =IF($B95<>"",VLOOKUP($B95,'[5]Liste 2'!$A$2:$F$168,2,FALSE),"") ->  | F95: 4307954 | G95: CVE ASS 15/313 RL18R-410 TERM | H95: 1000 | I95: PCE | J95: 4501021380 | K95: 5 | L95: =IF(B95="","",VLOOKUP(B95,'[6]Liste 2'!A$1:F111,5,FALSE)) -> 
A96: 73046 | C96: =IF($B96<>"",VLOOKUP($B96,'[5]Liste 2'!$A$2:$F$168,2,FALSE),"") ->  | F96: 4012687 | G96: SEC 15/313 AC904L TERM SPLE | H96: 1150 | I96: PCE | J96: 4501021398 | K96: 3 | L96: =IF(B96="","",VLOOKUP(B96,'[6]Liste 2'!A$1:F112,5,FALSE)) -> 
A97: 73049 | C97: =IF($B97<>"",VLOOKUP($B97,'[5]Liste 2'!$A$2:$F$168,2,FALSE),"") ->  | F97: 4297560 | G97: CVE ASS PLQ 15/423 RL18R-410 TERM | H97: 227 | I97: PCE | J97: 4501021433 | K97: 2 | L97: =IF(B97="","",VLOOKUP(B97,'[6]Liste 2'!A$1:F113,5,FALSE)) -> 
A98: 73048 | C98: =IF($B98<>"",VLOOKUP($B98,'[5]Liste 2'!$A$2:$F$168,2,FALSE),"") ->  | F98: 4078326 | G98: SEC ASS 15/423 AC TERM | H98: 779 | I98: PCE | J98: 4501021427 | K98: 1 | L98: =IF(B98="","",VLOOKUP(B98,'[6]Liste 2'!A$1:F114,5,FALSE)) -> 
A99: 73047 | C99: =IF($B99<>"",VLOOKUP($B99,'[5]Liste 2'!$A$2:$F$168,2,FALSE),"") ->  | F99: 4090256 | G99: SEC 15/313A AC904L TERM SPLE | H99: 516 | I99: PCE | J99: 4501021399 | K99: 5 | L99: =IF(B99="","",VLOOKUP(B99,'[6]Liste 2'!A$1:F115,5,FALSE)) -> 
A100: 73042 | B100: 32403 | C100: =IF($B100<>"",VLOOKUP($B100,'[5]Liste 2'!$A$2:$F$168,2,FALSE),"") -> 4012688 | F100: 4090256 | G100: SEC 15/313A AC904L TERM SPLE | H100: 516 | I100: PCE | J100: 4501021399 | K100: 4 | L100: =IF(B100="","",VLOOKUP(B100,'[6]Liste 2'!A$1:F116,5,FALSE)) -> 
A101: 72990 | C101: =IF($B101<>"",VLOOKUP($B101,'[5]Liste 2'!$A$2:$F$168,2,FALSE),"") ->  | F101: 4307947 | G101: SEC ASS 15/313 RL18R-410 TERM | H101: 523 | I101: PCE | J101: 4501019699 | K101: 1 | L101: =IF(B101="","",VLOOKUP(B101,'[6]Liste 2'!A$1:F117,5,FALSE)) -> 
A102: 73052 | C102: =IF($B102<>"",VLOOKUP($B102,'[5]Liste 2'!$A$2:$F$168,2,FALSE),"") ->  | F102: 4012687 | G102: SEC 15/313 AC904L TERM SPLE | H102: 1150 | I102: PCE | J102: 4501021398 | K102: 4 | L102: =IF(B102="","",VLOOKUP(B102,'[6]Liste 2'!A$1:F118,5,FALSE)) -> 
A103: 73050 | C103: =IF($B103<>"",VLOOKUP($B103,'[5]Liste 2'!$A$2:$F$168,2,FALSE),"") ->  | F103: 4307954 | G103: CVE ASS 15/313 RL18R-410 TERM | H103: 742 | I103: PCE | J103: 4501021380 | K103: 6 | L103: =IF(B103="","",VLOOKUP(B103,'[6]Liste 2'!A$1:F119,5,FALSE)) -> 
A104: 73057 | C104: =IF($B104<>"",VLOOKUP($B104,'[5]Liste 2'!$A$2:$F$168,2,FALSE),"") ->  | F104: 4328247 | G104: CVE 15/313 AC904L SAT | H104: 496 | I104: PCE | J104: 4501021435 | K104: 1 | L104: =IF(B104="","",VLOOKUP(B104,'[6]Liste 2'!A$1:F120,5,FALSE)) -> 
A105: 73056 | C105: =IF($B105<>"",VLOOKUP($B105,'[5]Liste 2'!$A$2:$F$168,2,FALSE),"") ->  | F105: 4301396 | G105: CVE ASS PLQ 14/423 RL18R-410 TERM | H105: 496 | I105: PCE | J105: 4501021433 | K105: 3 | L105: =IF(B105="","",VLOOKUP(B105,'[6]Liste 2'!A$1:F121,5,FALSE)) -> 
A106: 73055 | C106: =IF($B106<>"",VLOOKUP($B106,'[5]Liste 2'!$A$2:$F$168,2,FALSE),"") ->  | F106: 4106514 | G106: SEC ASS 15/400 AC SAT | H106: 893 | I106: PCE | J106: 4501021427 | K106: 3 | L106: =IF(B106="","",VLOOKUP(B106,'[6]Liste 2'!A$1:F122,5,FALSE)) -> 
A107: 73053 | C107: =IF($B107<>"",VLOOKUP($B107,'[5]Liste 2'!$A$2:$F$168,2,FALSE),"") ->  | F107: 4090256 | G107: SEC 15/313A AC904L TERM SPLE | H107: 518 | I107: PCE | J107: 4501021399 | K107: 6 | L107: =IF(B107="","",VLOOKUP(B107,'[6]Liste 2'!A$1:F123,5,FALSE)) -> 
A108: 73051 | C108: =IF($B108<>"",VLOOKUP($B108,'[5]Liste 2'!$A$2:$F$168,2,FALSE),"") ->  | F108: 4307954 | G108: CVE ASS 15/313 RL18R-410 TERM | H108: 478 | I108: PCE | J108: 4501021380 | K108: 9 | L108: =IF(B108="","",VLOOKUP(B108,'[6]Liste 2'!A$1:F124,5,FALSE)) -> 
A109: 73054 | C109: =IF($B109<>"",VLOOKUP($B109,'[5]Liste 2'!$A$2:$F$168,2,FALSE),"") ->  | F109: 4106514 | G109: SEC ASS 15/400 AC SAT | H109: 1000 | I109: PCE | J109: 4501021427 | K109: 2 | L109: =IF(B109="","",VLOOKUP(B109,'[6]Liste 2'!A$1:F125,5,FALSE)) -> 
A110: 73020 | C110: =IF($B110<>"",VLOOKUP($B110,'[5]Liste 2'!$A$2:$F$168,2,FALSE),"") ->  | F110: 4308208 | G110: SEC ASS 12/313 RL18R-410 TERM | H110: 203 | I110: PCE | J110: 4501021424 | K110: 1 | L110: =IF(B110="","",VLOOKUP(B110,'[6]Liste 2'!A$1:F126,5,FALSE)) -> 
A111: 73021 | C111: =IF($B111<>"",VLOOKUP($B111,'[5]Liste 2'!$A$2:$F$168,2,FALSE),"") ->  | F111: 4297567 | G111: SEC ASS 15/400 RL18R-410 TERM | H111: 151 | I111: PCE | J111: 4501021424 | K111: 4 | L111: =IF(B111="","",VLOOKUP(B111,'[6]Liste 2'!A$1:F127,5,FALSE)) -> 
A112: 73022 | C112: =IF($B112<>"",VLOOKUP($B112,'[5]Liste 2'!$A$2:$F$168,2,FALSE),"") ->  | F112: 4316548 | G112: SEC ASS 17/400 AC SAT | H112: 519 | I112: PCE | J112: 4501021431 | K112: 1 | L112: =IF(B112="","",VLOOKUP(B112,'[6]Liste 2'!A$1:F128,5,FALSE)) -> 
A113: 73060 | C113: =IF($B113<>"",VLOOKUP($B113,'[5]Liste 2'!$A$2:$F$168,2,FALSE),"") ->  | F113: 4311465 | G113: CVE ASS 15/313 RL18R-65 TERM | H113: 200 | I113: PCE | J113: 4501021380 | K113: 8 | L113: =IF(B113="","",VLOOKUP(B113,'[6]Liste 2'!A$1:F129,5,FALSE)) -> 
A114: 73063 | C114: =IF($B114<>"",VLOOKUP($B114,'[5]Liste 2'!$A$2:$F$168,2,FALSE),"") ->  | F114: 4302466 | G114: SEC ASS 14/400 AC904L TERM | H114: 159 | I114: PCE | J114: 4501021427 | K114: 4 | L114: =IF(B114="","",VLOOKUP(B114,'[6]Liste 2'!A$1:F130,5,FALSE)) -> 
A115: 73064 | C115: =IF($B115<>"",VLOOKUP($B115,'[5]Liste 2'!$A$2:$F$168,2,FALSE),"") ->  | F115: 4100349 | G115: CVE 11/313A AC904L TERM | H115: 241 | I115: PCE | J115: 4501021435 | K115: 2 | L115: =IF(B115="","",VLOOKUP(B115,'[6]Liste 2'!A$1:F131,5,FALSE)) -> 
A116: 73059 | C116: =IF($B116<>"",VLOOKUP($B116,'[5]Liste 2'!$A$2:$F$168,2,FALSE),"") ->  | F116: 4308203 | G116: CVE ASS 12/313 RL18R-410 TERM | H116: 248 | I116: PCE | J116: 4501021380 | K116: 7 | L116: =IF(B116="","",VLOOKUP(B116,'[6]Liste 2'!A$1:F132,5,FALSE)) -> 
A117: 73058 | C117: =IF($B117<>"",VLOOKUP($B117,'[5]Liste 2'!$A$2:$F$168,2,FALSE),"") ->  | F117: 4306985 | G117: CVE ASS 15/313 RL18J TERM | H117: 841 | I117: PCE | J117: 4501021380 | K117: 3 | L117: =IF(B117="","",VLOOKUP(B117,'[6]Liste 2'!A$1:F133,5,FALSE)) -> 
A118: 73061 | C118: =IF($B118<>"",VLOOKUP($B118,'[5]Liste 2'!$A$2:$F$168,2,FALSE),"") ->  | F118: 4012687 | G118: SEC 15/313 AC904L TERM SPLE | H118: 1150 | I118: PCE | J118: 4501021398 | K118: 5 | L118: =IF(B118="","",VLOOKUP(B118,'[6]Liste 2'!A$1:F134,5,FALSE)) -> 
A119: 73062 | C119: =IF($B119<>"",VLOOKUP($B119,'[5]Liste 2'!$A$2:$F$168,2,FALSE),"") ->  | F119: 4090256 | G119: SEC 15/313A AC904L TERM SPLE | H119: 516 | I119: PCE | J119: 4501021399 | K119: 1 | L119: =IF(B119="","",VLOOKUP(B119,'[6]Liste 2'!A$1:F135,5,FALSE)) -> 
A120: 73065 | C120: =IF($B120<>"",VLOOKUP($B120,'[5]Liste 2'!$A$2:$F$168,2,FALSE),"") ->  | F120: 4323350 | G120: CVE ASS EBL 15/313 AC TERM | H120: 1000 | I120: PCE | J120: 4501021384 | K120: 1 | L120: =IF(B120="","",VLOOKUP(B120,'[6]Liste 2'!A$1:F136,5,FALSE)) -> 
A121: 73066 | C121: =IF($B121<>"",VLOOKUP($B121,'[5]Liste 2'!$A$2:$F$168,2,FALSE),"") ->  | F121: 4012687 | G121: SEC 15/313 AC904L TERM SPLE | H121: 1150 | I121: PCE | J121: 4501021398 | K121: 6 | L121: =IF(B121="","",VLOOKUP(B121,'[6]Liste 2'!A$1:F137,5,FALSE)) -> 
A122: 73067 | C122: =IF($B122<>"",VLOOKUP($B122,'[5]Liste 2'!$A$2:$F$168,2,FALSE),"") ->  | F122: 4090256 | G122: SEC 15/313A AC904L TERM SPLE | H122: 516 | I122: PCE | J122: 4501021399 | K122: 8 | L122: =IF(B122="","",VLOOKUP(B122,'[6]Liste 2'!A$1:F138,5,FALSE)) -> 
A123: 73068 | C123: =IF($B123<>"",VLOOKUP($B123,'[5]Liste 2'!$A$2:$F$168,2,FALSE),"") ->  | F123: 4323350 | G123: CVE ASS EBL 15/313 AC TERM | H123: 1000 | I123: PCE | J123: 4501021384 | K123: 2 | L123: =IF(B123="","",VLOOKUP(B123,'[6]Liste 2'!A$1:F139,5,FALSE)) -> 
A124: 73071 | C124: =IF($B124<>"",VLOOKUP($B124,'[5]Liste 2'!$A$2:$F$168,2,FALSE),"") ->  | F124: 4090256 | G124: SEC 15/313A AC904L TERM SPLE | H124: 518 | I124: PCE | J124: 4501021399 | K124: 9 | L124: =IF(B124="","",VLOOKUP(B124,'[6]Liste 2'!A$1:F140,5,FALSE)) -> 
A125: 73069 | C125: =IF($B125<>"",VLOOKUP($B125,'[5]Liste 2'!$A$2:$F$168,2,FALSE),"") ->  | F125: 4323350 | G125: CVE ASS EBL 15/313 AC TERM | H125: 518 | I125: PCE | J125: 4501021384 | K125: 5 | L125: =IF(B125="","",VLOOKUP(B125,'[6]Liste 2'!A$1:F141,5,FALSE)) -> 
A126: 73070 | C126: =IF($B126<>"",VLOOKUP($B126,'[5]Liste 2'!$A$2:$F$168,2,FALSE),"") ->  | F126: 4012687 | G126: SEC 15/313 AC904L TERM SPLE | H126: 1150 | I126: PCE | J126: 4501021398 | K126: 7 | L126: =IF(B126="","",VLOOKUP(B126,'[6]Liste 2'!A$1:F142,5,FALSE)) -> 
A127: 73023 | C127: =IF($B127<>"",VLOOKUP($B127,'[5]Liste 2'!$A$2:$F$168,2,FALSE),"") ->  | F127: 4326035 | G127: CVE ASS 12/313 AC904L TERM | H127: 483 | I127: PCE | J127: 4501021386 | K127: 1 | L127: =IF(B127="","",VLOOKUP(B127,'[6]Liste 2'!A$1:F143,5,FALSE)) -> 
A128: 73072 | B128: 32750 | C128: =IF($B128<>"",VLOOKUP($B128,'[5]Liste 2'!$A$2:$F$168,2,FALSE),"") -> 4323351 | F128: 4323350 | G128: CVE ASS EBL 15/313 AC TERM | H128: 1000 | I128: PCE | J128: 4501021384 | K128: 3 | L128: =IF(B128="","",VLOOKUP(B128,'[6]Liste 2'!A$1:F144,5,FALSE)) -> CVE-300-POL
A129: 73073 | B129: 32750 | C129: =IF($B129<>"",VLOOKUP($B129,'[5]Liste 2'!$A$2:$F$168,2,FALSE),"") -> 4323351 | F129: 4323350 | G129: CVE ASS EBL 15/313 AC TERM | H129: 1000 | I129: PCE | J129: 4501021384 | K129: 4 | L129: =IF(B129="","",VLOOKUP(B129,'[6]Liste 2'!A$1:F145,5,FALSE)) -> CVE-300-POL
A130: 73074 | B130: 32305 | C130: =IF($B130<>"",VLOOKUP($B130,'[5]Liste 2'!$A$2:$F$168,2,FALSE),"") -> 4012688 | F130: 4012687 | G130: SEC 15/313 AC904L TERM SPLE | H130: 1150 | I130: PCE | J130: 4501021398 | K130: 8 | L130: =IF(B130="","",VLOOKUP(B130,'[6]Liste 2'!A$1:F146,5,FALSE)) -> SEC-300-POL
A131: 71825 | C131: =IF($B131<>"",VLOOKUP($B131,'[5]Liste 2'!$A$2:$F$168,2,FALSE),"") ->  | F131: 4326332 | G131: ALL FER 97220 17 AC SAT MONO | H131: 50 | I131: PCE | J131: 4500986748 | K131: 1 | L131: =IF(B131="","",VLOOKUP(B131,'[6]Liste 2'!A$1:F147,5,FALSE)) -> 
A132: 70717 | C132: =IF($B132<>"",VLOOKUP($B132,'[5]Liste 2'!$A$2:$F$168,2,FALSE),"") ->  | F132: 4307954 | G132: CVE ASS 15/313 RL18R-410 TERM | H132: 2 | I132: PCE | J132: 4500959780 | K132: 1 | L132: =IF(B132="","",VLOOKUP(B132,'[6]Liste 2'!A$1:F148,5,FALSE)) -> 
C133: =IF($B133<>"",VLOOKUP($B133,'[5]Liste 2'!$A$2:$F$168,2,FALSE),"") ->  | F133: =IF($B133<>"",VLOOKUP($B133,'[5]Liste 2'!$A$2:$F$168,3,FALSE),"") ->  | G133: =IF($B133<>"",VLOOKUP($B133,'[5]Liste 2'!$A$2:$F$168,4,FALSE),"") ->  | L133: =IF(B133="","",VLOOKUP(B133,'[6]Liste 2'!A$1:F149,5,FALSE)) -> 
C134: =IF($B134<>"",VLOOKUP($B134,'[5]Liste 2'!$A$2:$F$168,2,FALSE),"") ->  | F134: =IF($B134<>"",VLOOKUP($B134,'[5]Liste 2'!$A$2:$F$168,3,FALSE),"") ->  | G134: =IF($B134<>"",VLOOKUP($B134,'[5]Liste 2'!$A$2:$F$168,4,FALSE),"") ->  | I134: PCE | L134: =IF(B134="","",VLOOKUP(B134,'[6]Liste 2'!A$1:F150,5,FALSE)) -> 
A135: 73092 | C135: =IF($B135<>"",VLOOKUP($B135,'[5]Liste 2'!$A$2:$F$168,2,FALSE),"") ->  | F135: =IF($B135<>"",VLOOKUP($B135,'[5]Liste 2'!$A$2:$F$168,3,FALSE),"") ->  | G135: =IF($B135<>"",VLOOKUP($B135,'[5]Liste 2'!$A$2:$F$168,4,FALSE),"") ->  | I135: PCE | L135: =IF(B135="","",VLOOKUP(B135,'[6]Liste 2'!A$1:F151,5,FALSE)) -> 
C136: =IF($B136<>"",VLOOKUP($B136,'[5]Liste 2'!$A$2:$F$168,2,FALSE),"") ->  | F136: =IF($B136<>"",VLOOKUP($B136,'[5]Liste 2'!$A$2:$F$168,3,FALSE),"") ->  | G136: =IF($B136<>"",VLOOKUP($B136,'[5]Liste 2'!$A$2:$F$168,4,FALSE),"") ->  | I136: PCE | L136: =IF(B136="","",VLOOKUP(B136,'[6]Liste 2'!A$1:F152,5,FALSE)) -> 
A137: 1 | B137: 32748 | C137: =IF($B137<>"",VLOOKUP($B137,'[5]Liste 2'!$A$2:$F$168,2,FALSE),"") -> 4328246 | F137: =IF($B137<>"",VLOOKUP($B137,'[5]Liste 2'!$A$2:$F$168,3,FALSE),"") -> 4328247 | G137: =IF($B137<>"",VLOOKUP($B137,'[5]Liste 2'!$A$2:$F$168,4,FALSE),"") -> CVE 15/313 AC904L SAT | H137: 763 | I137: PCE | J137: 4501022808 | K137: 4 | L137: =IF(B137="","",VLOOKUP(B137,'[6]Liste 2'!A$1:F153,5,FALSE)) -> CVE-300-SAT
A138: 73093 | B138: 32726 | C138: =IF($B138<>"",VLOOKUP($B138,'[5]Liste 2'!$A$2:$F$168,2,FALSE),"") -> 4307948 | F138: =IF($B138<>"",VLOOKUP($B138,'[5]Liste 2'!$A$2:$F$168,3,FALSE),"") -> 4307947 | G138: =IF($B138<>"",VLOOKUP($B138,'[5]Liste 2'!$A$2:$F$168,4,FALSE),"") -> SEC ASS 15/313 RL18R-410 TERM | H138: 263 | I138: PCE | J138: 4501022816 | K138: 2 | L138: =IF(B138="","",VLOOKUP(B138,'[6]Liste 2'!A$1:F154,5,FALSE)) -> SEC-300-POL
A139: 73098 | B139: 32363 | C139: =IF($B139<>"",VLOOKUP($B139,'[5]Liste 2'!$A$2:$F$168,2,FALSE),"") -> 4031705 | F139: =IF($B139<>"",VLOOKUP($B139,'[5]Liste 2'!$A$2:$F$168,3,FALSE),"") -> 4011978 | G139: =IF($B139<>"",VLOOKUP($B139,'[5]Liste 2'!$A$2:$F$168,4,FALSE),"") -> SEC 13/313 AC904L TERM | H139: 500 | I139: PCE | J139: 4501022808 | K139: 3 | L139: =IF(B139="","",VLOOKUP(B139,'[6]Liste 2'!A$1:F155,5,FALSE)) -> SEC-300-POL
A140: 73097 | B140: 32403 | C140: =IF($B140<>"",VLOOKUP($B140,'[5]Liste 2'!$A$2:$F$168,2,FALSE),"") -> 4012688 | F140: =IF($B140<>"",VLOOKUP($B140,'[5]Liste 2'!$A$2:$F$168,3,FALSE),"") -> 4090256 | G140: =IF($B140<>"",VLOOKUP($B140,'[5]Liste 2'!$A$2:$F$168,4,FALSE),"") -> SEC 15/313A AC904L TERM SPLE | H140: 1493 | I140: PCE | J140: 4501022765 | K140: 2 | L140: =IF(B140="","",VLOOKUP(B140,'[6]Liste 2'!A$1:F156,5,FALSE)) -> SEC-300-SAT
A141: 73096 | B141: 32417 | C141: =IF($B141<>"",VLOOKUP($B141,'[5]Liste 2'!$A$2:$F$168,2,FALSE),"") -> 4031705 | F141: =IF($B141<>"",VLOOKUP($B141,'[5]Liste 2'!$A$2:$F$168,3,FALSE),"") -> 4091522 | G141: =IF($B141<>"",VLOOKUP($B141,'[5]Liste 2'!$A$2:$F$168,4,FALSE),"") -> SEC 13/313A AC904L TERM | H141: 135 | I141: PCE | J141: 4501022765 | K141: 1 | L141: =IF(B141="","",VLOOKUP(B141,'[6]Liste 2'!A$1:F157,5,FALSE)) -> SEC-300-SAT
A142: 73095 | B142: 32752 | C142: =IF($B142<>"",VLOOKUP($B142,'[5]Liste 2'!$A$2:$F$168,2,FALSE),"") -> 4326036 | F142: =IF($B142<>"",VLOOKUP($B142,'[5]Liste 2'!$A$2:$F$168,3,FALSE),"") -> 4326035 | G142: =IF($B142<>"",VLOOKUP($B142,'[5]Liste 2'!$A$2:$F$168,4,FALSE),"") -> CVE ASS 12/313 AC904L TERM | H142: 464 | I142: PCE | J142: 4501022726 | K142: 9 | L142: =IF(B142="","",VLOOKUP(B142,'[6]Liste 2'!A$1:F158,5,FALSE)) -> CVE-300-POL
A143: 73094 | B143: 32750 | C143: =IF($B143<>"",VLOOKUP($B143,'[5]Liste 2'!$A$2:$F$168,2,FALSE),"") -> 4323351 | F143: =IF($B143<>"",VLOOKUP($B143,'[5]Liste 2'!$A$2:$F$168,3,FALSE),"") -> 4323350 | G143: =IF($B143<>"",VLOOKUP($B143,'[5]Liste 2'!$A$2:$F$168,4,FALSE),"") -> CVE ASS EBL 15/313 AC TERM | H143: 223 | I143: PCE | J143: 4501022726 | K143: 7 | L143: =IF(B143="","",VLOOKUP(B143,'[6]Liste 2'!A$1:F159,5,FALSE)) -> CVE-300-POL
A144: 73099 | B144: 32748 | C144: =IF($B144<>"",VLOOKUP($B144,'[5]Liste 2'!$A$2:$F$168,2,FALSE),"") -> 4328246 | F144: =IF($B144<>"",VLOOKUP($B144,'[5]Liste 2'!$A$2:$F$168,3,FALSE),"") -> 4328247 | G144: =IF($B144<>"",VLOOKUP($B144,'[5]Liste 2'!$A$2:$F$168,4,FALSE),"") -> CVE 15/313 AC904L SAT | H144: 947 | I144: PCE | J144: 4501022808 | K144: 5 | L144: =IF(B144="","",VLOOKUP(B144,'[6]Liste 2'!A$1:F160,5,FALSE)) -> CVE-300-SAT
A145: 73100 | B145: 32750 | C145: =IF($B145<>"",VLOOKUP($B145,'[5]Liste 2'!$A$2:$F$168,2,FALSE),"") -> 4323351 | F145: =IF($B145<>"",VLOOKUP($B145,'[5]Liste 2'!$A$2:$F$168,3,FALSE),"") -> 4323350 | G145: =IF($B145<>"",VLOOKUP($B145,'[5]Liste 2'!$A$2:$F$168,4,FALSE),"") -> CVE ASS EBL 15/313 AC TERM | H145: 1000 | I145: PCE | J145: 4501022726 | K145: 1 | L145: =IF(B145="","",VLOOKUP(B145,'[6]Liste 2'!A$1:F161,5,FALSE)) -> CVE-300-POL
A146: 73104 | B146: 32750 | C146: =IF($B146<>"",VLOOKUP($B146,'[5]Liste 2'!$A$2:$F$168,2,FALSE),"") -> 4323351 | F146: =IF($B146<>"",VLOOKUP($B146,'[5]Liste 2'!$A$2:$F$168,3,FALSE),"") -> 4323350 | G146: =IF($B146<>"",VLOOKUP($B146,'[5]Liste 2'!$A$2:$F$168,4,FALSE),"") -> CVE ASS EBL 15/313 AC TERM | H146: 463 | I146: PCE | J146: 4501022726 | K146: 3 | L146: =IF(B146="","",VLOOKUP(B146,'[6]Liste 2'!A$1:F162,5,FALSE)) -> CVE-300-POL
A147: 73103 | B147: 32750 | C147: =IF($B147<>"",VLOOKUP($B147,'[5]Liste 2'!$A$2:$F$168,2,FALSE),"") -> 4323351 | F147: =IF($B147<>"",VLOOKUP($B147,'[5]Liste 2'!$A$2:$F$168,3,FALSE),"") -> 4323350 | G147: =IF($B147<>"",VLOOKUP($B147,'[5]Liste 2'!$A$2:$F$168,4,FALSE),"") -> CVE ASS EBL 15/313 AC TERM | H147: 1000 | I147: PCE | J147: 4501022726 | K147: 2 | L147: =IF(B147="","",VLOOKUP(B147,'[6]Liste 2'!A$1:F163,5,FALSE)) -> CVE-300-POL
A148: 73101 | B148: 32754 | C148: =IF($B148<>"",VLOOKUP($B148,'[5]Liste 2'!$A$2:$F$168,2,FALSE),"") -> 4316549 | F148: =IF($B148<>"",VLOOKUP($B148,'[5]Liste 2'!$A$2:$F$168,3,FALSE),"") -> 4316548 | G148: =IF($B148<>"",VLOOKUP($B148,'[5]Liste 2'!$A$2:$F$168,4,FALSE),"") -> SEC ASS 17/400 AC SAT | I148: PCE | L148: =IF(B148="","",VLOOKUP(B148,'[6]Liste 2'!A$1:F164,5,FALSE)) -> SEC-400-SAT
A149: 73052 | B149: 32305 | C149: =IF($B149<>"",VLOOKUP($B149,'[5]Liste 2'!$A$2:$F$168,2,FALSE),"") -> 4012688 | F149: =IF($B149<>"",VLOOKUP($B149,'[5]Liste 2'!$A$2:$F$168,3,FALSE),"") -> 4012687 | G149: =IF($B149<>"",VLOOKUP($B149,'[5]Liste 2'!$A$2:$F$168,4,FALSE),"") -> SEC 15/313 AC904L TERM SPLE | H149: 1150 | I149: PCE | J149: 4501021398 | K149: 4 | L149: =IF(B149="","",VLOOKUP(B149,'[6]Liste 2'!A$1:F165,5,FALSE)) -> SEC-300-POL
A150: 73053 | B150: 32403 | C150: =IF($B150<>"",VLOOKUP($B150,'[5]Liste 2'!$A$2:$F$168,2,FALSE),"") -> 4012688 | F150: =IF($B150<>"",VLOOKUP($B150,'[5]Liste 2'!$A$2:$F$168,3,FALSE),"") -> 4090256 | G150: =IF($B150<>"",VLOOKUP($B150,'[5]Liste 2'!$A$2:$F$168,4,FALSE),"") -> SEC 15/313A AC904L TERM SPLE | H150: 518 | I150: PCE | J150: 4501021399 | K150: 6 | L150: =IF(B150="","",VLOOKUP(B150,'[6]Liste 2'!A$1:F166,5,FALSE)) -> SEC-300-SAT
A151: 73054 | B151: 32537 | C151: =IF($B151<>"",VLOOKUP($B151,'[5]Liste 2'!$A$2:$F$168,2,FALSE),"") -> 4106515 | F151: =IF($B151<>"",VLOOKUP($B151,'[5]Liste 2'!$A$2:$F$168,3,FALSE),"") -> 4106514 | G151: =IF($B151<>"",VLOOKUP($B151,'[5]Liste 2'!$A$2:$F$168,4,FALSE),"") -> SEC ASS 15/400 AC SAT | H151: 1000 | I151: PCE | J151: 4501021427 | K151: 2 | L151: =IF(B151="","",VLOOKUP(B151,'[6]Liste 2'!A$1:F167,5,FALSE)) -> SEC-400-SAT
A152: 73055 | B152: 32537 | C152: =IF($B152<>"",VLOOKUP($B152,'[5]Liste 2'!$A$2:$F$168,2,FALSE),"") -> 4106515 | F152: =IF($B152<>"",VLOOKUP($B152,'[5]Liste 2'!$A$2:$F$168,3,FALSE),"") -> 4106514 | G152: =IF($B152<>"",VLOOKUP($B152,'[5]Liste 2'!$A$2:$F$168,4,FALSE),"") -> SEC ASS 15/400 AC SAT | H152: 893 | I152: PCE | J152: 4501021427 | K152: 3 | L152: =IF(B152="","",VLOOKUP(B152,'[6]Liste 2'!A$1:F168,5,FALSE)) -> SEC-400-SAT
A153: 73056 | B153: 32742 | C153: =IF($B153<>"",VLOOKUP($B153,'[5]Liste 2'!$A$2:$F$168,2,FALSE),"") -> 4301397 | F153: =IF($B153<>"",VLOOKUP($B153,'[5]Liste 2'!$A$2:$F$168,3,FALSE),"") -> 4301396 | G153: =IF($B153<>"",VLOOKUP($B153,'[5]Liste 2'!$A$2:$F$168,4,FALSE),"") -> CVE ASS PLQ 14/423 RL18R-410 TERM | H153: 496 | I153: PCE | J153: 4501021433 | K153: 3 | L153: =IF(B153="","",VLOOKUP(B153,'[6]Liste 2'!A$1:F169,5,FALSE)) -> CVE-423-POL
A154: 73088 | B154: 32576 | C154: =IF($B154<>"",VLOOKUP($B154,'[5]Liste 2'!$A$2:$F$168,2,FALSE),"") -> 4207135 | F154: =IF($B154<>"",VLOOKUP($B154,'[5]Liste 2'!$A$2:$F$168,3,FALSE),"") -> 4180304 | G154: =IF($B154<>"",VLOOKUP($B154,'[5]Liste 2'!$A$2:$F$168,4,FALSE),"") -> CVE 15/423 AC904L SAT | H154: 900 | I154: PCE | J154: 4501022808 | K154: 1 | L154: =IF(B154="","",VLOOKUP(B154,'[6]Liste 2'!A$1:F170,5,FALSE)) -> CVE-423-SAT
A155: 73023 | B155: 32752 | C155: =IF($B155<>"",VLOOKUP($B155,'[5]Liste 2'!$A$2:$F$168,2,FALSE),"") -> 4326036 | F155: =IF($B155<>"",VLOOKUP($B155,'[5]Liste 2'!$A$2:$F$168,3,FALSE),"") -> 4326035 | G155: =IF($B155<>"",VLOOKUP($B155,'[5]Liste 2'!$A$2:$F$168,4,FALSE),"") -> CVE ASS 12/313 AC904L TERM | H155: 483 | I155: PCE | J155: 4501021386 | K155: 1 | L155: =IF(B155="","",VLOOKUP(B155,'[6]Liste 2'!A$1:F171,5,FALSE)) -> CVE-300-POL
A156: 73058 | B156: 32725 | C156: =IF($B156<>"",VLOOKUP($B156,'[5]Liste 2'!$A$2:$F$168,2,FALSE),"") -> 4306986 | F156: =IF($B156<>"",VLOOKUP($B156,'[5]Liste 2'!$A$2:$F$168,3,FALSE),"") -> 4306985 | G156: =IF($B156<>"",VLOOKUP($B156,'[5]Liste 2'!$A$2:$F$168,4,FALSE),"") -> CVE ASS 15/313 RL18J TERM | H156: 841 | I156: PCE | J156: 4501021380 | K156: 3 | L156: =IF(B156="","",VLOOKUP(B156,'[6]Liste 2'!A$1:F172,5,FALSE)) -> CVE-300-POL
A157: 73059 | B157: 32740 | C157: =IF($B157<>"",VLOOKUP($B157,'[5]Liste 2'!$A$2:$F$168,2,FALSE),"") -> 4308204 | F157: =IF($B157<>"",VLOOKUP($B157,'[5]Liste 2'!$A$2:$F$168,3,FALSE),"") -> 4308203 | G157: =IF($B157<>"",VLOOKUP($B157,'[5]Liste 2'!$A$2:$F$168,4,FALSE),"") -> CVE ASS 12/313 RL18R-410 TERM | H157: 248 | I157: PCE | J157: 4501021380 | K157: 7 | L157: =IF(B157="","",VLOOKUP(B157,'[6]Liste 2'!A$1:F173,5,FALSE)) -> CVE-300-POL
A158: 73060 | B158: 32739 | C158: =IF($B158<>"",VLOOKUP($B158,'[5]Liste 2'!$A$2:$F$168,2,FALSE),"") -> 4311464 | F158: =IF($B158<>"",VLOOKUP($B158,'[5]Liste 2'!$A$2:$F$168,3,FALSE),"") -> 4311465 | G158: =IF($B158<>"",VLOOKUP($B158,'[5]Liste 2'!$A$2:$F$168,4,FALSE),"") -> CVE ASS 15/313 RL18R-65 TERM | H158: 200 | I158: PCE | J158: 4501021380 | K158: 8 | L158: =IF(B158="","",VLOOKUP(B158,'[6]Liste 2'!A$1:F174,5,FALSE)) -> CVE-300-POL
A159: 73090 | B159: 32622 | C159: =IF($B159<>"",VLOOKUP($B159,'[5]Liste 2'!$A$2:$F$168,2,FALSE),"") -> 4185812 | F159: =IF($B159<>"",VLOOKUP($B159,'[5]Liste 2'!$A$2:$F$168,3,FALSE),"") -> 4185813 | G159: =IF($B159<>"",VLOOKUP($B159,'[5]Liste 2'!$A$2:$F$168,4,FALSE),"") -> CVE ASS PLQ 15/443 RL18J TERM | H159: 999 | I159: PCE | J159: 4501022816 | K159: 3 | L159: =IF(B159="","",VLOOKUP(B159,'[6]Liste 2'!A$1:F175,5,FALSE)) -> CVE-443-POL
A160: 73140 | B160: 32755 | C160: =IF($B160<>"",VLOOKUP($B160,'[5]Liste 2'!$A$2:$F$168,2,FALSE),"") -> 4326330 | F160: =IF($B160<>"",VLOOKUP($B160,'[5]Liste 2'!$A$2:$F$168,3,FALSE),"") -> 4326329 | G160: =IF($B160<>"",VLOOKUP($B160,'[5]Liste 2'!$A$2:$F$168,4,FALSE),"") -> CVE 17/443 AC904L SAT | H160: 500 | I160: PCE | J160: 4501024216 | K160: 1 | L160: =IF(B160="","",VLOOKUP(B160,'[6]Liste 2'!A$1:F176,5,FALSE)) -> CVE-443-SAT
A161: 73141 | B161: 32755 | C161: =IF($B161<>"",VLOOKUP($B161,'[5]Liste 2'!$A$2:$F$168,2,FALSE),"") -> 4326330 | F161: =IF($B161<>"",VLOOKUP($B161,'[5]Liste 2'!$A$2:$F$168,3,FALSE),"") -> 4326329 | G161: =IF($B161<>"",VLOOKUP($B161,'[5]Liste 2'!$A$2:$F$168,4,FALSE),"") -> CVE 17/443 AC904L SAT | H161: 500 | I161: PCE | J161: 4501024216 | K161: 2 | L161: =IF(B161="","",VLOOKUP(B161,'[6]Liste 2'!A$1:F177,5,FALSE)) -> CVE-443-SAT
A162: 73142 | B162: 32755 | C162: =IF($B162<>"",VLOOKUP($B162,'[5]Liste 2'!$A$2:$F$168,2,FALSE),"") -> 4326330 | F162: =IF($B162<>"",VLOOKUP($B162,'[5]Liste 2'!$A$2:$F$168,3,FALSE),"") -> 4326329 | G162: =IF($B162<>"",VLOOKUP($B162,'[5]Liste 2'!$A$2:$F$168,4,FALSE),"") -> CVE 17/443 AC904L SAT | H162: 500 | I162: PCE | J162: 4501024216 | K162: 3 | L162: =IF(B162="","",VLOOKUP(B162,'[6]Liste 2'!A$1:F178,5,FALSE)) -> CVE-443-SAT
A163: 73143 | B163: 32755 | C163: =IF($B163<>"",VLOOKUP($B163,'[5]Liste 2'!$A$2:$F$168,2,FALSE),"") -> 4326330 | F163: =IF($B163<>"",VLOOKUP($B163,'[5]Liste 2'!$A$2:$F$168,3,FALSE),"") -> 4326329 | G163: =IF($B163<>"",VLOOKUP($B163,'[5]Liste 2'!$A$2:$F$168,4,FALSE),"") -> CVE 17/443 AC904L SAT | H163: 500 | I163: PCE | J163: 4501024216 | K163: 4 | L163: =IF(B163="","",VLOOKUP(B163,'[6]Liste 2'!A$1:F179,5,FALSE)) -> CVE-443-SAT
A164: 73144 | B164: 32755 | C164: =IF($B164<>"",VLOOKUP($B164,'[5]Liste 2'!$A$2:$F$168,2,FALSE),"") -> 4326330 | F164: =IF($B164<>"",VLOOKUP($B164,'[5]Liste 2'!$A$2:$F$168,3,FALSE),"") -> 4326329 | G164: =IF($B164<>"",VLOOKUP($B164,'[5]Liste 2'!$A$2:$F$168,4,FALSE),"") -> CVE 17/443 AC904L SAT | H164: 389 | I164: PCE | J164: 4501024216 | K164: 5 | L164: =IF(B164="","",VLOOKUP(B164,'[6]Liste 2'!A$1:F180,5,FALSE)) -> CVE-443-SAT
A165: 73061 | B165: 32305 | C165: =IF($B165<>"",VLOOKUP($B165,'[5]Liste 2'!$A$2:$F$168,2,FALSE),"") -> 4012688 | F165: =IF($B165<>"",VLOOKUP($B165,'[5]Liste 2'!$A$2:$F$168,3,FALSE),"") -> 4012687 | G165: =IF($B165<>"",VLOOKUP($B165,'[5]Liste 2'!$A$2:$F$168,4,FALSE),"") -> SEC 15/313 AC904L TERM SPLE | H165: 1150 | I165: PCE | J165: 4501021398 | K165: 5 | L165: =IF(B165="","",VLOOKUP(B165,'[6]Liste 2'!A$1:F181,5,FALSE)) -> SEC-300-POL
A166: 73062 | B166: 32403 | C166: =IF($B166<>"",VLOOKUP($B166,'[5]Liste 2'!$A$2:$F$168,2,FALSE),"") -> 4012688 | F166: =IF($B166<>"",VLOOKUP($B166,'[5]Liste 2'!$A$2:$F$168,3,FALSE),"") -> 4090256 | G166: =IF($B166<>"",VLOOKUP($B166,'[5]Liste 2'!$A$2:$F$168,4,FALSE),"") -> SEC 15/313A AC904L TERM SPLE | H166: 516 | I166: PCE | J166: 4501021399 | K166: 7 | L166: =IF(B166="","",VLOOKUP(B166,'[6]Liste 2'!A$1:F182,5,FALSE)) -> SEC-300-SAT
A167: 73063 | B167: 32733 | C167: =IF($B167<>"",VLOOKUP($B167,'[5]Liste 2'!$A$2:$F$168,2,FALSE),"") -> 4302468 | F167: =IF($B167<>"",VLOOKUP($B167,'[5]Liste 2'!$A$2:$F$168,3,FALSE),"") -> 4302466 | G167: =IF($B167<>"",VLOOKUP($B167,'[5]Liste 2'!$A$2:$F$168,4,FALSE),"") -> SEC ASS 14/400 AC904L TERM | H167: 159 | I167: PCE | J167: 4501021427 | K167: 4 | L167: =IF(B167="","",VLOOKUP(B167,'[6]Liste 2'!A$1:F183,5,FALSE)) -> SEC-400-POL
A168: 73064 | B168: 32461 | C168: =IF($B168<>"",VLOOKUP($B168,'[5]Liste 2'!$A$2:$F$168,2,FALSE),"") -> 4100361 | F168: =IF($B168<>"",VLOOKUP($B168,'[5]Liste 2'!$A$2:$F$168,3,FALSE),"") -> 4100349 | G168: =IF($B168<>"",VLOOKUP($B168,'[5]Liste 2'!$A$2:$F$168,4,FALSE),"") -> CVE 11/313A AC904L TERM | H168: 241 | I168: PCE | J168: 4501021435 | K168: 2 | L168: =IF(B168="","",VLOOKUP(B168,'[6]Liste 2'!A$1:F184,5,FALSE)) -> CVE-300-SAT
A169: 73089 | B169: 32576 | C169: =IF($B169<>"",VLOOKUP($B169,'[5]Liste 2'!$A$2:$F$168,2,FALSE),"") -> 4207135 | F169: =IF($B169<>"",VLOOKUP($B169,'[5]Liste 2'!$A$2:$F$168,3,FALSE),"") -> 4180304 | G169: =IF($B169<>"",VLOOKUP($B169,'[5]Liste 2'!$A$2:$F$168,4,FALSE),"") -> CVE 15/423 AC904L SAT | H169: 400 | I169: PCE | J169: 4501022808 | K169: 2 | L169: =IF(B169="","",VLOOKUP(B169,'[6]Liste 2'!A$1:F185,5,FALSE)) -> CVE-423-SAT
A170: 73123 | B170: 32695 | C170: =IF($B170<>"",VLOOKUP($B170,'[5]Liste 2'!$A$2:$F$168,2,FALSE),"") -> 4213756 | F170: =IF($B170<>"",VLOOKUP($B170,'[5]Liste 2'!$A$2:$F$168,3,FALSE),"") -> 4237284 | G170: =IF($B170<>"",VLOOKUP($B170,'[5]Liste 2'!$A$2:$F$168,4,FALSE),"") -> ALL FER 97200 16 AC SAT MONO V0 | H170: 900 | I170: PCE | J170: 4501024262 | K170: 1 | L170: =IF(B170="","",VLOOKUP(B170,'[6]Liste 2'!A$1:F186,5,FALSE)) -> 0
A171: 73065 | B171: 32750 | C171: =IF($B171<>"",VLOOKUP($B171,'[5]Liste 2'!$A$2:$F$168,2,FALSE),"") -> 4323351 | F171: =IF($B171<>"",VLOOKUP($B171,'[5]Liste 2'!$A$2:$F$168,3,FALSE),"") -> 4323350 | G171: =IF($B171<>"",VLOOKUP($B171,'[5]Liste 2'!$A$2:$F$168,4,FALSE),"") -> CVE ASS EBL 15/313 AC TERM | H171: 986 | I171: PCE | J171: 4501021384 | K171: 1 | L171: =IF(B171="","",VLOOKUP(B171,'[6]Liste 2'!A$1:F187,5,FALSE)) -> CVE-300-POL
A172: 73066 | B172: 32305 | C172: =IF($B172<>"",VLOOKUP($B172,'[5]Liste 2'!$A$2:$F$168,2,FALSE),"") -> 4012688 | F172: =IF($B172<>"",VLOOKUP($B172,'[5]Liste 2'!$A$2:$F$168,3,FALSE),"") -> 4012687 | G172: =IF($B172<>"",VLOOKUP($B172,'[5]Liste 2'!$A$2:$F$168,4,FALSE),"") -> SEC 15/313 AC904L TERM SPLE | H172: 1150 | I172: PCE | J172: 4501021398 | K172: 6 | L172: =IF(B172="","",VLOOKUP(B172,'[6]Liste 2'!A$1:F188,5,FALSE)) -> SEC-300-POL
A173: 73067 | B173: 32403 | C173: =IF($B173<>"",VLOOKUP($B173,'[5]Liste 2'!$A$2:$F$168,2,FALSE),"") -> 4012688 | F173: =IF($B173<>"",VLOOKUP($B173,'[5]Liste 2'!$A$2:$F$168,3,FALSE),"") -> 4090256 | G173: =IF($B173<>"",VLOOKUP($B173,'[5]Liste 2'!$A$2:$F$168,4,FALSE),"") -> SEC 15/313A AC904L TERM SPLE | H173: 516 | I173: PCE | J173: 4501021399 | K173: 8 | L173: =IF(B173="","",VLOOKUP(B173,'[6]Liste 2'!A$1:F189,5,FALSE)) -> SEC-300-SAT
A174: 73091 | B174: 32741 | C174: =IF($B174<>"",VLOOKUP($B174,'[5]Liste 2'!$A$2:$F$168,2,FALSE),"") -> 4308209 | F174: =IF($B174<>"",VLOOKUP($B174,'[5]Liste 2'!$A$2:$F$168,3,FALSE),"") -> 4308208 | G174: =IF($B174<>"",VLOOKUP($B174,'[5]Liste 2'!$A$2:$F$168,4,FALSE),"") -> SEC ASS 12/313 RL18R-410 TERM | H174: 524 | I174: PCE | J174: 4501022816 | K174: 1 | L174: =IF(B174="","",VLOOKUP(B174,'[6]Liste 2'!A$1:F190,5,FALSE)) -> SEC-300-POL
A175: 73068 | B175: 32750 | C175: =IF($B175<>"",VLOOKUP($B175,'[5]Liste 2'!$A$2:$F$168,2,FALSE),"") -> 4323351 | F175: =IF($B175<>"",VLOOKUP($B175,'[5]Liste 2'!$A$2:$F$168,3,FALSE),"") -> 4323350 | G175: =IF($B175<>"",VLOOKUP($B175,'[5]Liste 2'!$A$2:$F$168,4,FALSE),"") -> CVE ASS EBL 15/313 AC TERM | H175: 1000 | I175: PCE | J175: 4501021384 | K175: 2 | L175: =IF(B175="","",VLOOKUP(B175,'[6]Liste 2'!A$1:F191,5,FALSE)) -> CVE-300-POL
A176: 73069 | B176: 32750 | C176: =IF($B176<>"",VLOOKUP($B176,'[5]Liste 2'!$A$2:$F$168,2,FALSE),"") -> 4323351 | F176: =IF($B176<>"",VLOOKUP($B176,'[5]Liste 2'!$A$2:$F$168,3,FALSE),"") -> 4323350 | G176: =IF($B176<>"",VLOOKUP($B176,'[5]Liste 2'!$A$2:$F$168,4,FALSE),"") -> CVE ASS EBL 15/313 AC TERM | H176: 518 | I176: PCE | J176: 4501021384 | K176: 5 | L176: =IF(B176="","",VLOOKUP(B176,'[6]Liste 2'!A$1:F192,5,FALSE)) -> CVE-300-POL
A177: 73070 | B177: 32305 | C177: =IF($B177<>"",VLOOKUP($B177,'[5]Liste 2'!$A$2:$F$168,2,FALSE),"") -> 4012688 | F177: =IF($B177<>"",VLOOKUP($B177,'[5]Liste 2'!$A$2:$F$168,3,FALSE),"") -> 4012687 | G177: =IF($B177<>"",VLOOKUP($B177,'[5]Liste 2'!$A$2:$F$168,4,FALSE),"") -> SEC 15/313 AC904L TERM SPLE | H177: 1150 | I177: PCE | J177: 4501021398 | K177: 7 | L177: =IF(B177="","",VLOOKUP(B177,'[6]Liste 2'!A$1:F193,5,FALSE)) -> SEC-300-POL
A178: 73071 | B178: 32403 | C178: =IF($B178<>"",VLOOKUP($B178,'[5]Liste 2'!$A$2:$F$168,2,FALSE),"") -> 4012688 | F178: =IF($B178<>"",VLOOKUP($B178,'[5]Liste 2'!$A$2:$F$168,3,FALSE),"") -> 4090256 | G178: =IF($B178<>"",VLOOKUP($B178,'[5]Liste 2'!$A$2:$F$168,4,FALSE),"") -> SEC 15/313A AC904L TERM SPLE | H178: 518 | I178: PCE | J178: 4501021399 | K178: 9 | L178: =IF(B178="","",VLOOKUP(B178,'[6]Liste 2'!A$1:F194,5,FALSE)) -> SEC-300-SAT
A179: 73102 | B179: 32754 | C179: =IF($B179<>"",VLOOKUP($B179,'[5]Liste 2'!$A$2:$F$168,2,FALSE),"") -> 4316549 | F179: =IF($B179<>"",VLOOKUP($B179,'[5]Liste 2'!$A$2:$F$168,3,FALSE),"") -> 4316548 | G179: =IF($B179<>"",VLOOKUP($B179,'[5]Liste 2'!$A$2:$F$168,4,FALSE),"") -> SEC ASS 17/400 AC SAT | H179: 700 | I179: PCE | J179: 4501015862 | K179: 1 | L179: =IF(B179="","",VLOOKUP(B179,'[6]Liste 2'!A$1:F195,5,FALSE)) -> SEC-400-SAT
A180: 73156 | B180: 32655 | C180: =IF($B180<>"",VLOOKUP($B180,'[5]Liste 2'!$A$2:$F$168,2,FALSE),"") -> 4117944 | F180: =IF($B180<>"",VLOOKUP($B180,'[5]Liste 2'!$A$2:$F$168,3,FALSE),"") -> 4210872 | G180: =IF($B180<>"",VLOOKUP($B180,'[5]Liste 2'!$A$2:$F$168,4,FALSE),"") -> CVE 15/443 AC904L SAT | H180: 426 | I180: PCE | J180: 4501015865 | K180: 6 | L180: =IF(B180="","",VLOOKUP(B180,'[6]Liste 2'!A$1:F196,5,FALSE)) -> CVE-443-SAT
A181: 73164 | B181: 32695 | C181: =IF($B181<>"",VLOOKUP($B181,'[5]Liste 2'!$A$2:$F$168,2,FALSE),"") -> 4213756 | F181: =IF($B181<>"",VLOOKUP($B181,'[5]Liste 2'!$A$2:$F$168,3,FALSE),"") -> 4237284 | G181: =IF($B181<>"",VLOOKUP($B181,'[5]Liste 2'!$A$2:$F$168,4,FALSE),"") -> ALL FER 97200 16 AC SAT MONO V0 | H181: 880 | I181: PCE | J181: 4501025192 | K181: 1 | L181: =IF(B181="","",VLOOKUP(B181,'[6]Liste 2'!A$1:F197,5,FALSE)) -> 0
A182: 73092 | B182: 32748 | C182: =IF($B182<>"",VLOOKUP($B182,'[5]Liste 2'!$A$2:$F$168,2,FALSE),"") -> 4328246 | F182: =IF($B182<>"",VLOOKUP($B182,'[5]Liste 2'!$A$2:$F$168,3,FALSE),"") -> 4328247 | G182: =IF($B182<>"",VLOOKUP($B182,'[5]Liste 2'!$A$2:$F$168,4,FALSE),"") -> CVE 15/313 AC904L SAT | H182: 763 | I182: PCE | J182: 4501022808 | K182: 4 | L182: =IF(B182="","",VLOOKUP(B182,'[6]Liste 2'!A$1:F198,5,FALSE)) -> CVE-300-SAT
A183: 73093 | B183: 32726 | C183: =IF($B183<>"",VLOOKUP($B183,'[5]Liste 2'!$A$2:$F$168,2,FALSE),"") -> 4307948 | F183: =IF($B183<>"",VLOOKUP($B183,'[5]Liste 2'!$A$2:$F$168,3,FALSE),"") -> 4307947 | G183: =IF($B183<>"",VLOOKUP($B183,'[5]Liste 2'!$A$2:$F$168,4,FALSE),"") -> SEC ASS 15/313 RL18R-410 TERM | H183: 263 | I183: PCE | J183: 4501022816 | K183: 2 | L183: =IF(B183="","",VLOOKUP(B183,'[6]Liste 2'!A$1:F199,5,FALSE)) -> SEC-300-POL
A184: 73147 | B184: 32726 | C184: =IF($B184<>"",VLOOKUP($B184,'[5]Liste 2'!$A$2:$F$168,2,FALSE),"") -> 4307948 | F184: =IF($B184<>"",VLOOKUP($B184,'[5]Liste 2'!$A$2:$F$168,3,FALSE),"") -> 4307947 | G184: =IF($B184<>"",VLOOKUP($B184,'[5]Liste 2'!$A$2:$F$168,4,FALSE),"") -> SEC ASS 15/313 RL18R-410 TERM | H184: 260 | I184: PCE | J184: 4501024018 | K184: 3 | L184: =IF(B184="","",VLOOKUP(B184,'[6]Liste 2'!A$1:F200,5,FALSE)) -> SEC-300-POL
A185: 73148 | B185: 32726 | C185: =IF($B185<>"",VLOOKUP($B185,'[5]Liste 2'!$A$2:$F$168,2,FALSE),"") -> 4307948 | F185: =IF($B185<>"",VLOOKUP($B185,'[5]Liste 2'!$A$2:$F$168,3,FALSE),"") -> 4307947 | G185: =IF($B185<>"",VLOOKUP($B185,'[5]Liste 2'!$A$2:$F$168,4,FALSE),"") -> SEC ASS 15/313 RL18R-410 TERM | H185: 792 | I185: PCE | J185: 4501024018 | K185: 4 | L185: =IF(B185="","",VLOOKUP(B185,'[6]Liste 2'!A$1:F201,5,FALSE)) -> SEC-300-POL
A186: 73145 | B186: 32438 | C186: =IF($B186<>"",VLOOKUP($B186,'[5]Liste 2'!$A$2:$F$168,2,FALSE),"") -> 4078325 | F186: =IF($B186<>"",VLOOKUP($B186,'[5]Liste 2'!$A$2:$F$168,3,FALSE),"") -> 4078326 | G186: =IF($B186<>"",VLOOKUP($B186,'[5]Liste 2'!$A$2:$F$168,4,FALSE),"") -> SEC ASS 15/423 AC TERM | H186: 1000 | I186: PCE | J186: 4501023967 | K186: 1 | L186: =IF(B186="","",VLOOKUP(B186,'[6]Liste 2'!A$1:F202,5,FALSE)) -> SEC-400-POL
A187: 73146 | B187: 32438 | C187: =IF($B187<>"",VLOOKUP($B187,'[5]Liste 2'!$A$2:$F$168,2,FALSE),"") -> 4078325 | F187: =IF($B187<>"",VLOOKUP($B187,'[5]Liste 2'!$A$2:$F$168,3,FALSE),"") -> 4078326 | G187: =IF($B187<>"",VLOOKUP($B187,'[5]Liste 2'!$A$2:$F$168,4,FALSE),"") -> SEC ASS 15/423 AC TERM | H187: 1313 | I187: PCE | J187: 4501023967 | K187: 2 | L187: =IF(B187="","",VLOOKUP(B187,'[6]Liste 2'!A$1:F203,5,FALSE)) -> SEC-400-POL
A188: 73165 | B188: 32438 | C188: =IF($B188<>"",VLOOKUP($B188,'[5]Liste 2'!$A$2:$F$168,2,FALSE),"") -> 4078325 | F188: =IF($B188<>"",VLOOKUP($B188,'[5]Liste 2'!$A$2:$F$168,3,FALSE),"") -> 4078326 | G188: =IF($B188<>"",VLOOKUP($B188,'[5]Liste 2'!$A$2:$F$168,4,FALSE),"") -> SEC ASS 15/423 AC TERM | H188: 565 | I188: PCE | J188: 4501024815 | K188: 2 | L188: =IF(B188="","",VLOOKUP(B188,'[6]Liste 2'!A$1:F204,5,FALSE)) -> SEC-400-POL
A189: 73072 | B189: 32750 | C189: =IF($B189<>"",VLOOKUP($B189,'[5]Liste 2'!$A$2:$F$168,2,FALSE),"") -> 4323351 | F189: =IF($B189<>"",VLOOKUP($B189,'[5]Liste 2'!$A$2:$F$168,3,FALSE),"") -> 4323350 | G189: =IF($B189<>"",VLOOKUP($B189,'[5]Liste 2'!$A$2:$F$168,4,FALSE),"") -> CVE ASS EBL 15/313 AC TERM | H189: 1000 | I189: PCE | J189: 4501021384 | K189: 3 | L189: =IF(B189="","",VLOOKUP(B189,'[6]Liste 2'!A$1:F205,5,FALSE)) -> CVE-300-POL
A190: 73174 | B190: 32539 | C190: =IF($B190<>"",VLOOKUP($B190,'[5]Liste 2'!$A$2:$F$168,2,FALSE),"") -> 4023402 | F190: =IF($B190<>"",VLOOKUP($B190,'[5]Liste 2'!$A$2:$F$168,3,FALSE),"") -> 4023400 | G190: =IF($B190<>"",VLOOKUP($B190,'[5]Liste 2'!$A$2:$F$168,4,FALSE),"") -> CVE ASS 13/313 RL18R-65 TERM | H190: 92 | I190: PCE | J190: 4501013978 | K190: 1 | L190: =IF(B190="","",VLOOKUP(B190,'[6]Liste 2'!A$1:F206,5,FALSE)) -> CVE-300-POL
A191: 73175 | B191: 32729 | C191: =IF($B191<>"",VLOOKUP($B191,'[5]Liste 2'!$A$2:$F$168,2,FALSE),"") -> 4307955 | F191: =IF($B191<>"",VLOOKUP($B191,'[5]Liste 2'!$A$2:$F$168,3,FALSE),"") -> 4307954 | G191: =IF($B191<>"",VLOOKUP($B191,'[5]Liste 2'!$A$2:$F$168,4,FALSE),"") -> CVE ASS 15/313 RL18R-410 TERM | H191: 814 | I191: PCE | J191: 4501015860 | K191: 2 | L191: =IF(B191="","",VLOOKUP(B191,'[6]Liste 2'!A$1:F207,5,FALSE)) -> CVE-300-POL
A192: 73187 | B192: 32754 | C192: =IF($B192<>"",VLOOKUP($B192,'[5]Liste 2'!$A$2:$F$168,2,FALSE),"") -> 4316549 | F192: =IF($B192<>"",VLOOKUP($B192,'[5]Liste 2'!$A$2:$F$168,3,FALSE),"") -> 4316548 | G192: =IF($B192<>"",VLOOKUP($B192,'[5]Liste 2'!$A$2:$F$168,4,FALSE),"") -> SEC ASS 17/400 AC SAT | H192: 26 | I192: PCE | J192: 4501015862 | K192: 1 | L192: =IF(B192="","",VLOOKUP(B192,'[6]Liste 2'!A$1:F208,5,FALSE)) -> SEC-400-SAT
A193: 73178 | B193: 32754 | C193: =IF($B193<>"",VLOOKUP($B193,'[5]Liste 2'!$A$2:$F$168,2,FALSE),"") -> 4316549 | F193: =IF($B193<>"",VLOOKUP($B193,'[5]Liste 2'!$A$2:$F$168,3,FALSE),"") -> 4316548 | G193: =IF($B193<>"",VLOOKUP($B193,'[5]Liste 2'!$A$2:$F$168,4,FALSE),"") -> SEC ASS 17/400 AC SAT | H193: 50 | I193: PCE | J193: 4501025386 | K193: 1 | L193: =IF(B193="","",VLOOKUP(B193,'[6]Liste 2'!A$1:F209,5,FALSE)) -> SEC-400-SAT
A194: 73073 | B194: 32750 | C194: =IF($B194<>"",VLOOKUP($B194,'[5]Liste 2'!$A$2:$F$168,2,FALSE),"") -> 4323351 | F194: =IF($B194<>"",VLOOKUP($B194,'[5]Liste 2'!$A$2:$F$168,3,FALSE),"") -> 4323350 | G194: =IF($B194<>"",VLOOKUP($B194,'[5]Liste 2'!$A$2:$F$168,4,FALSE),"") -> CVE ASS EBL 15/313 AC TERM | H194: 1000 | I194: PCE | J194: 4501021384 | K194: 4 | L194: =IF(B194="","",VLOOKUP(B194,'[6]Liste 2'!A$1:F210,5,FALSE)) -> CVE-300-POL
A195: 73074 | B195: 32305 | C195: =IF($B195<>"",VLOOKUP($B195,'[5]Liste 2'!$A$2:$F$168,2,FALSE),"") -> 4012688 | F195: =IF($B195<>"",VLOOKUP($B195,'[5]Liste 2'!$A$2:$F$168,3,FALSE),"") -> 4012687 | G195: =IF($B195<>"",VLOOKUP($B195,'[5]Liste 2'!$A$2:$F$168,4,FALSE),"") -> SEC 15/313 AC904L TERM SPLE | H195: 1150 | I195: PCE | J195: 4501021398 | K195: 8 | L195: =IF(B195="","",VLOOKUP(B195,'[6]Liste 2'!A$1:F211,5,FALSE)) -> SEC-300-POL
A196: 73128 | B196: 32748 | C196: =IF($B196<>"",VLOOKUP($B196,'[5]Liste 2'!$A$2:$F$168,2,FALSE),"") -> 4328246 | F196: =IF($B196<>"",VLOOKUP($B196,'[5]Liste 2'!$A$2:$F$168,3,FALSE),"") -> 4328247 | G196: =IF($B196<>"",VLOOKUP($B196,'[5]Liste 2'!$A$2:$F$168,4,FALSE),"") -> CVE 15/313 AC904L SAT | H196: 495 | I196: PCE | J196: 4501024279 | K196: 1 | L196: =IF(B196="","",VLOOKUP(B196,'[6]Liste 2'!A$1:F212,5,FALSE)) -> CVE-300-SAT
A197: 73094 | B197: 32750 | C197: =IF($B197<>"",VLOOKUP($B197,'[5]Liste 2'!$A$2:$F$168,2,FALSE),"") -> 4323351 | F197: =IF($B197<>"",VLOOKUP($B197,'[5]Liste 2'!$A$2:$F$168,3,FALSE),"") -> 4323350 | G197: =IF($B197<>"",VLOOKUP($B197,'[5]Liste 2'!$A$2:$F$168,4,FALSE),"") -> CVE ASS EBL 15/313 AC TERM | H197: 223 | I197: PCE | J197: 4501022726 | K197: 7 | L197: =IF(B197="","",VLOOKUP(B197,'[6]Liste 2'!A$1:F213,5,FALSE)) -> CVE-300-POL
A198: 73195 | B198: 32494 | C198: =IF($B198<>"",VLOOKUP($B198,'[5]Liste 2'!$A$2:$F$168,2,FALSE),"") -> 4077847 | F198: =IF($B198<>"",VLOOKUP($B198,'[5]Liste 2'!$A$2:$F$168,3,FALSE),"") -> 4077848 | G198: =IF($B198<>"",VLOOKUP($B198,'[5]Liste 2'!$A$2:$F$168,4,FALSE),"") -> SEC ASS 15/400 RL18J TERM | H198: 266 | I198: PCE | J198: 4501012493 | K198: 1 | L198: =IF(B198="","",VLOOKUP(B198,'[6]Liste 2'!A$1:F214,5,FALSE)) -> SEC-400-POL
A199: 73095 | B199: 32752 | C199: =IF($B199<>"",VLOOKUP($B199,'[5]Liste 2'!$A$2:$F$168,2,FALSE),"") -> 4326036 | F199: =IF($B199<>"",VLOOKUP($B199,'[5]Liste 2'!$A$2:$F$168,3,FALSE),"") -> 4326035 | G199: =IF($B199<>"",VLOOKUP($B199,'[5]Liste 2'!$A$2:$F$168,4,FALSE),"") -> CVE ASS 12/313 AC904L TERM | H199: 464 | I199: PCE | J199: 4501022726 | K199: 9 | L199: =IF(B199="","",VLOOKUP(B199,'[6]Liste 2'!A$1:F215,5,FALSE)) -> CVE-300-POL
A200: 73095 | B200: 32417 | C200: =IF($B200<>"",VLOOKUP($B200,'[5]Liste 2'!$A$2:$F$168,2,FALSE),"") -> 4031705 | F200: =IF($B200<>"",VLOOKUP($B200,'[5]Liste 2'!$A$2:$F$168,3,FALSE),"") -> 4091522 | G200: =IF($B200<>"",VLOOKUP($B200,'[5]Liste 2'!$A$2:$F$168,4,FALSE),"") -> SEC 13/313A AC904L TERM | H200: 135 | I200: PCE | J200: 4501022765 | K200: 1 | L200: =IF(B200="","",VLOOKUP(B200,'[6]Liste 2'!A$1:F216,5,FALSE)) -> SEC-300-SAT
A201: 73097 | B201: 32403 | C201: =IF($B201<>"",VLOOKUP($B201,'[5]Liste 2'!$A$2:$F$168,2,FALSE),"") -> 4012688 | F201: =IF($B201<>"",VLOOKUP($B201,'[5]Liste 2'!$A$2:$F$168,3,FALSE),"") -> 4090256 | G201: =IF($B201<>"",VLOOKUP($B201,'[5]Liste 2'!$A$2:$F$168,4,FALSE),"") -> SEC 15/313A AC904L TERM SPLE | H201: 1493 | I201: PCE | J201: 4501022765 | K201: 2 | L201: =IF(B201="","",VLOOKUP(B201,'[6]Liste 2'!A$1:F217,5,FALSE)) -> SEC-300-SAT
A202: 73196 | B202: 32761 | C202: =IF($B202<>"",VLOOKUP($B202,'[5]Liste 2'!$A$2:$F$168,2,FALSE),"") -> 4103569 | F202: =IF($B202<>"",VLOOKUP($B202,'[5]Liste 2'!$A$2:$F$168,3,FALSE),"") -> 4008896 | G202: =IF($B202<>"",VLOOKUP($B202,'[5]Liste 2'!$A$2:$F$168,4,FALSE),"") -> MCE PLAT FER 9.6.2.5 AC904L 15.3 USI | H202: 30 | I202: PCE | J202: 4501023486 | K202: 1 | L202: =IF(B202="","",VLOOKUP(B202,'[6]Liste 2'!A$1:F218,5,FALSE)) -> 0
A203: 73098 | B203: 32363 | C203: =IF($B203<>"",VLOOKUP($B203,'[5]Liste 2'!$A$2:$F$168,2,FALSE),"") -> 4031705 | F203: =IF($B203<>"",VLOOKUP($B203,'[5]Liste 2'!$A$2:$F$168,3,FALSE),"") -> 4011978 | G203: =IF($B203<>"",VLOOKUP($B203,'[5]Liste 2'!$A$2:$F$168,4,FALSE),"") -> SEC 13/313 AC904L TERM | H203: 500 | I203: PCE | J203: 4501022808 | K203: 3 | L203: =IF(B203="","",VLOOKUP(B203,'[6]Liste 2'!A$1:F219,5,FALSE)) -> SEC-300-POL
A204: 73099 | B204: 32748 | C204: =IF($B204<>"",VLOOKUP($B204,'[5]Liste 2'!$A$2:$F$168,2,FALSE),"") -> 4328246 | F204: =IF($B204<>"",VLOOKUP($B204,'[5]Liste 2'!$A$2:$F$168,3,FALSE),"") -> 4328247 | G204: =IF($B204<>"",VLOOKUP($B204,'[5]Liste 2'!$A$2:$F$168,4,FALSE),"") -> CVE 15/313 AC904L SAT | H204: 947 | I204: PCE | J204: 4501022808 | K204: 5 | L204: =IF(B204="","",VLOOKUP(B204,'[6]Liste 2'!A$1:F220,5,FALSE)) -> CVE-300-SAT
A205: 73166 | B205: 32438 | C205: =IF($B205<>"",VLOOKUP($B205,'[5]Liste 2'!$A$2:$F$168,2,FALSE),"") -> 4078325 | F205: =IF($B205<>"",VLOOKUP($B205,'[5]Liste 2'!$A$2:$F$168,3,FALSE),"") -> 4078326 | G205: =IF($B205<>"",VLOOKUP($B205,'[5]Liste 2'!$A$2:$F$168,4,FALSE),"") -> SEC ASS 15/423 AC TERM | H205: 1000 | I205: PCE | J205: 4501024815 | K205: 1 | L205: =IF(B205="","",VLOOKUP(B205,'[6]Liste 2'!A$1:F221,5,FALSE)) -> SEC-400-POL
... 605 more rows

Sheet RECAP
L2: % Cible
L3: 20
A4: Ref | B4: Of | C4: Classe | D4: Date | E4: Taille lot | F4: Qté controlée | G4: Qté NC | H4: Ecartées | I4: Pièces perdues | J4: NP CIBLE 20% | K4: % NC | L4: Manque de sable | M4: Trop brillant | N4: déformation | O4: brillant défaut polissage | P4: Bouts avant | Q4: Bouts arrière | R4: Dessous | S4: Trous piqûres (T) | T4: Fils/raies de brosse (T) | U4: Trous piqûres (DC) | V4: Fils/ raies de brosse (DC) | W4: Blanches © | X4: Brut © | Y4: Brut © (SAT) | Z4: Piqûres (DB) (SAT) | AA4: Raies de brosse (DB) (SAT) | AB4: Alignement (DB) (SAT) | AC4: Brut long podium (DB) (SAT) | AD4: Manque de meulage (DC) | AE4: Brut/trous/raies (DC) | AF4: Défraichis (DC) | AG4: Manque de meulage (DB) | AH4: Brut/trous/raies (DB) | AI4: Alignement (DB) | AJ4: Défraichis (DB) | AK4: Trous/Piqûres (T) | AL4: Fils / Raies de brosse (T) | AM4: Compteur
A5: 32728 | B5: 74059 | C5: SEC-400-POL | D5: 2017-04-19 | E5: 790 | F5: 790 | G5: =SUM(T_32461[[#This Row],[Ecartées]],T_32461[[#This Row],[Manque de sable ]:[Fils / Raies de brosse (T)]]) -> 78 | J5: =SUM($L$3*[Qté controlée]/100) -> 158 | K5: =[Qté NC]/[Qté controlée] -> 0.09873417722 | O5: 10 | P5: 35 | R5: 27 | S5: 1 | V5: 5 | AM5: =COUNTIF(B$5:B5,B5) -> 1
A6: 32438 | B6: 73992 | C6: SEC-400-POL | D6: 2017-04-19 | E6: 600 | F6: 48 | G6: =SUM(T_32461[[#This Row],[Ecartées]],T_32461[[#This Row],[Manque de sable ]:[Fils / Raies de brosse (T)]]) -> 11 | J6: =SUM($L$3*[Qté controlée]/100) -> 9.6 | K6: =[Qté NC]/[Qté controlée] -> 0.2291666667 | Q6: 4 | S6: 3 | T6: 2 | V6: 2 | AM6: =COUNTIF(B$5:B10,B6) -> 1
A7: 32461 | B7: 74145 | C7: CVE-300-SAT | D7: 27. avril 2017 | E7: 309 | F7: 100 | G7: =SUM(T_32461[[#This Row],[Ecartées]],T_32461[[#This Row],[Manque de sable ]:[Fils / Raies de brosse (T)]]) -> 0 | J7: =SUM($L$3*[Qté controlée]/100) -> 20 | K7: =[Qté NC]/[Qté controlée] -> 0 | AM7: =COUNTIF(B$5:B10,B7) -> 4
A8: 32461 | B8: 74145 | C8: CVE-300-SAT | D8: 27. avril 2017 | E8: 309 | F8: 100 | G8: =SUM(T_32461[[#This Row],[Ecartées]],T_32461[[#This Row],[Manque de sable ]:[Fils / Raies de brosse (T)]]) -> 0 | J8: =SUM($L$3*[Qté controlée]/100) -> 20 | K8: =[Qté NC]/[Qté controlée] -> 0 | AM8: =COUNTIF(B$5:B10,B8) -> 4
A9: 32461 | B9: 74145 | C9: CVE-300-SAT | D9: 27. avril 2017 | E9: 309 | F9: 209 | G9: =SUM(T_32461[[#This Row],[Ecartées]],T_32461[[#This Row],[Manque de sable ]:[Fils / Raies de brosse (T)]]) -> 100 | J9: =SUM($L$3*[Qté controlée]/100) -> 41.8 | K9: =[Qté NC]/[Qté controlée] -> 0.4784688995 | S9: 100 | AM9: =COUNTIF(B$5:B10,B9) -> 4
A10: 32461 | B10: 74145 | C10: CVE-300-SAT | D10: 27. avril 2017 | E10: 309 | F10: 100 | G10: =SUM(T_32461[[#This Row],[Ecartées]],T_32461[[#This Row],[Manque de sable ]:[Fils / Raies de brosse (T)]]) -> 0 | J10: =SUM($L$3*[Qté controlée]/100) -> 20 | K10: =[Qté NC]/[Qté controlée] -> 0 | AM10: =COUNTIF(B$5:B10,B10) -> 4
A11: 0 | B11: 72887 | D11: 27. avril 2017 | E11: 904 | G11: =SUM(T_32461[[#This Row],[Ecartées]],T_32461[[#This Row],[Manque de sable ]:[Fils / Raies de brosse (T)]]) -> 0 | J11: =SUM($L$3*[Qté controlée]/100) -> 0 | K11: =[Qté NC]/[Qté controlée] ->  | AM11: =COUNTIF(B$5:B11,B11) -> 1
